{"text_format":"1","workbook":"xlsx","n_sheets":7,"sheets":["languages","readme_1st","1_cover_sheet","2_specification","3_Initial Sample Inspection","4_Process capability","5_Measurement Report"],"not_rendered":{"charts":0,"images":11,"macros":1,"external_links":1,"defined_names":16,"comments":1,"pivot_tables":0},"unopened":[],"bounds":{"document_bytes":16777216,"sheet_cells":100000,"rows_first":2000,"rows_last":500,"rows_between":2000,"halvings":0,"cell_chars":16384,"cell_head_chars":4096},"cells_cut":0,"cells_raw":0,"read":"whole","date_system":"1900"}

{"sheet":"languages","index":0,"n_rows":123,"n_cols":14,"rows_kept":123,"cut":false,"hidden":true,"merged":[]}
[]
[null,"Languages","№",null,"Str№","Example sentences","English only","Deutsch","Русский","Other",null,"Feat. Type","Description","Graphic"]
[null,"English only",1,null,1,"Cover sheet ISIR (Initial Sample Inspection Report)","","Deckblatt EMPB (Erstmusterprüfbericht)","Титульный лист ОКПО (Отчет о Контроле Первичных Образцов)",{"$f":"Translation[[#Headers],[Other]]&TEXT(Translation[[#This Row],[Str№]],\"000\")","v":"Other001"},null,"N","Minor Feature","Feature without any additional information"]
[null,"Deutsch",2,null,2,"Grey colored cells must be completed by supplier!","","Alle grauen Felder müssen vom Lieferanten bearbeitet werden!","Ячейки серого цвета заполняются поставщиком!",{"$f":"Translation[[#Headers],[Other]]&TEXT(Translation[[#This Row],[Str№]],\"000\")","v":"Other002"},null,"P","Check Feature","Feature with frame"]
[null,"Русский",3,null,3,"Link to Hilti Download Service","","Link zu Hilti Download Service","Ссылка на службу загрузки Hilti",{"$f":"Translation[[#Headers],[Other]]&TEXT(Translation[[#This Row],[Str№]],\"000\")","v":"Other003"},null,"H","Main Feature","Feature with H designation with or without frame"]
[null,null,null,null,4,"Last author","","Letzter Author","Кем сохранён",{"$f":"Translation[[#Headers],[Other]]&TEXT(Translation[[#This Row],[Str№]],\"000\")","v":"Other004"},null,"K","Critical feature","Feature with K designation with or without frame"]
[null,null,null,null,5,"Last save time","","Datum der letzten Änderung","Когда сохранен",{"$f":"Translation[[#Headers],[Other]]&TEXT(Translation[[#This Row],[Str№]],\"000\")","v":"Other005"},null,"CAC","Critical acceptance criteria","Feature additional designated with CAC"]
[null,null,null,null,6,"Report Number","","Report-Nr.","Номер отчета",{"$f":"Translation[[#Headers],[Other]]&TEXT(Translation[[#This Row],[Str№]],\"000\")","v":"Other006"}]
[null,null,null,null,7,"/ Supplier","","/ Lieferant","/ Поставщик",{"$f":"Translation[[#Headers],[Other]]&TEXT(Translation[[#This Row],[Str№]],\"000\")","v":"Other007"}]
[null,null,null,null,8,"/ [Company Name]","","/ [Firmen-Name]","/ [Название компании]",{"$f":"Translation[[#Headers],[Other]]&TEXT(Translation[[#This Row],[Str№]],\"000\")","v":"Other008"}]
[null,null,null,null,9,"/ [Street, Number]","","/ [Strasse, Hausnummer]","/ [Улица, Дом]",{"$f":"Translation[[#Headers],[Other]]&TEXT(Translation[[#This Row],[Str№]],\"000\")","v":"Other009"}]
[null,null,null,null,10,"/ [Postal Code]","","/ [PLZ]","/ [Индекс]",{"$f":"Translation[[#Headers],[Other]]&TEXT(Translation[[#This Row],[Str№]],\"000\")","v":"Other010"}]
[null,null,null,null,11,"/ [Country]","","/ [Land]","/ [Страна]",{"$f":"Translation[[#Headers],[Other]]&TEXT(Translation[[#This Row],[Str№]],\"000\")","v":"Other011"}]
[null,null,null,null,12,"/ [City]","","/ [Ortsname]","/ [Город]",{"$f":"Translation[[#Headers],[Other]]&TEXT(Translation[[#This Row],[Str№]],\"000\")","v":"Other012"}]
[null,null,null,null,13,"/ Item data supplier:","","/ Prüfobjektdaten Lieferant:","/ Данные поставщика об изделии:",{"$f":"Translation[[#Headers],[Other]]&TEXT(Translation[[#This Row],[Str№]],\"000\")","v":"Other013"}]
[null,null,null,null,14,"Material no./rev.","","Material-Nr./rev.","№ изделия/артикул",{"$f":"Translation[[#Headers],[Other]]&TEXT(Translation[[#This Row],[Str№]],\"000\")","v":"Other014"}]
[null,null,null,null,15,"Doc. no.:/vers.","","Dok.-Nr./vers.","№ чертежа/версия",{"$f":"Translation[[#Headers],[Other]]&TEXT(Translation[[#This Row],[Str№]],\"000\")","v":"Other015"}]
[null,null,null,null,16,"Change request","","Änderungsantrag","Запрос о модификации",{"$f":"Translation[[#Headers],[Other]]&TEXT(Translation[[#This Row],[Str№]],\"000\")","v":"Other016"}]
[null,null,null,null,17,"Designation","","Benennung","Назначение",{"$f":"Translation[[#Headers],[Other]]&TEXT(Translation[[#This Row],[Str№]],\"000\")","v":"Other017"}]
[null,null,null,null,18,"Order quantity","","Bestellnummer","Заказанное кол-во",{"$f":"Translation[[#Headers],[Other]]&TEXT(Translation[[#This Row],[Str№]],\"000\")","v":"Other018"}]
[null,null,null,null,19,"Delivery quantity","","Liefermenge","Поставленное кол-во",{"$f":"Translation[[#Headers],[Other]]&TEXT(Translation[[#This Row],[Str№]],\"000\")","v":"Other019"}]
[null,null,null,null,20,"/ Item data Hilti:","","/ Prüfobjektdaten Hilti:","/ Данные Hilti об изделии:",{"$f":"Translation[[#Headers],[Other]]&TEXT(Translation[[#This Row],[Str№]],\"000\")","v":"Other020"}]
[null,null,null,null,21,"/ Reason for inspection:","","/ Grund der Bemusterung in der Serie:","/ Причина контроля:",{"$f":"Translation[[#Headers],[Other]]&TEXT(Translation[[#This Row],[Str№]],\"000\")","v":"Other021"}]
[null,null,null,null,22,"New part","","Neuteil","Новая деталь",{"$f":"Translation[[#Headers],[Other]]&TEXT(Translation[[#This Row],[Str№]],\"000\")","v":"Other022"}]
[null,null,null,null,23,"Product change","","Produktänderung","Изменение изделия",{"$f":"Translation[[#Headers],[Other]]&TEXT(Translation[[#This Row],[Str№]],\"000\")","v":"Other023"}]
[null,null,null,null,24,"New sub-supplier","","Neuer Unterlieferant","Новый субпоставщик",{"$f":"Translation[[#Headers],[Other]]&TEXT(Translation[[#This Row],[Str№]],\"000\")","v":"Other024"}]
[null,null,null,null,25,"Change of production process","","Änderung Produktionsverfahren","Изменение производственного роцесса",{"$f":"Translation[[#Headers],[Other]]&TEXT(Translation[[#This Row],[Str№]],\"000\")","v":"Other025"}]
[null,null,null,null,26,"Relocation of production","","Produktionsverlagerung","Перемещение производства",{"$f":"Translation[[#Headers],[Other]]&TEXT(Translation[[#This Row],[Str№]],\"000\")","v":"Other026"}]
[null,null,null,null,27,"Long production interrupt","","Längere Fertigungsunterbrechung","Длительное прерывание производства",{"$f":"Translation[[#Headers],[Other]]&TEXT(Translation[[#This Row],[Str№]],\"000\")","v":"Other027"}]
[null,null,null,null,28,"Sampling pre-production / prototypes","","Bemusterung Vorserie / Prototypen","Выборочный контроль прототипов до серийного пр-ва",{"$f":"Translation[[#Headers],[Other]]&TEXT(Translation[[#This Row],[Str№]],\"000\")","v":"Other028"}]
[null,null,null,null,29,"First article inspection","","Erstmusterprüfung","Первые изелия новой линии",{"$f":"Translation[[#Headers],[Other]]&TEXT(Translation[[#This Row],[Str№]],\"000\")","v":"Other029"}]
[null,null,null,null,30,"/ Scope and extent of inspection:","","/ Art und Umfang der Bemusterung:","/ Охват и объём контроля:",{"$f":"Translation[[#Headers],[Other]]&TEXT(Translation[[#This Row],[Str№]],\"000\")","v":"Other030"}]
[null,null,null,null,31,"Cover sheet","","Deckblatt","Титульный лист",{"$f":"Translation[[#Headers],[Other]]&TEXT(Translation[[#This Row],[Str№]],\"000\")","v":"Other031"}]
[null,null,null,null,32,"Dimensional check","","Massprüfung (gestempelte Zeichnung)","Контроль размеров",{"$f":"Translation[[#Headers],[Other]]&TEXT(Translation[[#This Row],[Str№]],\"000\")","v":"Other032"}]
[null,null,null,null,33,"Inspection plan","","Prüfplan","План тестирования",{"$f":"Translation[[#Headers],[Other]]&TEXT(Translation[[#This Row],[Str№]],\"000\")","v":"Other033"}]
[null,null,null,null,34,"Process flow chart","","Prozessablaufdiagramm","Схема технологического процесса",{"$f":"Translation[[#Headers],[Other]]&TEXT(Translation[[#This Row],[Str№]],\"000\")","v":"Other034"}]
[null,null,null,null,35,"Material certificate","","Materialzertifikate","Сертификат на материалы",{"$f":"Translation[[#Headers],[Other]]&TEXT(Translation[[#This Row],[Str№]],\"000\")","v":"Other035"}]
[null,null,null,null,36,"Process Capability","","Prozessfähigkeitsnachweis","Возможности тех. Процесса",{"$f":"Translation[[#Headers],[Other]]&TEXT(Translation[[#This Row],[Str№]],\"000\")","v":"Other036"}]
[null,null,null,null,37,"Measurement capability","","Prüfmittelfähigkeitsnachweis","Способность измерения",{"$f":"Translation[[#Headers],[Other]]&TEXT(Translation[[#This Row],[Str№]],\"000\")","v":"Other037"}]
[null,null,null,null,38,"List of test equipment","","Prüfmittelliste","Перечень измерительного оборудования",{"$f":"Translation[[#Headers],[Other]]&TEXT(Translation[[#This Row],[Str№]],\"000\")","v":"Other038"}]
[null,null,null,null,39,"Material safety data sheet","","Sicherheitsdatenblatt","Паспорт безопасности материала",{"$f":"Translation[[#Headers],[Other]]&TEXT(Translation[[#This Row],[Str№]],\"000\")","v":"Other039"}]
[null,null,null,null,40,"Substances in purchased items","","Inhaltsstoffe in Zukaufteilen","Хим. в-ва в составе покупных изделий",{"$f":"Translation[[#Headers],[Other]]&TEXT(Translation[[#This Row],[Str№]],\"000\")","v":"Other040"}]
[null,null,null,null,41,"Sales packaging","","Verkaufsverpackung","Упаковка для продажи",{"$f":"Translation[[#Headers],[Other]]&TEXT(Translation[[#This Row],[Str№]],\"000\")","v":"Other041"}]
[null,null,null,null,42,"Transport packaging","","Transportverpackung","Упаковка для транспортировки",{"$f":"Translation[[#Headers],[Other]]&TEXT(Translation[[#This Row],[Str№]],\"000\")","v":"Other042"}]
[null,null,null,null,43,"Reliability test","","Zuverlässigkeitsprüfung","Испытание на надежность",{"$f":"Translation[[#Headers],[Other]]&TEXT(Translation[[#This Row],[Str№]],\"000\")","v":"Other043"}]
[null,null,null,null,44,"Approval / Test reports","","Zulassungen / Test Reports","Одобрение / Протоколы испытаний",{"$f":"Translation[[#Headers],[Other]]&TEXT(Translation[[#This Row],[Str№]],\"000\")","v":"Other044"}]
[null,null,null,null,45,"Other","","Sonstiges","Прочее",{"$f":"Translation[[#Headers],[Other]]&TEXT(Translation[[#This Row],[Str№]],\"000\")","v":"Other045"}]
[null,null,null,null,46,"/ Confirmation of the supplier:","","/ Bestätigung des Lieferanten:","/ Подтверждение поставщика:",{"$f":"Translation[[#Headers],[Other]]&TEXT(Translation[[#This Row],[Str№]],\"000\")","v":"Other046"}]
[null,null,null,null,47,"Requirements stated in Hilti Chemical Checklist (Version 8.5 06/2014) checked, not relevant, no further information required","","Anforderungen der Hilti Chemikalien Checkliste (Version 8.5 06/2014) geprüft: Nicht relevant, keine Angaben erforderlich","Требования, изложенные в Контрольном перечне хим. веществ Hilti (версия 8.5 06/2014), проверены, в данном случае не применимы, дальнейшей информации не требуется",{"$f":"Translation[[#Headers],[Other]]&TEXT(Translation[[#This Row],[Str№]],\"000\")","v":"Other047"}]
[null,null,null,null,48,"Requirements stated in Hilti Chemical Checklist (Version 8.5 06/2014) checked, substances included, further information provided","","Anforderungen der Hilti Chemikalien Checkliste (Version 8.5 06/2014) geprüft: Stoffe enthalten, notwendige Information angegeben","Требования, изложенные в Контрольном перечне хим. веществ Hilti (версия 8.5 06/2014), проверены, вещества включены, дополнительная информация предоставлена",{"$f":"Translation[[#Headers],[Other]]&TEXT(Translation[[#This Row],[Str№]],\"000\")","v":"Other048"}]
[null,null,null,null,49,"Link to Hilti Chemical Checklist","","Link zu Hilti Chemical Checklist","Ссылка на Контрольный перечень хим. веществ Hilti",{"$f":"Translation[[#Headers],[Other]]&TEXT(Translation[[#This Row],[Str№]],\"000\")","v":"Other049"}]
[null,null,null,null,50,"/ Name","","/ Name","/ Имя",{"$f":"Translation[[#Headers],[Other]]&TEXT(Translation[[#This Row],[Str№]],\"000\")","v":"Other050"}]
[null,null,null,null,51,"/ Department","","/ Abteilung","/ Отдел",{"$f":"Translation[[#Headers],[Other]]&TEXT(Translation[[#This Row],[Str№]],\"000\")","v":"Other051"}]
[null,null,null,null,52,"/ Phone","","/ Telefon-Nr.","/ Телефон",{"$f":"Translation[[#Headers],[Other]]&TEXT(Translation[[#This Row],[Str№]],\"000\")","v":"Other052"}]
[null,null,null,null,53,"/ E-mail","","/ E-Mail","/ Эл. Почта",{"$f":"Translation[[#Headers],[Other]]&TEXT(Translation[[#This Row],[Str№]],\"000\")","v":"Other053"}]
[null,null,null,null,54,"/ Remarks","","/ Bemerkungen","/ Примечания",{"$f":"Translation[[#Headers],[Other]]&TEXT(Translation[[#This Row],[Str№]],\"000\")","v":"Other054"}]
[null,null,null,null,55,"/ Date","","/ Datum","/ Дата",{"$f":"Translation[[#Headers],[Other]]&TEXT(Translation[[#This Row],[Str№]],\"000\")","v":"Other055"}]
[null,null,null,null,56,"/ Signature","","/ Unterschrift","/ Подпись",{"$f":"Translation[[#Headers],[Other]]&TEXT(Translation[[#This Row],[Str№]],\"000\")","v":"Other056"}]
[null,null,null,null,57,"/ Decision of Hilti","","/ Entscheidung Hilti:","/ Решение Hilti:",{"$f":"Translation[[#Headers],[Other]]&TEXT(Translation[[#This Row],[Str№]],\"000\")","v":"Other057"}]
[null,null,null,null,58,"Released","","frei","Выпуск разрешен",{"$f":"Translation[[#Headers],[Other]]&TEXT(Translation[[#This Row],[Str№]],\"000\")","v":"Other058"}]
[null,null,null,null,59,"Released with stipulations (waiver required)","","frei mit Auflagen (Prüfausnahme für Serie erforderlich)","Выпуск разрешен с условиями (необходимо одобрение на поставку)",{"$f":"Translation[[#Headers],[Other]]&TEXT(Translation[[#This Row],[Str№]],\"000\")","v":"Other059"}]
[null,null,null,null,60,"Rejected, re-sampling required","","abgelehnt, Nachbemusterung erforderlich ","Отказано, необходимо повторное тестирование образцов",{"$f":"Translation[[#Headers],[Other]]&TEXT(Translation[[#This Row],[Str№]],\"000\")","v":"Other060"}]
[null,null,null,null,61,"Total","","Gesamt","Всего",{"$f":"Translation[[#Headers],[Other]]&TEXT(Translation[[#This Row],[Str№]],\"000\")","v":"Other061"}]
[null,null,null,null,62,"According to scope and extent","","gemäss Art und Umfang","В зависимости от охвата и объема контроля",{"$f":"Translation[[#Headers],[Other]]&TEXT(Translation[[#This Row],[Str№]],\"000\")","v":"Other062"}]
[null,null,null,null,63,"Stamped drawing or specification for initial sample inspection","","Gestempelte Zeichnung bzw. Spezifikation für Erstbemusterung","Чертеж, заверенный инженером, или спецификация для контроля первичных образцов",{"$f":"Translation[[#Headers],[Other]]&TEXT(Translation[[#This Row],[Str№]],\"000\")","v":"Other063"}]
[null,null,null,null,64,"Please insert stamped drawing or specification here","","Bitte hier die gestempelte Zeichnung/Spezifikation reinkopieren","Пожалуйста, вставьте чертеж, заверенный инженером, или спецификацию сюда",{"$f":"Translation[[#Headers],[Other]]&TEXT(Translation[[#This Row],[Str№]],\"000\")","v":"Other064"}]
[null,null,null,null,65,"Inspection journal of initial sample inspection","","Prüfprotokoll für Erstbemusterung","Журнал контроля первичных образцов",{"$f":"Translation[[#Headers],[Other]]&TEXT(Translation[[#This Row],[Str№]],\"000\")","v":"Other065"}]
[null,null,null,null,66,"Data storage","","Ablage Daten","Хранение данных",{"$f":"Translation[[#Headers],[Other]]&TEXT(Translation[[#This Row],[Str№]],\"000\")","v":"Other066"}]
[null,null,null,null,67,"Reference samples","","Rücklagemuster","Контрольные образцы",{"$f":"Translation[[#Headers],[Other]]&TEXT(Translation[[#This Row],[Str№]],\"000\")","v":"Other067"}]
[null,null,null,null,68,"* LSL = Lower Specification Limit","","* USG = Untere Spezifikationsgrenze","* НУП = Нижний установленный предел",{"$f":"Translation[[#Headers],[Other]]&TEXT(Translation[[#This Row],[Str№]],\"000\")","v":"Other068"}]
[null,null,null,null,69,"* USL = Upper Specification Limit","","* OSG = Obere Spezifikationsgrenze","* ВУП = Верхний установленный предел",{"$f":"Translation[[#Headers],[Other]]&TEXT(Translation[[#This Row],[Str№]],\"000\")","v":"Other069"}]
[null,null,null,null,70,"Pos.","","Pos.","Позиция",{"$f":"Translation[[#Headers],[Other]]&TEXT(Translation[[#This Row],[Str№]],\"000\")","v":"Other070"}]
[null,null,null,null,71,"Feature","","Merkmal","Параметр",{"$f":"Translation[[#Headers],[Other]]&TEXT(Translation[[#This Row],[Str№]],\"000\")","v":"Other071"}]
[null,null,null,null,72,"Feat. Type","","Merkmal","Тип параметра",{"$f":"Translation[[#Headers],[Other]]&TEXT(Translation[[#This Row],[Str№]],\"000\")","v":"Other072"}]
[null,null,null,null,73,"Supplier Measuring method or equipment","","Lieferant Messmethode","Метод измерения / оборудование Поставщика",{"$f":"Translation[[#Headers],[Other]]&TEXT(Translation[[#This Row],[Str№]],\"000\")","v":"Other073"}]
[null,null,null,null,74,"Nominal value","","Nenn-mass","Номинал. значение",{"$f":"Translation[[#Headers],[Other]]&TEXT(Translation[[#This Row],[Str№]],\"000\")","v":"Other074"}]
[null,null,null,null,75,"Unit","","Einheit","Единицы измер.",{"$f":"Translation[[#Headers],[Other]]&TEXT(Translation[[#This Row],[Str№]],\"000\")","v":"Other075"}]
[null,null,null,null,76,"Tolerance","","Toleranz","Предел допуска",{"$f":"Translation[[#Headers],[Other]]&TEXT(Translation[[#This Row],[Str№]],\"000\")","v":"Other076"}]
[null,null,null,null,77,"Low. Tol.","","Unt. Tol.","Ниж. откл.",{"$f":"Translation[[#Headers],[Other]]&TEXT(Translation[[#This Row],[Str№]],\"000\")","v":"Other077"}]
[null,null,null,null,78,"Up. Tol.","","Ob. Tol.","Вер. откл.",{"$f":"Translation[[#Headers],[Other]]&TEXT(Translation[[#This Row],[Str№]],\"000\")","v":"Other078"}]
[null,null,null,null,79,"Spec. Limit","","Spez.-Grenze","Устан. предел",{"$f":"Translation[[#Headers],[Other]]&TEXT(Translation[[#This Row],[Str№]],\"000\")","v":"Other079"}]
[null,null,null,null,80,"LSL*","","USG*","НУП*",{"$f":"Translation[[#Headers],[Other]]&TEXT(Translation[[#This Row],[Str№]],\"000\")","v":"Other080"}]
[null,null,null,null,81,"USL*","","OSG*","ВУП*",{"$f":"Translation[[#Headers],[Other]]&TEXT(Translation[[#This Row],[Str№]],\"000\")","v":"Other081"}]
[null,null,null,null,82,"Measured values per part","","Messwerte pro Teil","Измеренные значения для каждого образца",{"$f":"Translation[[#Headers],[Other]]&TEXT(Translation[[#This Row],[Str№]],\"000\")","v":"Other082"}]
[null,null,null,null,83,"Process capability of initial sample inspection","","Prozessfähigkeiten Erstbemusterung","Возможности процесса контроля первичных образцов",{"$f":"Translation[[#Headers],[Other]]&TEXT(Translation[[#This Row],[Str№]],\"000\")","v":"Other083"}]
[null,null,null,null,84,"Link to Quality Capability Statistics For Suppliers","","Link zu Qualitätsfähigkeitskenngrössen für Lieferanten","Ссылка на \"Статистика возможн. обеспеч. качества поставщиков\"",{"$f":"Translation[[#Headers],[Other]]&TEXT(Translation[[#This Row],[Str№]],\"000\")","v":"Other084"}]
[null,null,null,null,85,"/ Details of supplier`s process capabilities","","/ Angaben des Lieferanten zur Prozessfähigkeit:","/ Данные поставщика о возможностях технологического процесса",{"$f":"Translation[[#Headers],[Other]]&TEXT(Translation[[#This Row],[Str№]],\"000\")","v":"Other085"}]
[null,null,null,null,86,"Indicator for a serial process which has not been verified as controlled yet","","Kennzahl eines Prozesses unter realen Bedingungen, von dem noch nicht nachgewiesen wurde, dass er beherrscht ist.","Индикатор серийного процесса, если еще не доказано, что он является конролируемым",{"$f":"Translation[[#Headers],[Other]]&TEXT(Translation[[#This Row],[Str№]],\"000\")","v":"Other086"}]
[null,null,null,null,87,"Indicator for a serial process which has been already verified as controlled","","Kennzahl eines Prozesses unter realen Bedingungen, von dem vorher nachgewiesen wurde, dass er beherrscht ist.","Индикатор серийного процесса, если доказано, что он является конролируемым",{"$f":"Translation[[#Headers],[Other]]&TEXT(Translation[[#This Row],[Str№]],\"000\")","v":"Other087"}]
[null,null,null,null,88,"Capability given","","Fähigkeit erfüllt","Выявленные возможности",{"$f":"Translation[[#Headers],[Other]]&TEXT(Translation[[#This Row],[Str№]],\"000\")","v":"Other088"}]
[null,null,null,null,89,"Yes","","ja","Да",{"$f":"Translation[[#Headers],[Other]]&TEXT(Translation[[#This Row],[Str№]],\"000\")","v":"Other089"}]
[null,null,null,null,90,"No","","nein","Нет",{"$f":"Translation[[#Headers],[Other]]&TEXT(Translation[[#This Row],[Str№]],\"000\")","v":"Other090"}]
[null,null,null,null,91,"Value","","Kennzahl","Значение",{"$f":"Translation[[#Headers],[Other]]&TEXT(Translation[[#This Row],[Str№]],\"000\")","v":"Other091"}]
[null,null,null,null,92,"Remarks","","Bemerkungen","Примечания",{"$f":"Translation[[#Headers],[Other]]&TEXT(Translation[[#This Row],[Str№]],\"000\")","v":"Other092"}]
[null,null,null,null,93,"Readme ISIR (Initial Sample Inspection Report)","","Readme EMPB (Erstmusterprüfbericht)","Описание ОКПО (Отчет о Контроле Первичных Образцов)",{"$f":"Translation[[#Headers],[Other]]&TEXT(Translation[[#This Row],[Str№]],\"000\")","v":"Other093"}]
[null,null,null,null,94,"Spreadsheet \"1_cover_sheet\"","","Tabellenblatt \"1_cover_sheet\" (Deckblatt)","Таблица \"1_cover_sheet\" (Титульный лист)",{"$f":"Translation[[#Headers],[Other]]&TEXT(Translation[[#This Row],[Str№]],\"000\")","v":"Other094"}]
[null,null,null,null,95,"(1) The cover sheet is the central document for defining the scope of the sampling under serial production conditions and documents the final decision of Hilti.\n\n(2) Hilti defines the product, as well as scope and extent of the inspection and sends the ISIR request to the supplier.\n\n(3) The supplier performs the inspection and completes gray colored fields, sign it and return the ISIR.\n\n(4) Hilti will check required documents and hardware. The decision of Hilti will be signed and returned to the supplier.\n\n(5) The special case of pre-production / prototype is not a classic ISIR, nevertheless the form can assist when documentation is required.","","(1) Das Deckblatt ist das zentrale Blatt zur Definition von Grund und Umfang der Bemusterung unter Serienbedingungen und dokumentiert die finale Entscheidung von Hilti.\n\n(2) Hilti definiert den Artikel, sowie Grund und Umfang der Bemusterung und sendet den EMPB an den Lieferanten.\n\n(3) Der Lieferant führt die Bemusterung durch und füllt alle graumarkierten Felder im Dokument aus und sendet den EMPB unterzeichnet zurück.\n\n(4) Hilti überprüft Dokumente bzw. Hardware. Die Entscheidung seitens Hilti wird unterzeichnet und dem Lieferanten übermittelt.\n\n(5)  Der Sonderfall Vorserie / Prototyp ist kein klassischer EMPB, das Formular kann aber bei Bedarf die Dokumentation unterstützen.","(1) Титульный лист является основным документом, определяющим охват выборочного контроля в условиях серийного производства и документирующим окончательное решение Hilti.\n\n(2) Hilti определяет изделие, а также охват и объём контроля и направляет запрос ОКПО поставщику.\n\n(3) Поставщик осуществляет контроль и заполняет поля серого цвета, подписывает и возвращает ОКПО.\n\n(4) Hilti проверяет требуемые документы и физические изделия, подписывает решение и возвращает его поставщику.\n\n(5) Выборочный контроль до начала серийного производства или контроль прототипов не являются типичными случаями ОКПО, тем не менее, бланк может быть использован, когда требуется такая документация.",{"$f":"Translation[[#Headers],[Other]]&TEXT(Translation[[#This Row],[Str№]],\"000\")","v":"Other095"}]
[null,null,null,null,96,"Spreadsheet \"2_specification\"","","Tabellenblatt \"2_specification\" (Spezifikation)","Таблица \"2_specification\" (Чертеж или спецификация)",{"$f":"Translation[[#Headers],[Other]]&TEXT(Translation[[#This Row],[Str№]],\"000\")","v":"Other096"}]
[null,null,null,null,97,"If not already specified by Hilti, the supplier can here list all features in a stamped drawing, which should refer to the \"3_inspection journal\".","","(1) Falls von Hilti nicht schon vorgegeben, kann der Lieferant hier alle Merkmale in einer gestempelten Zeichnung ausweisen, die Bezug auf das Prüfprotokoll nehmen sollen.","Поставщик может указать здесь все параметры, вставив заверенный инженером чертеж, относящийся к листу \"3_inspection_journal\", если это еще не было сделано Hilti.",{"$f":"Translation[[#Headers],[Other]]&TEXT(Translation[[#This Row],[Str№]],\"000\")","v":"Other097"}]
[null,null,null,null,98,"Spreadsheet \"3_inspection journal\"","","Tabellenblatt \"3_inspection_journal\" (Pruefprotokoll)","Таблица \"3_inspection_journal\" (Журнал контроля)",{"$f":"Translation[[#Headers],[Other]]&TEXT(Translation[[#This Row],[Str№]],\"000\")","v":"Other098"}]
[null,null,null,null,99,"(1) If the features have not been listed by Hilti, the supplier can here list all features and document the measured values.","","(1) Falls von Hilti die Merkmale nicht schon aufgelistet worden sind , kann der Lieferant hier alle Merkmale aufzählen und die gemessenen Werte dokumentieren.","(1) Поставщик может указать здесь все параметры и задокументировать измеренные значения, если параметры еще не указаны Hilti.",{"$f":"Translation[[#Headers],[Other]]&TEXT(Translation[[#This Row],[Str№]],\"000\")","v":"Other099"}]
[null,null,null,null,100,"Spreadsheet \"4_process capability\"","","Tabellenblatt \"4_process capability\" (Prozessfaehigkeit)","Таблица \"4_process capability\" (Возможности процесса)",{"$f":"Translation[[#Headers],[Other]]&TEXT(Translation[[#This Row],[Str№]],\"000\")","v":"Other100"}]
[null,null,null,null,101,"(1) If the features have not been listed by Hilti, the supplier can evaluate all the features regarding calculated process capabilities depending on the production phase.\n\n(2) The supplier shall calculate process capabilities for measured features based on the Hilti Guideline \"SCM 1.3 GL4_Quality Capability Statistics For Suppliers\". For more information, see also link in the spreadsheet.","","(1) Falls von Hilti die Merkmale nicht schon aufgelistet worden sind , kann der Lieferant hier alle Merkmale bezüglich der Prozessfähigkeiten in Abhängigkeit der Produktionsphase bewerten.\n\n(2) Der Lieferant soll die Fähigkeitskennzahlen für kontinuierliche Merkmale auf Basis der Hilti Richtlinie \"SCM-1.3-RL4_Ermittlung von Qualitätsfähigkeitskenngrössen\" ausweisen. Weiterführende Informationen, siehe auch Link im Tabellenblatt.","(1) Если параметры еще не указаны Hilti, поставщик может оценить все параметры, касающиеся расчетов возможностей технологического процесса в зависимости от производственной фазы.\n\n(2) Поставщик рассчитает возможности технологического процесса по измеренным параметрам, опираясь на Руководство Hilti \"SCM 1.3 GL4_Статистика возможностей обеспечения качества для поставщиков\". Чтобы получить дополнительную информацию, перейдите по ссылке на листе.",{"$f":"Translation[[#Headers],[Other]]&TEXT(Translation[[#This Row],[Str№]],\"000\")","v":"Other101"}]
[null,null,null,null,102,"HILTI Measuring method or equipment","","HILTI Messmethode","Метод измерения / оборудование HILTI",{"$f":"Translation[[#Headers],[Other]]&TEXT(Translation[[#This Row],[Str№]],\"000\")","v":"Other102"}]
[null,null,null,null,103,"Spreadsheet \"5_Measurement Report\"","","Tabellenblatt „5_Messbericht“","Электронная таблица \"5_Отчет об измерениях\"",{"$f":"Translation[[#Headers],[Other]]&TEXT(Translation[[#This Row],[Str№]],\"000\")","v":"Other103"}]
[null,null,null,null,104,"(1) The supplier shall list all features and  the measured values for calculating Cm and Cmk\n\n(2) The supplier shall calculate process capabilities for measured features based on the Hilti Guideline \"SCM 1.3 GL4_Quality Capability Statistics For Suppliers\".","","(1) Der Lieferant führt alle Merkmale und Messwerte zur Berechnung von Cm und Cmk auf\n\n(2) Der Lieferant berechnet die Prozessfähigkeiten für gemessene Merkmale auf Grundlage der Hilti Richtlinie „SCM 1.3 GL4_Quality Capability Statistics For Suppliers“.","(1) Поставщик должен перечислить все характеристики и измеренные значения для расчета Cm и Cmk.\n\n(2) Поставщик должен рассчитать возможности процесса для измеренных характеристик на основе Руководства Hilti «SCM 1.3 GL4_Статистика возможностей качества для поставщиков».",{"$f":"Translation[[#Headers],[Other]]&TEXT(Translation[[#This Row],[Str№]],\"000\")","v":"Other104"}]
[null,null,null,null,105,"Lot No","","\nLos Nr","Много не",{"$f":"Translation[[#Headers],[Other]]&TEXT(Translation[[#This Row],[Str№]],\"000\")","v":"Other105"}]
[null,null,null,null,106,"Item Description","","Artikelbeschreibung","описание товара",{"$f":"Translation[[#Headers],[Other]]&TEXT(Translation[[#This Row],[Str№]],\"000\")","v":"Other106"}]
[null,null,null,null,107,"PO No/ Receipt No","","Bestell-Nr./Quittungs-Nr","№ заказа/ квитанции",{"$f":"Translation[[#Headers],[Other]]&TEXT(Translation[[#This Row],[Str№]],\"000\")","v":"Other107"}]
[null,null,null,null,108,"Status/ Process","","Status/Prozess","Статус/Процесс",{"$f":"Translation[[#Headers],[Other]]&TEXT(Translation[[#This Row],[Str№]],\"000\")","v":"Other108"}]
[null,null,null,null,109,"Lot Quantity","","Losmenge","Количество лотов",{"$f":"Translation[[#Headers],[Other]]&TEXT(Translation[[#This Row],[Str№]],\"000\")","v":"Other109"}]
[null,null,null,null,110,"Manufacturer","","Hersteller","Производитель",{"$f":"Translation[[#Headers],[Other]]&TEXT(Translation[[#This Row],[Str№]],\"000\")","v":"Other110"}]
[null,null,null,null,111,"Receipt Date","","Eingangsdatum","Дата чека",{"$f":"Translation[[#Headers],[Other]]&TEXT(Translation[[#This Row],[Str№]],\"000\")","v":"Other111"}]
[null,null,null,null,112,"Gauge ","","Messgerät","Измерять",{"$f":"Translation[[#Headers],[Other]]&TEXT(Translation[[#This Row],[Str№]],\"000\")","v":"Other112"}]
[null,null,null,null,113,"Class","","\nKlasse","Класс",{"$f":"Translation[[#Headers],[Other]]&TEXT(Translation[[#This Row],[Str№]],\"000\")","v":"Other113"}]
[null,null,null,null,114,"Max. Value","","max. Wert","Максимум. Ценность",{"$f":"Translation[[#Headers],[Other]]&TEXT(Translation[[#This Row],[Str№]],\"000\")","v":"Other114"}]
[null,null,null,null,115,"Min. Value","","Mindest. Wert","Мин. Ценность",{"$f":"Translation[[#Headers],[Other]]&TEXT(Translation[[#This Row],[Str№]],\"000\")","v":"Other115"}]
[null,null,null,null,116,"Average Value","","Durchschnittswert","Средняя стоимость",{"$f":"Translation[[#Headers],[Other]]&TEXT(Translation[[#This Row],[Str№]],\"000\")","v":"Other116"}]
[null,null,null,null,117,"Stand. Dev. d","","Stand. Entwickler d","Стоять. Дев. Г",{"$f":"Translation[[#Headers],[Other]]&TEXT(Translation[[#This Row],[Str№]],\"000\")","v":"Other117"}]
[null,null,null,null,118,"Cm-Value \n(norm. distr.)","","\"Cm-Wert\n(Normverteilung)\"","\"См-значение\n(норм. распр.)\"",{"$f":"Translation[[#Headers],[Other]]&TEXT(Translation[[#This Row],[Str№]],\"000\")","v":"Other118"}]
[null,null,null,null,119,"Cmk-Value \n(norm. distr.)","","\"Cmk-Wert\n(Normverteilung)\"","\"Cmk-значение\n(норм. распр.)\"",{"$f":"Translation[[#Headers],[Other]]&TEXT(Translation[[#This Row],[Str№]],\"000\")","v":"Other119"}]
[null,null,null,null,120,"Inspector Signature ","","Unterschrift des Inspektors","\nПодпись инспектора",{"$f":"Translation[[#Headers],[Other]]&TEXT(Translation[[#This Row],[Str№]],\"000\")","v":"Other120"}]
[null,null,null,null,121,"Supervisor Signature","","Unterschrift des Vorgesetzten","Подпись супервайзера",{"$f":"Translation[[#Headers],[Other]]&TEXT(Translation[[#This Row],[Str№]],\"000\")","v":"Other121"}]

{"sheet":"readme_1st","index":1,"n_rows":89,"n_cols":49,"rows_kept":89,"cut":false,"hidden":false,"merged":[[87,1,87,28],[87,30,87,56],[88,1,106,13],[88,30,106,42],[1,48,1,55],[3,30,3,56],[3,1,3,28],[4,30,22,44],[4,1,22,16],[67,30,85,42],[24,30,24,56],[25,30,29,56],[45,1,45,28],[24,1,24,28],[25,1,29,28],[46,1,50,28],[67,1,85,13],[66,1,66,28],[66,30,66,56],[45,30,45,56],[46,30,50,56]]}
[]
[null,"Readme ISIR (Initial Sample Inspection Report)",null,null,null,null,null,null,null,null,null,null,null,null,null,null,null,null,null,null,null,null,null,null,null,null,null,null,null,null,null,null,null,null,null,null,null,null,null,null,null,null,null,null,null,null,null,"Additional language:","English only"]
[null,{"$f":"VLOOKUP(93,Translation[],VLOOKUP(SecondLang,LangTable[],2,FALSE)+2,FALSE)","v":""}]
[null,"Spreadsheet \"1_cover_sheet\"",null,null,null,null,null,null,null,null,null,null,null,null,null,null,null,null,null,null,null,null,null,null,null,null,null,null,null,null,{"$f":"VLOOKUP(94,Translation[],VLOOKUP(SecondLang,LangTable[],2,FALSE)+2,FALSE)","v":""}]
[null,"(1) The cover sheet is the central document for defining the scope of the sampling under serial production conditions and documents the final decision of Hilti.\n\n(2) Hilti defines the product, as well as scope and extent of the inspection and sends the ISIR request to the supplier.\n\n(3) The supplier performs the inspection and completes gray colored fields, sign it and return the ISIR.\n\n(4) Hilti will check required documents and hardware. The decision of Hilti will be signed and returned to the supplier.\n\n(5) The special case of pre-production / prototype is not a classic ISIR, nevertheless the form can assist when documentation is required.",null,null,null,null,null,null,null,null,null,null,null,null,null,null,null,null,null,null,null,null,null,null,null,null,null,null,null,null,{"$f":"VLOOKUP(95,Translation[],VLOOKUP(SecondLang,LangTable[],2,FALSE)+2,FALSE)","v":""}]
[]
[]
[]
[]
[]
[]
[]
[]
[]
[]
[]
[]
[]
[]
[]
[]
[]
[]
[]
[null,"Spreadsheet \"2_specification\"",null,null,null,null,null,null,null,null,null,null,null,null,null,null,null,null,null,null,null,null,null,null,null,null,null,null,null,null,{"$f":"VLOOKUP(96,Translation[],VLOOKUP(SecondLang,LangTable[],2,FALSE)+2,FALSE)","v":""}]
[null,"If not already specified by Hilti, the supplier can here list all features in a stamped drawing, which should refer to the \"3_inspection journal\".",null,null,null,null,null,null,null,null,null,null,null,null,null,null,null,null,null,null,null,null,null,null,null,null,null,null,null,null,{"$f":"VLOOKUP(97,Translation[],VLOOKUP(SecondLang,LangTable[],2,FALSE)+2,FALSE)","v":""}]
[]
[]
[]
[]
[]
[]
[]
[]
[]
[]
[]
[]
[]
[]
[]
[]
[]
[]
[]
[null,"Spreadsheet \"3_Initial Sample Inspection\"",null,null,null,null,null,null,null,null,null,null,null,null,null,null,null,null,null,null,null,null,null,null,null,null,null,null,null,null,{"$f":"VLOOKUP(98,Translation[],VLOOKUP(SecondLang,LangTable[],2,FALSE)+2,FALSE)","v":""}]
[null,"(1) If the features have not been listed by Hilti, the supplier can here list all features and document the measured values.",null,null,null,null,null,null,null,null,null,null,null,null,null,null,null,null,null,null,null,null,null,null,null,null,null,null,null,null,{"$f":"VLOOKUP(99,Translation[],VLOOKUP(SecondLang,LangTable[],2,FALSE)+2,FALSE)","v":""}]
[]
[]
[]
[]
[]
[]
[]
[]
[]
[]
[]
[]
[]
[]
[]
[]
[]
[]
[]
[null,"Spreadsheet \"4_process capability\"",null,null,null,null,null,null,null,null,null,null,null,null,null,null,null,null,null,null,null,null,null,null,null,null,null,null,null,null,{"$f":"VLOOKUP(100,Translation[],VLOOKUP(SecondLang,LangTable[],2,FALSE)+2,FALSE)","v":""}]
[null,"(1) If the features have not been listed by Hilti, the supplier can evaluate all the features regarding calculated process capabilities depending on the production phase.\n\n(2) The supplier shall calculate process capabilities for measured features based on the Hilti Guideline \"SCM 1.3 GL4_Quality Capability Statistics For Suppliers\". For more information, see also link in the spreadsheet.",null,null,null,null,null,null,null,null,null,null,null,null,null,null,null,null,null,null,null,null,null,null,null,null,null,null,null,null,{"$f":"VLOOKUP(101,Translation[],VLOOKUP(SecondLang,LangTable[],2,FALSE)+2,FALSE)","v":""}]
[]
[]
[]
[]
[]
[]
[]
[]
[]
[]
[]
[]
[]
[]
[]
[]
[]
[]
[]
[null,"Spreadsheet \"5_Measurement Report\"",null,null,null,null,null,null,null,null,null,null,null,null,null,null,null,null,null,null,null,null,null,null,null,null,null,null,null,null,{"$f":"VLOOKUP(103,Translation[],VLOOKUP(SecondLang,LangTable[],2,FALSE)+2,FALSE)","v":""}]
[null,"(1) The supplier shall list all features and  the measured values for calculating Cm and Cmk\n\n(2) The supplier shall calculate process capabilities for measured features based on the Hilti Guideline \"SCM 1.3 GL4_Quality Capability Statistics For Suppliers\".",null,null,null,null,null,null,null,null,null,null,null,null,null,null,null,null,null,null,null,null,null,null,null,null,null,null,null,null,{"$f":"VLOOKUP(104,Translation[],VLOOKUP(SecondLang,LangTable[],2,FALSE)+2,FALSE)","v":""}]

{"sheet":"1_cover_sheet","index":2,"n_rows":83,"n_cols":40,"rows_kept":83,"cut":false,"hidden":false,"merged":[[73,1,73,20],[74,1,74,20],[72,1,72,20],[80,5,81,20],[76,21,82,39],[3,29,4,39],[5,29,6,39],[6,21,6,28],[7,21,7,28],[7,29,8,39],[8,21,8,28],[3,21,3,28],[4,21,4,28],[5,21,5,28],[17,27,18,32],[17,33,18,33],[17,34,18,39],[18,21,18,26],[18,1,18,6],[17,1,17,6],[17,21,17,26],[17,7,18,12],[17,13,18,13],[17,14,18,19],[19,34,20,39],[20,1,20,6],[20,21,20,26],[21,1,21,6],[21,7,22,19],[21,21,21,26],[21,27,22,39],[22,1,22,6],[22,21,22,26],[19,7,20,12],[19,13,20,13],[19,14,20,19],[19,27,20,32],[19,33,20,33],[19,21,19,26],[19,1,19,6],[23,1,23,6],[23,7,24,19],[23,21,23,26],[23,27,24,39],[24,1,24,6],[24,21,24,26],[71,1,71,20],[58,21,64,39],[62,5,63,20],[66,21,66,24],[66,25,66,39],[67,21,67,24],[67,25,67,39],[1,1,2,39],[68,21,68,24],[69,1,69,20],[70,1,70,20],[27,1,27,6],[27,7,28,19],[27,21,27,26],[27,27,28,39],[28,1,28,6],[28,21,28,26],[25,1,25,6],[25,7,26,19],[25,21,25,26],[25,27,26,39],[26,1,26,6],[26,21,26,26]]}
[]
[null,"Initial Sample Inspection Report\nVersion 4"]
[]
[null,"1 Cover sheet ISIR (Initial Sample Inspection Report) ",null,null,null,null,null,null,null,null,null,null,null,null,null,null,null,null,null,null,null,"Last author",null,null,null,null,null,null,null,"Wolf, Joachim"]
[null,{"$f":"VLOOKUP(1,Translation[],VLOOKUP(SecondLang,LangTable[],2,FALSE)+2,FALSE)","v":""},null,null,null,null,null,null,null,null,null,null,null,null,null,null,null,null,null,null,null,{"$f":"VLOOKUP(4,Translation[],VLOOKUP(SecondLang,LangTable[],2,FALSE)+2,FALSE)","v":""}]
[null,"Light brown colored cells must be completed by supplier!",null,null,null,null,null,null,null,null,null,null,null,null,null,null,null,null,null,null,null,"Last save time",null,null,null,null,null,null,null,"2025-01-15T10:41:17"]
[null,{"$f":"VLOOKUP(2,Translation[],VLOOKUP(SecondLang,LangTable[],2,FALSE)+2,FALSE)","v":""},null,null,null,null,null,null,null,null,null,null,null,null,null,null,null,null,null,null,null,{"$f":"VLOOKUP(5,Translation[],VLOOKUP(SecondLang,LangTable[],2,FALSE)+2,FALSE)","v":""}]
[null,"Link to Hilti Download Service",null,null,null,null,null,null,null,null,null,null,null,null,null,null,null,null,null,null,null,"Report Number"]
[null,{"$f":"VLOOKUP(3,Translation[],VLOOKUP(SecondLang,LangTable[],2,FALSE)+2,FALSE)","v":""},null,null,null,null,null,null,null,null,null,null,null,null,null,null,null,null,null,null,null,{"$f":"VLOOKUP(6,Translation[],VLOOKUP(SecondLang,LangTable[],2,FALSE)+2,FALSE)","v":""}]
[]
[null,"Supplier",null,null,{"$f":"VLOOKUP(7,Translation[],VLOOKUP(SecondLang,LangTable[],2,FALSE)+2,FALSE)","v":""},null,null,null,null,null,null,null,null,null,null,null,null,null,null,null,null,"Hilti"]
[null,"[Company Name]",null,null,null,null,{"$f":"VLOOKUP(8,Translation[#Data],VLOOKUP(SecondLang,LangTable[#Data],2,FALSE)+2,FALSE)","v":""},null,null,null,null,null,null,null,null,null,null,null,null,null,null,"Hilti Aktiengesellschaft"]
[null,"[Street, Number]",null,null,null,null,{"$f":"VLOOKUP(9,Translation[#Data],VLOOKUP(SecondLang,LangTable[#Data],2,FALSE)+2,FALSE)","v":""},null,null,null,null,null,null,null,null,null,null,null,null,null,null,"Feldkircherstrasse 100  |  P.O.Box 333"]
[null,"[Postal Code]",null,null,null,{"$f":"VLOOKUP(10,Translation[#Data],VLOOKUP(SecondLang,LangTable[#Data],2,FALSE)+2,FALSE)","v":""},null,null,null,null,"[City]",null,{"$f":"VLOOKUP(12,Translation[#Data],VLOOKUP(SecondLang,LangTable[#Data],2,FALSE)+2,FALSE)","v":""},null,null,null,null,null,null,null,null,"FL-9494",null,null,null,"Schaan"]
[null,"[Country]",null,null,{"$f":"VLOOKUP(11,Translation[#Data],VLOOKUP(SecondLang,LangTable[#Data],2,FALSE)+2,FALSE)","v":""},null,null,null,null,null,null,null,null,null,null,null,null,null,null,null,null,"Principality of Liechtenstein"]
[]
[null,"Item data supplier",null,null,null,null,null,{"$f":"VLOOKUP(13,Translation[],VLOOKUP(SecondLang,LangTable[],2,FALSE)+2,FALSE)","v":""},null,null,null,null,null,null,null,null,null,null,null,null,null,"Item data Hilti",null,null,null,{"$f":"VLOOKUP(20,Translation[],VLOOKUP(SecondLang,LangTable[],2,FALSE)+2,FALSE)","v":""}]
[null,"Material No. / Rev.:",null,null,null,null,null,null,null,null,null,null,null,"/",null,null,null,null,null,null,null,"Material No. / Rev.:",null,null,null,null,null,null,null,null,null,null,null,"/"]
[null,{"$f":"VLOOKUP(14,Translation[],VLOOKUP(SecondLang,LangTable[],2,FALSE)+2,FALSE)","v":""},null,null,null,null,null,null,null,null,null,null,null,null,null,null,null,null,null,null,null,{"$f":"B19","v":""}]
[null,"Doc. No.: / Vers.:",null,null,null,null,null,null,null,null,null,null,null,"/",null,null,null,null,null,null,null,"Doc. No.: / Vers.:",null,null,null,null,null,null,null,null,null,null,null,"/"]
[null,{"$f":"VLOOKUP(15,Translation[],VLOOKUP(SecondLang,LangTable[],2,FALSE)+2,FALSE)","v":""},null,null,null,null,null,null,null,null,null,null,null,null,null,null,null,null,null,null,null,{"$f":"B21","v":""}]
[null,"Change request:",null,null,null,null,null,null,null,null,null,null,null,null,null,null,null,null,null,null,null,"Change request:"]
[null,{"$f":"VLOOKUP(16,Translation[],VLOOKUP(SecondLang,LangTable[],2,FALSE)+2,FALSE)","v":""},null,null,null,null,null,null,null,null,null,null,null,null,null,null,null,null,null,null,null,{"$f":"B23","v":""}]
[null,"Designation:",null,null,null,null,null,null,null,null,null,null,null,null,null,null,null,null,null,null,null,"Designation:"]
[null,{"$f":"VLOOKUP(17,Translation[],VLOOKUP(SecondLang,LangTable[],2,FALSE)+2,FALSE)","v":""},null,null,null,null,null,null,null,null,null,null,null,null,null,null,null,null,null,null,null,{"$f":"B25","v":""}]
[null,"Order quantity:",null,null,null,null,null,null,null,null,null,null,null,null,null,null,null,null,null,null,null,"Order quantity:"]
[null,{"$f":"VLOOKUP(18,Translation[],VLOOKUP(SecondLang,LangTable[],2,FALSE)+2,FALSE)","v":""},null,null,null,null,null,null,null,null,null,null,null,null,null,null,null,null,null,null,null,{"$f":"B27","v":""}]
[null,"Delivery quantity:",null,null,null,null,null,null,null,null,null,null,null,null,null,null,null,null,null,null,null,"Delivery quantity:"]
[null,{"$f":"VLOOKUP(19,Translation[],VLOOKUP(SecondLang,LangTable[],2,FALSE)+2,FALSE)","v":""},null,null,null,null,null,null,null,null,null,null,null,null,null,null,null,null,null,null,null,{"$f":"B29","v":""}]
[]
[null,"Reason for inspection",null,null,null,null,null,{"$f":"VLOOKUP(21,Translation[],VLOOKUP(SecondLang,LangTable[],2,FALSE)+2,FALSE)","v":""}]
[null,null,"New part",null,null,null,null,null,null,null,null,null,null,null,null,"Change of production process",null,null,null,null,null,null,null,null,null,null,null,null,"Sampling pre-production / prototypes"]
[null,null,{"$f":"VLOOKUP(22,Translation[],VLOOKUP(SecondLang,LangTable[],2,FALSE)+2,FALSE)","v":""},null,null,null,null,null,null,null,null,null,null,null,null,{"$f":"VLOOKUP(25,Translation[],VLOOKUP(SecondLang,LangTable[],2,FALSE)+2,FALSE)","v":""},null,null,null,null,null,null,null,null,null,null,null,null,{"$f":"VLOOKUP(28,Translation[],VLOOKUP(SecondLang,LangTable[],2,FALSE)+2,FALSE)","v":""}]
[null,null,"Product change",null,null,null,null,null,null,null,null,null,null,null,null,"Relocation of production",null,null,null,null,null,null,null,null,null,null,null,null,"First parts out of the series production tool"]
[null,null,{"$f":"VLOOKUP(23,Translation[],VLOOKUP(SecondLang,LangTable[],2,FALSE)+2,FALSE)","v":""},null,null,null,null,null,null,null,null,null,null,null,null,{"$f":"VLOOKUP(26,Translation[],VLOOKUP(SecondLang,LangTable[],2,FALSE)+2,FALSE)","v":""},null,null,null,null,null,null,null,null,null,null,null,null,{"$f":"VLOOKUP(29,Translation[],VLOOKUP(SecondLang,LangTable[],2,FALSE)+2,FALSE)","v":""}]
[null,null,"New sub-supplier",null,null,null,null,null,null,null,null,null,null,null,null,"Long production interrupt"]
[null,null,{"$f":"VLOOKUP(24,Translation[],VLOOKUP(SecondLang,LangTable[],2,FALSE)+2,FALSE)","v":""},null,null,null,null,null,null,null,null,null,null,null,null,{"$f":"VLOOKUP(27,Translation[],VLOOKUP(SecondLang,LangTable[],2,FALSE)+2,FALSE)","v":""}]
[]
[null,"Scope and extent of inspection",null,null,null,null,null,null,null,{"$f":"VLOOKUP(30,Translation[],VLOOKUP(SecondLang,LangTable[],2,FALSE)+2,FALSE)","v":""}]
[null,null,"01 Cover sheet",null,null,null,null,null,null,null,null,null,null,null,null,"06 Process Capability",null,null,null,null,null,null,null,null,null,null,null,null,"11 Sales packaging"]
[null,null,null,{"$f":"VLOOKUP(31,Translation[],VLOOKUP(SecondLang,LangTable[],2,FALSE)+2,FALSE)","v":""},null,null,null,null,null,null,null,null,null,null,null,null,{"$f":"VLOOKUP(36,Translation[],VLOOKUP(SecondLang,LangTable[],2,FALSE)+2,FALSE)","v":""},null,null,null,null,null,null,null,null,null,null,null,null,{"$f":"VLOOKUP(41,Translation[],VLOOKUP(SecondLang,LangTable[],2,FALSE)+2,FALSE)","v":""}]
[null,null,"02 Dimensional check",null,null,null,null,null,null,null,null,null,null,null,null,"07 Measurement capability",null,null,null,null,null,null,null,null,null,null,null,null,"12 Transport packaging"]
[null,null,null,{"$f":"VLOOKUP(32,Translation[],VLOOKUP(SecondLang,LangTable[],2,FALSE)+2,FALSE)","v":""},null,null,null,null,null,null,null,null,null,null,null,null,{"$f":"VLOOKUP(37,Translation[],VLOOKUP(SecondLang,LangTable[],2,FALSE)+2,FALSE)","v":""},null,null,null,null,null,null,null,null,null,null,null,null,{"$f":"VLOOKUP(42,Translation[],VLOOKUP(SecondLang,LangTable[],2,FALSE)+2,FALSE)","v":""}]
[null,null,"03 Inspection plan",null,null,null,null,null,null,null,null,null,null,null,null,"08 List of test equipment",null,null,null,null,null,null,null,null,null,null,null,null,"13 Reliability test"]
[null,null,null,{"$f":"VLOOKUP(33,Translation[],VLOOKUP(SecondLang,LangTable[],2,FALSE)+2,FALSE)","v":""},null,null,null,null,null,null,null,null,null,null,null,null,{"$f":"VLOOKUP(38,Translation[],VLOOKUP(SecondLang,LangTable[],2,FALSE)+2,FALSE)","v":""},null,null,null,null,null,null,null,null,null,null,null,null,{"$f":"VLOOKUP(43,Translation[],VLOOKUP(SecondLang,LangTable[],2,FALSE)+2,FALSE)","v":""}]
[null,null,"04 Process flow chart",null,null,null,null,null,null,null,null,null,null,null,null,"09 Material safety data sheet",null,null,null,null,null,null,null,null,null,null,null,null,"14 Approval / Test reports"]
[null,null,null,{"$f":"VLOOKUP(34,Translation[],VLOOKUP(SecondLang,LangTable[],2,FALSE)+2,FALSE)","v":""},null,null,null,null,null,null,null,null,null,null,null,null,{"$f":"VLOOKUP(39,Translation[],VLOOKUP(SecondLang,LangTable[],2,FALSE)+2,FALSE)","v":""},null,null,null,null,null,null,null,null,null,null,null,null,{"$f":"VLOOKUP(44,Translation[],VLOOKUP(SecondLang,LangTable[],2,FALSE)+2,FALSE)","v":""}]
[null,null,"05 Material certificate",null,null,null,null,null,null,null,null,null,null,null,null,"10 Substances in purchased items",null,null,null,null,null,null,null,null,null,null,null,null,"15 Other"]
[null,null,null,{"$f":"VLOOKUP(35,Translation[],VLOOKUP(SecondLang,LangTable[],2,FALSE)+2,FALSE)","v":""},null,null,null,null,null,null,null,null,null,null,null,null,{"$f":"VLOOKUP(40,Translation[],VLOOKUP(SecondLang,LangTable[],2,FALSE)+2,FALSE)","v":""},null,null,null,null,null,null,null,null,null,null,null,null,{"$f":"VLOOKUP(45,Translation[],VLOOKUP(SecondLang,LangTable[],2,FALSE)+2,FALSE)","v":""}]
[]
[null,"Confirmation of the supplier",null,null,null,null,null,null,{"$f":"VLOOKUP(46,Translation[],VLOOKUP(SecondLang,LangTable[],2,FALSE)+2,FALSE)","v":""}]
[]
[null,null,{"$f":"VLOOKUP(47,Translation[],VLOOKUP(SecondLang,LangTable[],2,FALSE)+2,FALSE)","v":""}]
[null,null,"Requirements stated in Hilti Chemical Checklist (Version 8.5 06/2014) checked, substances included, further information provided"]
[null,null,{"$f":"VLOOKUP(48,Translation[],VLOOKUP(SecondLang,LangTable[],2,FALSE)+2,FALSE)","v":""}]
[null,"Link to Hilti Chemical Checklist"]
[null,{"$f":"VLOOKUP(49,Translation[],VLOOKUP(SecondLang,LangTable[],2,FALSE)+2,FALSE)","v":""}]
[null,"Name",null,{"$f":"VLOOKUP(50,Translation[],VLOOKUP(SecondLang,LangTable[],2,FALSE)+2,FALSE)","v":""},null,null,null,null,null,null,null,null,null,null,null,null,null,null,null,null,null,"Remarks",null,null,{"$f":"VLOOKUP(54,Translation[],VLOOKUP(SecondLang,LangTable[],2,FALSE)+2,FALSE)","v":""}]
[null,"Department",null,null,{"$f":"VLOOKUP(51,Translation[],VLOOKUP(SecondLang,LangTable[],2,FALSE)+2,FALSE)","v":""}]
[null,"Phone",null,{"$f":"VLOOKUP(52,Translation[],VLOOKUP(SecondLang,LangTable[],2,FALSE)+2,FALSE)","v":""}]
[null,"E-mail",null,{"$f":"VLOOKUP(53,Translation[],VLOOKUP(SecondLang,LangTable[],2,FALSE)+2,FALSE)","v":""}]
[]
[]
[]
[null,null,null,null,null,"Date",null,{"$f":"VLOOKUP(55,Translation[],VLOOKUP(SecondLang,LangTable[],2,FALSE)+2,FALSE)","v":""},null,null,null,"Signature",null,null,{"$f":"VLOOKUP(56,Translation[],VLOOKUP(SecondLang,LangTable[],2,FALSE)+2,FALSE)","v":""}]
[]
[null,"Decision of Hilti",null,null,null,{"$f":"VLOOKUP(57,Translation[],VLOOKUP(SecondLang,LangTable[],2,FALSE)+2,FALSE)","v":""},null,null,null,null,null,null,null,null,null,null,null,null,null,null,null,"Total",null,null,null,"According to scope and extent"]
[null,null,null,null,null,null,null,null,null,null,null,null,null,null,null,null,null,null,null,null,null,{"$f":"VLOOKUP(61,Translation[],VLOOKUP(SecondLang,LangTable[],2,FALSE)+2,FALSE)","v":""},null,null,null,{"$f":"VLOOKUP(62,Translation[],VLOOKUP(SecondLang,LangTable[],2,FALSE)+2,FALSE)","v":""}]
[null,null,null,null,null,null,null,null,null,null,null,null,null,null,null,null,null,null,null,null,null,null,null,null,null,1,2,3,4,5,6,7,8,9,10,11,12,13,14,15]
[null,"Released"]
[null,{"$f":"VLOOKUP(58,Translation[],VLOOKUP(SecondLang,LangTable[],2,FALSE)+2,FALSE)","v":""}]
[null,"Released with stipulations (waiver required)"]
[null,{"$f":"VLOOKUP(59,Translation[],VLOOKUP(SecondLang,LangTable[],2,FALSE)+2,FALSE)","v":""}]
[null,"Rejected, re-sampling required"]
[null,{"$f":"VLOOKUP(60,Translation[],VLOOKUP(SecondLang,LangTable[],2,FALSE)+2,FALSE)","v":""}]
[null,"Name",null,{"$f":"VLOOKUP(50,Translation[],VLOOKUP(SecondLang,LangTable[],2,FALSE)+2,FALSE)","v":""},null,null,null,null,null,null,null,null,null,null,null,null,null,null,null,null,null,"Remarks",null,null,{"$f":"VLOOKUP(54,Translation[],VLOOKUP(SecondLang,LangTable[],2,FALSE)+2,FALSE)","v":""}]
[null,"Department",null,null,{"$f":"VLOOKUP(51,Translation[],VLOOKUP(SecondLang,LangTable[],2,FALSE)+2,FALSE)","v":""}]
[null,"Phone",null,{"$f":"VLOOKUP(52,Translation[],VLOOKUP(SecondLang,LangTable[],2,FALSE)+2,FALSE)","v":""}]
[null,"E-mail",null,{"$f":"VLOOKUP(53,Translation[],VLOOKUP(SecondLang,LangTable[],2,FALSE)+2,FALSE)","v":""}]
[]
[]
[]
[null,null,null,null,null,"Date",null,{"$f":"VLOOKUP(55,Translation[],VLOOKUP(SecondLang,LangTable[],2,FALSE)+2,FALSE)","v":""},null,null,null,"Signature",null,null,{"$f":"VLOOKUP(56,Translation[],VLOOKUP(SecondLang,LangTable[],2,FALSE)+2,FALSE)","v":""}]

{"sheet":"2_specification","index":3,"n_rows":24,"n_cols":42,"rows_kept":24,"cut":false,"hidden":false,"merged":[[2,41,3,61],[22,1,22,61],[23,1,23,61],[1,1,1,61]]}
[]
[null,"Specification"]
[null,"2 Stamped drawing or specification for initial sample inspection",null,null,null,null,null,null,null,null,null,null,null,null,null,null,null,null,null,null,null,null,null,null,null,null,null,null,null,null,null,null,null,null,null,null,null,null,null,null,{"$f":"'1_cover_sheet'!V6","v":"Last save time"},{"$f":"IF('1_cover_sheet'!AD6=\"\",\"\",'1_cover_sheet'!AD6)","v":"2025-01-15T10:41:17"}]
[null,null,{"$f":"VLOOKUP(63,Translation[],VLOOKUP(SecondLang,LangTable[],2,FALSE)+2,FALSE)","v":""},null,null,null,null,null,null,null,null,null,null,null,null,null,null,null,null,null,null,null,null,null,null,null,null,null,null,null,null,null,null,null,null,null,null,null,null,null,{"$f":"'1_cover_sheet'!V7","v":""}]
[]
[]
[]
[]
[]
[]
[]
[]
[]
[]
[]
[]
[]
[]
[]
[]
[]
[]
[null,"Please insert stamped drawing or specification here"]
[null,{"$f":"VLOOKUP(64,Translation[],VLOOKUP(SecondLang,LangTable[],2,FALSE)+2,FALSE)","v":""}]

{"sheet":"3_Initial Sample Inspection","index":4,"n_rows":338,"n_cols":23,"rows_kept":338,"cut":false,"hidden":false,"merged":[[1,1,1,21],[22,3,23,6],[16,5,17,5],[18,5,19,5],[16,3,17,4],[18,3,19,4],[20,3,21,6],[16,6,17,6],[18,6,19,6],[22,11,23,15],[2,8,2,11],[2,12,3,15],[3,8,3,11],[16,8,16,10],[16,1,16,2],[12,1,12,2],[5,8,5,11],[7,8,7,11],[2,20,3,21],[4,20,5,21],[6,8,6,11],[4,8,4,11],[4,12,5,15],[6,12,7,15],[29,1,29,2],[30,1,30,2],[33,6,34,6],[33,3,34,3],[30,3,31,6],[31,1,31,2],[33,11,33,15],[34,11,34,15],[28,1,28,2],[26,1,26,2],[17,1,17,2],[19,1,19,2],[21,1,21,2],[27,1,27,2],[22,1,22,2],[24,1,24,2],[18,1,18,2],[20,1,20,2],[25,1,25,2],[23,1,23,2],[24,3,25,6],[26,3,27,6],[28,3,29,6],[25,8,25,10],[27,8,27,10],[29,8,29,10],[30,8,30,10],[31,8,31,10],[28,8,28,10],[24,8,24,10],[26,8,26,10],[35,6,37,6],[35,5,37,5],[35,4,37,4],[33,2,34,2],[33,1,34,1],[35,3,37,3],[35,2,37,2],[35,1,37,1],[36,17,37,17],[36,11,37,11],[36,12,37,12],[36,13,37,13],[36,14,37,14],[36,15,37,15],[33,5,34,5],[33,4,34,4],[26,11,27,15],[28,11,29,15],[30,11,31,15],[17,8,17,10],[19,8,19,10],[21,8,21,10],[23,8,23,10],[22,8,22,10],[24,11,25,15],[18,8,18,10],[20,8,20,10],[16,11,17,13],[18,11,19,13],[20,11,21,15],[16,15,17,15],[18,15,19,15],[16,14,17,14],[18,14,19,14],[33,22,34,22],[35,22,37,22],[33,7,34,8],[33,9,34,10],[35,7,35,8],[35,9,35,10],[35,11,35,12],[35,13,35,15],[33,17,33,21],[34,17,34,21],[33,16,34,16],[35,16,37,16],[35,17,35,21],[36,18,37,18],[36,19,37,19],[36,20,37,20],[36,21,37,21]]}
[]
[null,"Inspection journal"]
[null,"3 Inspection journal of initial sample inspection",null,null,null,null,null,null,{"$f":"'1_cover_sheet'!V4","v":"Last author"},null,null,null,{"$f":"IF('1_cover_sheet'!AD4=\"\",\"\",'1_cover_sheet'!AD4)","v":"Wolf, Joachim"},null,null,null,null,null,"Inspection date"]
[null,{"$f":"VLOOKUP(65,Translation[],VLOOKUP(SecondLang,LangTable[],2,FALSE)+2,FALSE)","v":""},null,null,null,null,null,null,{"$f":"'1_cover_sheet'!V5","v":""},null,null,null,null,null,null,null,null,null,"Дата проверки"]
[null,{"$f":"'1_cover_sheet'!B6","v":"Light brown colored cells must be completed by supplier!"},null,null,null,null,null,null,{"$f":"'1_cover_sheet'!V6","v":"Last save time"},null,null,null,{"$f":"IF('1_cover_sheet'!AD6=\"\",\"\",'1_cover_sheet'!AD6)","v":"2025-01-15T10:41:17"},null,null,null,null,null,"Inspector"]
[null,{"$f":"'1_cover_sheet'!B7","v":""},null,null,null,null,null,null,{"$f":"'1_cover_sheet'!V7","v":""},null,null,null,null,null,null,null,null,null,"Кто проверил"]
[null,null,null,null,null,null,null,null,{"$f":"'1_cover_sheet'!V8","v":"Report Number"},null,null,null,{"$f":"IF('1_cover_sheet'!AD8=\"\",\"\",'1_cover_sheet'!AD8)","v":""}]
[null,null,null,null,null,null,null,null,{"$f":"'1_cover_sheet'!V9","v":""}]
[]
[null,{"$f":"'1_cover_sheet'!B11","v":"Supplier"},null,{"$f":"'1_cover_sheet'!E11","v":""},null,null,null,null,{"$f":"'1_cover_sheet'!V11","v":"Hilti"}]
[null,{"$f":"IF('1_cover_sheet'!B12=\"\",\"\",'1_cover_sheet'!B12)","v":"[Company Name]"},null,{"$f":"IF('1_cover_sheet'!G12=\"\",\"\",'1_cover_sheet'!G12)","v":""},null,null,null,null,{"$f":"IF('1_cover_sheet'!V12=\"\",\"\",'1_cover_sheet'!V12)","v":"Hilti Aktiengesellschaft"}]
[null,{"$f":"IF('1_cover_sheet'!B13=\"\",\"\",'1_cover_sheet'!B13)","v":"[Street, Number]"},null,{"$f":"IF('1_cover_sheet'!G13=\"\",\"\",'1_cover_sheet'!G13)","v":""},null,null,null,null,{"$f":"IF('1_cover_sheet'!V13=\"\",\"\",'1_cover_sheet'!V13)","v":"Feldkircherstrasse 100  |  P.O.Box 333"}]
[null,{"$f":"IF('1_cover_sheet'!B14=\"\",\"\",'1_cover_sheet'!B14)","v":"[Postal Code]"},null,{"$f":"IF('1_cover_sheet'!F14=\"\",\"\",'1_cover_sheet'!F14)","v":""},{"$f":"IF('1_cover_sheet'!K14=\"\",\"\",'1_cover_sheet'!K14)","v":"[City]"},{"$f":"IF('1_cover_sheet'!M14=\"\",\"\",'1_cover_sheet'!M14)","v":""},null,null,{"$f":"IF('1_cover_sheet'!V14=\"\",\"\",'1_cover_sheet'!V14)","v":"FL-9494"},null,{"$f":"IF('1_cover_sheet'!Z14=\"\",\"\",'1_cover_sheet'!Z14)","v":"Schaan"}]
[null,{"$f":"IF('1_cover_sheet'!B15=\"\",\"\",'1_cover_sheet'!B15)","v":"[Country]"},null,{"$f":"IF('1_cover_sheet'!E15=\"\",\"\",'1_cover_sheet'!E15)","v":""},null,null,null,null,{"$f":"IF('1_cover_sheet'!V15=\"\",\"\",'1_cover_sheet'!V15)","v":"Principality of Liechtenstein"}]
[]
[null,{"$f":"'1_cover_sheet'!B17","v":"Item data supplier"},null,{"$f":"'1_cover_sheet'!H17","v":""},null,null,null,null,{"$f":"'1_cover_sheet'!V17","v":"Item data Hilti"},null,{"$f":"'1_cover_sheet'!Z17","v":""}]
[null,{"$f":"'1_cover_sheet'!B18","v":"Material No. / Rev.:"},null,{"$f":"IF('1_cover_sheet'!H18=\"\",\"\",'1_cover_sheet'!H18)","v":""},null,"/",{"$f":"IF('1_cover_sheet'!O18=\"\",\"\",'1_cover_sheet'!O18)","v":""},null,{"$f":"'1_cover_sheet'!V18","v":"Material No. / Rev.:"},null,null,{"$f":"IF('1_cover_sheet'!AB18=\"\",\"\",'1_cover_sheet'!AB18)","v":""},null,null,"/",{"$f":"IF('1_cover_sheet'!AI18=\"\",\"\",'1_cover_sheet'!AI18)","v":""}]
[null,{"$f":"'1_cover_sheet'!B19","v":""},null,null,null,null,null,null,{"$f":"'1_cover_sheet'!V19","v":""}]
[null,{"$f":"'1_cover_sheet'!B20","v":"Doc. No.: / Vers.:"},null,{"$f":"IF('1_cover_sheet'!H20=\"\",\"\",'1_cover_sheet'!H20)","v":""},null,"/",{"$f":"IF('1_cover_sheet'!O20=\"\",\"\",'1_cover_sheet'!O20)","v":""},null,{"$f":"'1_cover_sheet'!V20","v":"Doc. No.: / Vers.:"},null,null,{"$f":"IF('1_cover_sheet'!AB20=\"\",\"\",'1_cover_sheet'!AB20)","v":""},null,null,"/",{"$f":"IF('1_cover_sheet'!AI20=\"\",\"\",'1_cover_sheet'!AI20)","v":""}]
[null,{"$f":"'1_cover_sheet'!B21","v":""},null,null,null,null,null,null,{"$f":"'1_cover_sheet'!V21","v":""}]
[null,{"$f":"'1_cover_sheet'!B22","v":"Change request:"},null,{"$f":"IF('1_cover_sheet'!H22=\"\",\"\",'1_cover_sheet'!H22)","v":""},null,null,null,null,{"$f":"'1_cover_sheet'!V22","v":"Change request:"},null,null,{"$f":"IF('1_cover_sheet'!AB22=\"\",\"\",'1_cover_sheet'!AB22)","v":""}]
[null,{"$f":"'1_cover_sheet'!B23","v":""},null,null,null,null,null,null,{"$f":"'1_cover_sheet'!V23","v":""}]
[null,{"$f":"'1_cover_sheet'!B24","v":"Designation:"},null,{"$f":"IF('1_cover_sheet'!H24=\"\",\"\",'1_cover_sheet'!H24)","v":""},null,null,null,null,{"$f":"'1_cover_sheet'!V24","v":"Designation:"},null,null,{"$f":"IF('1_cover_sheet'!AB24=\"\",\"\",'1_cover_sheet'!AB24)","v":""}]
[null,{"$f":"'1_cover_sheet'!B25","v":""},null,null,null,null,null,null,{"$f":"'1_cover_sheet'!V25","v":""}]
[null,{"$f":"'1_cover_sheet'!B26","v":"Order quantity:"},null,{"$f":"IF('1_cover_sheet'!H26=\"\",\"\",'1_cover_sheet'!H26)","v":""},null,null,null,null,{"$f":"'1_cover_sheet'!V26","v":"Order quantity:"},null,null,{"$f":"IF('1_cover_sheet'!AB26=\"\",\"\",'1_cover_sheet'!AB26)","v":""}]
[null,{"$f":"'1_cover_sheet'!B27","v":""},null,null,null,null,null,null,{"$f":"'1_cover_sheet'!V27","v":""}]
[null,{"$f":"'1_cover_sheet'!B28","v":"Delivery quantity:"},null,{"$f":"IF('1_cover_sheet'!H28=\"\",\"\",'1_cover_sheet'!H28)","v":""},null,null,null,null,{"$f":"'1_cover_sheet'!V28","v":"Delivery quantity:"},null,null,{"$f":"IF('1_cover_sheet'!AB28=\"\",\"\",'1_cover_sheet'!AB28)","v":""}]
[null,{"$f":"'1_cover_sheet'!B29","v":""},null,null,null,null,null,null,{"$f":"'1_cover_sheet'!V29","v":""}]
[null,"Data storage:",null,null,null,null,null,null,{"$f":"B29","v":"Data storage:"},null,null,{"$f":"IF(D29=\"\",\"\",D29)","v":""},null,null,null,null,"* LSL = Lower Specification Limit"]
[null,{"$f":"VLOOKUP(66,Translation[],VLOOKUP(SecondLang,LangTable[],2,FALSE)+2,FALSE)","v":""},null,null,null,null,null,null,{"$f":"B30","v":""},null,null,null,null,null,null,null,{"$f":"VLOOKUP(68,Translation[],VLOOKUP(SecondLang,LangTable[],2,FALSE)+2,FALSE)","v":""}]
[null,"Reference samples:",null,null,null,null,null,null,"Reference samples:",null,null,{"$f":"IF(D31=\"\",\"\",D31)","v":""},null,null,null,null,"* USL = Upper Specification Limit"]
[null,{"$f":"VLOOKUP(67,Translation[],VLOOKUP(SecondLang,LangTable[],2,FALSE)+2,FALSE)","v":""},null,null,null,null,null,null,"",null,null,null,null,null,null,null,{"$f":"VLOOKUP(69,Translation[],VLOOKUP(SecondLang,LangTable[],2,FALSE)+2,FALSE)","v":""}]
[]
[null,"Pos.","Feature","Feat. Type","Supplier Measuring method / equipment","Nominal value","Unit","Tolerance",null,"Spec. Limit",null,"Measured values per part",null,null,null,null,"HILTI Measuring method/equipment","Measured values per part",null,null,null,null,"Remarks"]
[null,null,null,null,null,null,null,null,null,null,null,{"$f":"VLOOKUP(82,Translation[],VLOOKUP(SecondLang,LangTable[],2,FALSE)+2,FALSE)","v":""},null,null,null,null,null,{"$f":"VLOOKUP(82,Translation[],VLOOKUP(SecondLang,LangTable[],2,FALSE)+2,FALSE)","v":""}]
[null,{"$f":"VLOOKUP(70,Translation[],VLOOKUP(SecondLang,LangTable[],2,FALSE)+2,FALSE)","v":""},{"$f":"VLOOKUP(71,Translation[],VLOOKUP(SecondLang,LangTable[],2,FALSE)+2,FALSE)","v":""},{"$f":"VLOOKUP(72,Translation[],VLOOKUP(SecondLang,LangTable[],2,FALSE)+2,FALSE)","v":""},{"$f":"VLOOKUP(73,Translation[],VLOOKUP(SecondLang,LangTable[],2,FALSE)+2,FALSE)","v":""},{"$f":"VLOOKUP(74,Translation[],VLOOKUP(SecondLang,LangTable[],2,FALSE)+2,FALSE)","v":""},{"$f":"VLOOKUP(75,Translation[],VLOOKUP(SecondLang,LangTable[],2,FALSE)+2,FALSE)","v":""},{"$f":"VLOOKUP(76,Translation[],VLOOKUP(SecondLang,LangTable[],2,FALSE)+2,FALSE)","v":""},null,{"$f":"VLOOKUP(79,Translation[],VLOOKUP(SecondLang,LangTable[],2,FALSE)+2,FALSE)","v":""},null,"Supplier",null,{"$f":"'1_cover_sheet'!E11","v":""},null,null,{"$f":"VLOOKUP(102,Translation[],VLOOKUP(SecondLang,LangTable[],2,FALSE)+2,FALSE)","v":""},"HILTI",null,null,null,null,{"$f":"VLOOKUP(92,Translation[],VLOOKUP(SecondLang,LangTable[],2,FALSE)+2,FALSE)","v":""}]
[null,null,null,null,null,null,null,"Low. Tol.","Up. Tol.","LSL*","USL*","#1","#2","#3","#4","#5",null,"#1","#2","#3","#4","#5"]
[null,null,null,null,null,null,null,{"$f":"VLOOKUP(77,Translation[],VLOOKUP(SecondLang,LangTable[],2,FALSE)+2,FALSE)","v":""},{"$f":"VLOOKUP(78,Translation[],VLOOKUP(SecondLang,LangTable[],2,FALSE)+2,FALSE)","v":""},{"$f":"VLOOKUP(80,Translation[],VLOOKUP(SecondLang,LangTable[],2,FALSE)+2,FALSE)","v":""},{"$f":"VLOOKUP(81,Translation[],VLOOKUP(SecondLang,LangTable[],2,FALSE)+2,FALSE)","v":""}]
[null,null,null,null,null,null,{"$f":"IF(C39=\"\",\"\",IF(C39=\"angle\",\"degree\",\"mm\"))","v":""},null,null,{"$f":"IF(OR(F39=\"\",H39=\"\"),\"\",F39+H39)","v":""},{"$f":"IF(OR(F39=\"\",I39=\"\"),\"\",F39+I39)","v":""}]
[null,null,null,null,null,null,{"$f":"IF(C40=\"\",\"\",IF(C40=\"angle\",\"degree\",\"mm\"))","v":""},null,null,{"$f":"IF(OR(F40=\"\",H40=\"\"),\"\",F40+H40)","v":""},{"$f":"IF(OR(F40=\"\",I40=\"\"),\"\",F40+I40)","v":""}]
[null,null,null,null,null,null,"",null,null,"",""]
[null,null,null,null,null,null,"",null,null,"",""]
[null,null,null,null,null,null,"",null,null,"",""]
[null,null,null,null,null,null,"",null,null,"",""]
[null,null,null,null,null,null,"",null,null,"",""]
[null,null,null,null,null,null,"",null,null,"",""]
[null,null,null,null,null,null,"",null,null,"",""]
[null,null,null,null,null,null,"",null,null,"",""]
[null,null,null,null,null,null,"",null,null,"",""]
[null,null,null,null,null,null,"",null,null,"",""]
[null,null,null,null,null,null,"",null,null,"",""]
[null,null,null,null,null,null,"",null,null,"",""]
[null,null,null,null,null,null,"",null,null,"",""]
[null,null,null,null,null,null,"",null,null,"",""]
[null,null,null,null,null,null,"",null,null,"",""]
[null,null,null,null,null,null,"",null,null,"",""]
[null,null,null,null,null,null,"",null,null,"",""]
[null,null,null,null,null,null,"",null,null,"",""]
[null,null,null,null,null,null,"",null,null,"",""]
[null,null,null,null,null,null,"",null,null,"",""]
[null,null,null,null,null,null,"",null,null,"",""]
[null,null,null,null,null,null,"",null,null,"",""]
[null,null,null,null,null,null,"",null,null,"",""]
[null,null,null,null,null,null,"",null,null,"",""]
[null,null,null,null,null,null,"",null,null,"",""]
[null,null,null,null,null,null,"",null,null,"",""]
[null,null,null,null,null,null,"",null,null,"",""]
[null,null,null,null,null,null,"",null,null,"",""]
[null,null,null,null,null,null,"",null,null,"",""]
[null,null,null,null,null,null,"",null,null,"",""]
[null,null,null,null,null,null,"",null,null,"",""]
[null,null,null,null,null,null,"",null,null,"",""]
[null,null,null,null,null,null,"",null,null,"",""]
[null,null,null,null,null,null,"",null,null,"",""]
[null,null,null,null,null,null,"",null,null,"",""]
[null,null,null,null,null,null,"",null,null,"",""]
[null,null,null,null,null,null,"",null,null,"",""]
[null,null,null,null,null,null,"",null,null,"",""]
[null,null,null,null,null,null,"",null,null,"",""]
[null,null,null,null,null,null,"",null,null,"",""]
[null,null,null,null,null,null,"",null,null,"",""]
[null,null,null,null,null,null,"",null,null,"",""]
[null,null,null,null,null,null,"",null,null,"",""]
[null,null,null,null,null,null,"",null,null,"",""]
[null,null,null,null,null,null,"",null,null,"",""]
[null,null,null,null,null,null,"",null,null,"",""]
[null,null,null,null,null,null,"",null,null,"",""]
[null,null,null,null,null,null,"",null,null,"",""]
[null,null,null,null,null,null,"",null,null,"",""]
[null,null,null,null,null,null,"",null,null,"",""]
[null,null,null,null,null,null,"",null,null,"",""]
[null,null,null,null,null,null,"",null,null,"",""]
[null,null,null,null,null,null,"",null,null,"",""]
[null,null,null,null,null,null,"",null,null,"",""]
[null,null,null,null,null,null,"",null,null,"",""]
[null,null,null,null,null,null,"",null,null,"",""]
[null,null,null,null,null,null,"",null,null,"",""]
[null,null,null,null,null,null,"",null,null,"",""]
[null,null,null,null,null,null,"",null,null,"",""]
[null,null,null,null,null,null,"",null,null,"",""]
[null,null,null,null,null,null,"",null,null,"",""]
[null,null,null,null,null,null,"",null,null,"",""]
[null,null,null,null,null,null,"",null,null,"",""]
[null,null,null,null,null,null,{"$f":"IF(C104=\"\",\"\",IF(C104=\"angle\",\"degree\",\"mm\"))","v":""},null,null,{"$f":"IF(OR(F104=\"\",H104=\"\"),\"\",F104+H104)","v":""},{"$f":"IF(OR(F104=\"\",I104=\"\"),\"\",F104+I104)","v":""}]
[null,null,null,null,null,null,"",null,null,"",""]
[null,null,null,null,null,null,"",null,null,"",""]
[null,null,null,null,null,null,"",null,null,"",""]
[null,null,null,null,null,null,"",null,null,"",""]
[null,null,null,null,null,null,"",null,null,"",""]
[null,null,null,null,null,null,"",null,null,"",""]
[null,null,null,null,null,null,"",null,null,"",""]
[null,null,null,null,null,null,"",null,null,"",""]
[null,null,null,null,null,null,"",null,null,"",""]
[null,null,null,null,null,null,"",null,null,"",""]
[null,null,null,null,null,null,"",null,null,"",""]
[null,null,null,null,null,null,"",null,null,"",""]
[null,null,null,null,null,null,"",null,null,"",""]
[null,null,null,null,null,null,"",null,null,"",""]
[null,null,null,null,null,null,"",null,null,"",""]
[null,null,null,null,null,null,"",null,null,"",""]
[null,null,null,null,null,null,"",null,null,"",""]
[null,null,null,null,null,null,"",null,null,"",""]
[null,null,null,null,null,null,"",null,null,"",""]
[null,null,null,null,null,null,"",null,null,"",""]
[null,null,null,null,null,null,"",null,null,"",""]
[null,null,null,null,null,null,"",null,null,"",""]
[null,null,null,null,null,null,"",null,null,"",""]
[null,null,null,null,null,null,"",null,null,"",""]
[null,null,null,null,null,null,"",null,null,"",""]
[null,null,null,null,null,null,"",null,null,"",""]
[null,null,null,null,null,null,"",null,null,"",""]
[null,null,null,null,null,null,"",null,null,"",""]
[null,null,null,null,null,null,"",null,null,"",""]
[null,null,null,null,null,null,"",null,null,"",""]
[null,null,null,null,null,null,"",null,null,"",""]
[null,null,null,null,null,null,"",null,null,"",""]
[null,null,null,null,null,null,"",null,null,"",""]
[null,null,null,null,null,null,"",null,null,"",""]
[null,null,null,null,null,null,"",null,null,"",""]
[null,null,null,null,null,null,"",null,null,"",""]
[null,null,null,null,null,null,"",null,null,"",""]
[null,null,null,null,null,null,"",null,null,"",""]
[null,null,null,null,null,null,"",null,null,"",""]
[null,null,null,null,null,null,"",null,null,"",""]
[null,null,null,null,null,null,"",null,null,"",""]
[null,null,null,null,null,null,"",null,null,"",""]
[null,null,null,null,null,null,"",null,null,"",""]
[null,null,null,null,null,null,"",null,null,"",""]
[null,null,null,null,null,null,"",null,null,"",""]
[null,null,null,null,null,null,"",null,null,"",""]
[null,null,null,null,null,null,"",null,null,"",""]
[null,null,null,null,null,null,"",null,null,"",""]
[null,null,null,null,null,null,"",null,null,"",""]
[null,null,null,null,null,null,"",null,null,"",""]
[null,null,null,null,null,null,"",null,null,"",""]
[null,null,null,null,null,null,"",null,null,"",""]
[null,null,null,null,null,null,"",null,null,"",""]
[null,null,null,null,null,null,"",null,null,"",""]
[null,null,null,null,null,null,"",null,null,"",""]
[null,null,null,null,null,null,"",null,null,"",""]
[null,null,null,null,null,null,"",null,null,"",""]
[null,null,null,null,null,null,"",null,null,"",""]
[null,null,null,null,null,null,"",null,null,"",""]
[null,null,null,null,null,null,"",null,null,"",""]
[null,null,null,null,null,null,"",null,null,"",""]
[null,null,null,null,null,null,"",null,null,"",""]
[null,null,null,null,null,null,"",null,null,"",""]
[null,null,null,null,null,null,{"$f":"IF(C168=\"\",\"\",IF(C168=\"angle\",\"degree\",\"mm\"))","v":""},null,null,{"$f":"IF(OR(F168=\"\",H168=\"\"),\"\",F168+H168)","v":""},{"$f":"IF(OR(F168=\"\",I168=\"\"),\"\",F168+I168)","v":""}]
[null,null,null,null,null,null,"",null,null,"",""]
[null,null,null,null,null,null,"",null,null,"",""]
[null,null,null,null,null,null,"",null,null,"",""]
[null,null,null,null,null,null,"",null,null,"",""]
[null,null,null,null,null,null,"",null,null,"",""]
[null,null,null,null,null,null,"",null,null,"",""]
[null,null,null,null,null,null,"",null,null,"",""]
[null,null,null,null,null,null,"",null,null,"",""]
[null,null,null,null,null,null,"",null,null,"",""]
[null,null,null,null,null,null,"",null,null,"",""]
[null,null,null,null,null,null,"",null,null,"",""]
[null,null,null,null,null,null,"",null,null,"",""]
[null,null,null,null,null,null,"",null,null,"",""]
[null,null,null,null,null,null,"",null,null,"",""]
[null,null,null,null,null,null,"",null,null,"",""]
[null,null,null,null,null,null,"",null,null,"",""]
[null,null,null,null,null,null,"",null,null,"",""]
[null,null,null,null,null,null,"",null,null,"",""]
[null,null,null,null,null,null,"",null,null,"",""]
[null,null,null,null,null,null,"",null,null,"",""]
[null,null,null,null,null,null,"",null,null,"",""]
[null,null,null,null,null,null,"",null,null,"",""]
[null,null,null,null,null,null,"",null,null,"",""]
[null,null,null,null,null,null,"",null,null,"",""]
[null,null,null,null,null,null,"",null,null,"",""]
[null,null,null,null,null,null,"",null,null,"",""]
[null,null,null,null,null,null,"",null,null,"",""]
[null,null,null,null,null,null,"",null,null,"",""]
[null,null,null,null,null,null,"",null,null,"",""]
[null,null,null,null,null,null,"",null,null,"",""]
[null,null,null,null,null,null,"",null,null,"",""]
[null,null,null,null,null,null,"",null,null,"",""]
[null,null,null,null,null,null,"",null,null,"",""]
[null,null,null,null,null,null,"",null,null,"",""]
[null,null,null,null,null,null,"",null,null,"",""]
[null,null,null,null,null,null,"",null,null,"",""]
[null,null,null,null,null,null,"",null,null,"",""]
[null,null,null,null,null,null,"",null,null,"",""]
[null,null,null,null,null,null,"",null,null,"",""]
[null,null,null,null,null,null,"",null,null,"",""]
[null,null,null,null,null,null,"",null,null,"",""]
[null,null,null,null,null,null,"",null,null,"",""]
[null,null,null,null,null,null,"",null,null,"",""]
[null,null,null,null,null,null,"",null,null,"",""]
[null,null,null,null,null,null,"",null,null,"",""]
[null,null,null,null,null,null,"",null,null,"",""]
[null,null,null,null,null,null,"",null,null,"",""]
[null,null,null,null,null,null,"",null,null,"",""]
[null,null,null,null,null,null,"",null,null,"",""]
[null,null,null,null,null,null,"",null,null,"",""]
[null,null,null,null,null,null,"",null,null,"",""]
[null,null,null,null,null,null,"",null,null,"",""]
[null,null,null,null,null,null,"",null,null,"",""]
[null,null,null,null,null,null,"",null,null,"",""]
[null,null,null,null,null,null,"",null,null,"",""]
[null,null,null,null,null,null,"",null,null,"",""]
[null,null,null,null,null,null,"",null,null,"",""]
[null,null,null,null,null,null,"",null,null,"",""]
[null,null,null,null,null,null,"",null,null,"",""]
[null,null,null,null,null,null,"",null,null,"",""]
[null,null,null,null,null,null,"",null,null,"",""]
[null,null,null,null,null,null,"",null,null,"",""]
[null,null,null,null,null,null,"",null,null,"",""]
[null,null,null,null,null,null,{"$f":"IF(C232=\"\",\"\",IF(C232=\"angle\",\"degree\",\"mm\"))","v":""},null,null,{"$f":"IF(OR(F232=\"\",H232=\"\"),\"\",F232+H232)","v":""},{"$f":"IF(OR(F232=\"\",I232=\"\"),\"\",F232+I232)","v":""}]
[null,null,null,null,null,null,"",null,null,"",""]
[null,null,null,null,null,null,"",null,null,"",""]
[null,null,null,null,null,null,"",null,null,"",""]
[null,null,null,null,null,null,"",null,null,"",""]
[null,null,null,null,null,null,"",null,null,"",""]
[null,null,null,null,null,null,"",null,null,"",""]
[null,null,null,null,null,null,"",null,null,"",""]
[null,null,null,null,null,null,"",null,null,"",""]
[null,null,null,null,null,null,"",null,null,"",""]
[null,null,null,null,null,null,"",null,null,"",""]
[null,null,null,null,null,null,"",null,null,"",""]
[null,null,null,null,null,null,"",null,null,"",""]
[null,null,null,null,null,null,"",null,null,"",""]
[null,null,null,null,null,null,"",null,null,"",""]
[null,null,null,null,null,null,"",null,null,"",""]
[null,null,null,null,null,null,"",null,null,"",""]
[null,null,null,null,null,null,"",null,null,"",""]
[null,null,null,null,null,null,"",null,null,"",""]
[null,null,null,null,null,null,"",null,null,"",""]
[null,null,null,null,null,null,"",null,null,"",""]
[null,null,null,null,null,null,"",null,null,"",""]
[null,null,null,null,null,null,"",null,null,"",""]
[null,null,null,null,null,null,"",null,null,"",""]
[null,null,null,null,null,null,"",null,null,"",""]
[null,null,null,null,null,null,"",null,null,"",""]
[null,null,null,null,null,null,"",null,null,"",""]
[null,null,null,null,null,null,"",null,null,"",""]
[null,null,null,null,null,null,"",null,null,"",""]
[null,null,null,null,null,null,"",null,null,"",""]
[null,null,null,null,null,null,"",null,null,"",""]
[null,null,null,null,null,null,"",null,null,"",""]
[null,null,null,null,null,null,"",null,null,"",""]
[null,null,null,null,null,null,"",null,null,"",""]
[null,null,null,null,null,null,"",null,null,"",""]
[null,null,null,null,null,null,"",null,null,"",""]
[null,null,null,null,null,null,"",null,null,"",""]
[null,null,null,null,null,null,"",null,null,"",""]
[null,null,null,null,null,null,"",null,null,"",""]
[null,null,null,null,null,null,"",null,null,"",""]
[null,null,null,null,null,null,"",null,null,"",""]
[null,null,null,null,null,null,"",null,null,"",""]
[null,null,null,null,null,null,"",null,null,"",""]
[null,null,null,null,null,null,"",null,null,"",""]
[null,null,null,null,null,null,"",null,null,"",""]
[null,null,null,null,null,null,"",null,null,"",""]
[null,null,null,null,null,null,"",null,null,"",""]
[null,null,null,null,null,null,"",null,null,"",""]
[null,null,null,null,null,null,"",null,null,"",""]
[null,null,null,null,null,null,"",null,null,"",""]
[null,null,null,null,null,null,"",null,null,"",""]
[null,null,null,null,null,null,"",null,null,"",""]
[null,null,null,null,null,null,"",null,null,"",""]
[null,null,null,null,null,null,"",null,null,"",""]
[null,null,null,null,null,null,"",null,null,"",""]
[null,null,null,null,null,null,"",null,null,"",""]
[null,null,null,null,null,null,"",null,null,"",""]
[null,null,null,null,null,null,"",null,null,"",""]
[null,null,null,null,null,null,"",null,null,"",""]
[null,null,null,null,null,null,"",null,null,"",""]
[null,null,null,null,null,null,"",null,null,"",""]
[null,null,null,null,null,null,"",null,null,"",""]
[null,null,null,null,null,null,"",null,null,"",""]
[null,null,null,null,null,null,"",null,null,"",""]
[null,null,null,null,null,null,{"$f":"IF(C296=\"\",\"\",IF(C296=\"angle\",\"degree\",\"mm\"))","v":""},null,null,{"$f":"IF(OR(F296=\"\",H296=\"\"),\"\",F296+H296)","v":""},{"$f":"IF(OR(F296=\"\",I296=\"\"),\"\",F296+I296)","v":""}]
[null,null,null,null,null,null,"",null,null,"",""]
[null,null,null,null,null,null,"",null,null,"",""]
[null,null,null,null,null,null,"",null,null,"",""]
[null,null,null,null,null,null,"",null,null,"",""]
[null,null,null,null,null,null,"",null,null,"",""]
[null,null,null,null,null,null,"",null,null,"",""]
[null,null,null,null,null,null,"",null,null,"",""]
[null,null,null,null,null,null,"",null,null,"",""]
[null,null,null,null,null,null,"",null,null,"",""]
[null,null,null,null,null,null,"",null,null,"",""]
[null,null,null,null,null,null,"",null,null,"",""]
[null,null,null,null,null,null,"",null,null,"",""]
[null,null,null,null,null,null,"",null,null,"",""]
[null,null,null,null,null,null,"",null,null,"",""]
[null,null,null,null,null,null,"",null,null,"",""]
[null,null,null,null,null,null,"",null,null,"",""]
[null,null,null,null,null,null,"",null,null,"",""]
[null,null,null,null,null,null,"",null,null,"",""]
[null,null,null,null,null,null,"",null,null,"",""]
[null,null,null,null,null,null,"",null,null,"",""]
[null,null,null,null,null,null,"",null,null,"",""]
[null,null,null,null,null,null,"",null,null,"",""]
[null,null,null,null,null,null,"",null,null,"",""]
[null,null,null,null,null,null,"",null,null,"",""]
[null,null,null,null,null,null,"",null,null,"",""]
[null,null,null,null,null,null,"",null,null,"",""]
[null,null,null,null,null,null,"",null,null,"",""]
[null,null,null,null,null,null,"",null,null,"",""]
[null,null,null,null,null,null,"",null,null,"",""]
[null,null,null,null,null,null,"",null,null,"",""]
[null,null,null,null,null,null,"",null,null,"",""]
[null,null,null,null,null,null,"",null,null,"",""]
[null,null,null,null,null,null,"",null,null,"",""]
[null,null,null,null,null,null,"",null,null,"",""]
[null,null,null,null,null,null,"",null,null,"",""]
[null,null,null,null,null,null,"",null,null,"",""]
[null,null,null,null,null,null,"",null,null,"",""]
[null,null,null,null,null,null,"",null,null,"",""]
[null,null,null,null,null,null,"",null,null,"",""]
[null,null,null,null,null,null,"",null,null,"",""]
[null,null,null,null,null,null,"",null,null,"",""]
[null,null,null,null,null,null,"",null,null,"",""]

{"sheet":"4_Process capability","index":5,"n_rows":343,"n_cols":35,"rows_kept":343,"cut":false,"hidden":false,"merged":[[1,1,1,39],[2,21,2,28],[2,29,3,39],[3,21,3,28],[4,21,4,28],[4,29,5,39],[5,21,5,28],[24,1,24,6],[24,7,25,19],[24,21,24,26],[24,27,25,39],[25,1,25,6],[25,21,25,26],[22,1,22,6],[22,7,23,19],[22,21,22,26],[22,27,23,39],[23,1,23,6],[23,21,23,26],[18,33,19,33],[18,34,19,39],[19,1,19,6],[19,21,19,26],[20,1,20,6],[20,7,21,19],[20,21,20,26],[20,27,21,39],[21,1,21,6],[21,21,21,26],[16,33,17,33],[16,34,17,39],[17,1,17,6],[17,21,17,26],[18,1,18,6],[18,7,19,12],[18,13,19,13],[18,14,19,19],[18,21,18,26],[18,27,19,32],[6,21,6,28],[6,29,7,39],[7,21,7,28],[12,1,12,3],[16,1,16,6],[16,7,17,12],[16,13,17,13],[16,14,17,19],[16,21,16,26],[16,27,17,32],[42,21,42,22],[42,23,42,24],[42,25,42,27],[43,1,43,3],[43,4,43,12],[43,21,43,22],[43,23,43,24],[43,25,43,27],[41,1,42,3],[41,4,42,12],[41,21,41,22],[41,23,41,24],[34,2,34,39],[36,2,36,39],[39,1,40,3],[39,4,40,12],[30,1,30,6],[30,7,31,19],[30,21,30,26],[30,27,31,39],[31,1,31,6],[31,21,31,26],[28,1,28,6],[28,7,29,19],[28,21,28,26],[28,27,29,39],[29,1,29,6],[29,21,29,26],[26,1,26,6],[26,7,27,19],[26,21,26,26],[26,27,27,39],[27,1,27,6],[27,21,27,26],[39,13,40,18],[41,13,42,18],[39,19,40,20],[41,19,42,20],[48,1,48,3],[48,4,48,12],[48,21,48,22],[48,23,48,24],[48,25,48,27],[47,28,47,30],[48,28,48,30],[47,1,47,3],[47,4,47,12],[47,21,47,22],[47,23,47,24],[47,25,47,27],[46,1,46,3],[46,4,46,12],[46,21,46,22],[46,23,46,24],[46,25,46,27],[45,28,45,30],[46,28,46,30],[45,1,45,3],[45,4,45,12],[45,21,45,22],[45,23,45,24],[45,25,45,27],[45,13,45,18],[45,19,45,20],[44,1,44,3],[44,4,44,12],[44,21,44,22],[44,23,44,24],[44,25,44,27],[44,28,44,30],[44,19,44,20],[46,13,46,18],[46,19,46,20],[47,13,47,18],[47,19,47,20],[48,13,48,18],[48,19,48,20],[54,1,54,3],[54,4,54,12],[54,21,54,22],[54,23,54,24],[54,25,54,27],[53,28,53,30],[54,28,54,30],[53,1,53,3],[53,4,53,12],[53,21,53,22],[53,23,53,24],[53,25,53,27],[53,13,53,18],[53,19,53,20],[52,1,52,3],[52,4,52,12],[52,21,52,22],[52,23,52,24],[52,25,52,27],[51,28,51,30],[52,28,52,30],[51,1,51,3],[51,4,51,12],[51,21,51,22],[51,23,51,24],[51,25,51,27],[50,1,50,3],[50,4,50,12],[50,21,50,22],[50,23,50,24],[50,25,50,27],[49,28,49,30],[50,28,50,30],[49,1,49,3],[49,4,49,12],[49,21,49,22],[49,23,49,24],[49,25,49,27],[49,13,49,18],[49,19,49,20],[50,13,50,18],[50,19,50,20],[51,13,51,18],[51,19,51,20],[52,13,52,18],[52,19,52,20],[54,13,54,18],[54,19,54,20],[60,1,60,3],[60,4,60,12],[60,21,60,22],[60,23,60,24],[60,25,60,27],[59,28,59,30],[60,28,60,30],[59,1,59,3],[59,4,59,12],[59,21,59,22],[59,23,59,24],[59,25,59,27],[58,1,58,3],[58,4,58,12],[58,21,58,22],[58,23,58,24],[58,25,58,27],[57,28,57,30],[58,28,58,30],[57,1,57,3],[57,4,57,12],[57,21,57,22],[57,23,57,24],[57,25,57,27],[57,13,57,18],[57,19,57,20],[56,1,56,3],[56,4,56,12],[56,21,56,22],[56,23,56,24],[56,25,56,27],[55,28,55,30],[56,28,56,30],[55,1,55,3],[55,4,55,12],[55,21,55,22],[55,23,55,24],[55,25,55,27],[58,13,58,18],[58,19,58,20],[59,13,59,18],[59,19,59,20],[60,13,60,18],[60,19,60,20],[55,13,55,18],[55,19,55,20],[56,13,56,18],[56,19,56,20],[66,1,66,3],[66,4,66,12],[66,21,66,22],[66,23,66,24],[66,25,66,27],[65,28,65,30],[66,28,66,30],[65,1,65,3],[65,4,65,12],[65,21,65,22],[65,23,65,24],[65,25,65,27],[65,13,65,18],[65,19,65,20],[64,1,64,3],[64,4,64,12],[64,21,64,22],[64,23,64,24],[64,25,64,27],[63,28,63,30],[64,28,64,30],[63,1,63,3],[63,4,63,12],[63,21,63,22],[63,23,63,24],[63,25,63,27],[62,1,62,3],[62,4,62,12],[62,21,62,22],[62,23,62,24],[62,25,62,27],[61,28,61,30],[62,28,62,30],[61,1,61,3],[61,4,61,12],[61,21,61,22],[61,23,61,24],[61,25,61,27],[61,13,61,18],[61,19,61,20],[66,13,66,18],[66,19,66,20],[62,13,62,18],[62,19,62,20],[63,13,63,18],[63,19,63,20],[64,13,64,18],[64,19,64,20],[72,1,72,3],[72,4,72,12],[72,21,72,22],[72,23,72,24],[72,25,72,27],[71,28,71,30],[72,28,72,30],[71,1,71,3],[71,4,71,12],[71,21,71,22],[71,23,71,24],[71,25,71,27],[70,1,70,3],[70,4,70,12],[70,21,70,22],[70,23,70,24],[70,25,70,27],[69,28,69,30],[70,28,70,30],[69,1,69,3],[69,4,69,12],[69,21,69,22],[69,23,69,24],[69,25,69,27],[69,13,69,18],[69,19,69,20],[68,1,68,3],[68,4,68,12],[68,21,68,22],[68,23,68,24],[68,25,68,27],[67,28,67,30],[68,28,68,30],[67,1,67,3],[67,4,67,12],[67,21,67,22],[67,23,67,24],[67,25,67,27],[67,13,67,18],[67,19,67,20],[68,13,68,18],[68,19,68,20],[78,1,78,3],[78,4,78,12],[78,21,78,22],[78,23,78,24],[78,25,78,27],[77,28,77,30],[78,28,78,30],[77,1,77,3],[77,4,77,12],[77,21,77,22],[77,23,77,24],[77,25,77,27],[77,13,77,18],[77,19,77,20],[76,1,76,3],[76,4,76,12],[76,21,76,22],[76,23,76,24],[76,25,76,27],[75,28,75,30],[76,28,76,30],[75,1,75,3],[75,4,75,12],[75,21,75,22],[75,23,75,24],[75,25,75,27],[74,1,74,3],[74,4,74,12],[74,21,74,22],[74,23,74,24],[74,25,74,27],[73,28,73,30],[74,28,74,30],[73,1,73,3],[73,4,73,12],[73,21,73,22],[73,23,73,24],[73,25,73,27],[73,13,73,18],[73,19,73,20],[78,13,78,18],[78,19,78,20],[84,1,84,3],[84,4,84,12],[84,21,84,22],[84,23,84,24],[84,25,84,27],[83,28,83,30],[84,28,84,30],[83,1,83,3],[83,4,83,12],[83,21,83,22],[83,23,83,24],[83,25,83,27],[82,1,82,3],[82,4,82,12],[82,21,82,22],[82,23,82,24],[82,25,82,27],[81,28,81,30],[82,28,82,30],[81,1,81,3],[81,4,81,12],[81,21,81,22],[81,23,81,24],[81,25,81,27],[81,13,81,18],[81,19,81,20],[80,1,80,3],[80,4,80,12],[80,21,80,22],[80,23,80,24],[80,25,80,27],[79,28,79,30],[80,28,80,30],[79,1,79,3],[79,4,79,12],[79,21,79,22],[79,23,79,24],[79,25,79,27],[82,13,82,18],[82,19,82,20],[83,13,83,18],[83,19,83,20],[84,13,84,18],[84,19,84,20],[79,13,79,18],[79,19,79,20],[80,13,80,18],[80,19,80,20],[90,1,90,3],[90,4,90,12],[90,21,90,22],[90,23,90,24],[90,25,90,27],[89,28,89,30],[90,28,90,30],[89,1,89,3],[89,4,89,12],[89,21,89,22],[89,23,89,24],[89,25,89,27],[89,13,89,18],[89,19,89,20],[88,1,88,3],[88,4,88,12],[88,21,88,22],[88,23,88,24],[88,25,88,27],[87,28,87,30],[88,28,88,30],[87,1,87,3],[87,4,87,12],[87,21,87,22],[87,23,87,24],[87,25,87,27],[86,1,86,3],[86,4,86,12],[86,21,86,22],[86,23,86,24],[86,25,86,27],[85,28,85,30],[86,28,86,30],[85,1,85,3],[85,4,85,12],[85,21,85,22],[85,23,85,24],[85,25,85,27],[85,13,85,18],[85,19,85,20],[90,13,90,18],[90,19,90,20],[86,13,86,18],[86,19,86,20],[87,13,87,18],[87,19,87,20],[88,13,88,18],[88,19,88,20],[96,1,96,3],[96,4,96,12],[96,21,96,22],[96,23,96,24],[96,25,96,27],[95,28,95,30],[96,28,96,30],[95,1,95,3],[95,4,95,12],[95,21,95,22],[95,23,95,24],[95,25,95,27],[94,1,94,3],[94,4,94,12],[94,21,94,22],[94,23,94,24],[94,25,94,27],[93,28,93,30],[94,28,94,30],[93,1,93,3],[93,4,93,12],[93,21,93,22],[93,23,93,24],[93,25,93,27],[93,13,93,18],[93,19,93,20],[92,1,92,3],[92,4,92,12],[92,21,92,22],[92,23,92,24],[92,25,92,27],[91,28,91,30],[92,28,92,30],[91,1,91,3],[91,4,91,12],[91,21,91,22],[91,23,91,24],[91,25,91,27],[94,13,94,18],[94,19,94,20],[95,13,95,18],[95,19,95,20],[96,13,96,18],[96,19,96,20],[91,13,91,18],[91,19,91,20],[92,13,92,18],[92,19,92,20],[102,1,102,3],[102,4,102,12],[102,21,102,22],[102,23,102,24],[102,25,102,27],[101,28,101,30],[102,28,102,30],[101,1,101,3],[101,4,101,12],[101,21,101,22],[101,23,101,24],[101,25,101,27],[101,13,101,18],[101,19,101,20],[100,1,100,3],[100,4,100,12],[100,21,100,22],[100,23,100,24],[100,25,100,27],[99,28,99,30],[100,28,100,30],[99,1,99,3],[99,4,99,12],[99,21,99,22],[99,23,99,24],[99,25,99,27],[98,1,98,3],[98,4,98,12],[98,21,98,22],[98,23,98,24],[98,25,98,27],[97,28,97,30],[98,28,98,30],[97,1,97,3],[97,4,97,12],[97,21,97,22],[97,23,97,24],[97,25,97,27],[97,13,97,18],[97,19,97,20],[98,13,98,18],[98,19,98,20],[99,13,99,18],[99,19,99,20],[100,13,100,18],[100,19,100,20],[102,13,102,18],[102,19,102,20],[108,1,108,3],[108,4,108,12],[108,21,108,22],[108,23,108,24],[108,25,108,27],[107,28,107,30],[108,28,108,30],[107,1,107,3],[107,4,107,12],[107,21,107,22],[107,23,107,24],[107,25,107,27],[106,1,106,3],[106,4,106,12],[106,21,106,22],[106,23,106,24],[106,25,106,27],[105,28,105,30],[106,28,106,30],[105,1,105,3],[105,4,105,12],[105,21,105,22],[105,23,105,24],[105,25,105,27],[105,13,105,18],[105,19,105,20],[104,1,104,3],[104,4,104,12],[104,21,104,22],[104,23,104,24],[104,25,104,27],[103,28,103,30],[104,28,104,30],[103,1,103,3],[103,4,103,12],[103,21,103,22],[103,23,103,24],[103,25,103,27],[106,13,106,18],[106,19,106,20],[107,13,107,18],[107,19,107,20],[108,13,108,18],[108,19,108,20],[103,13,103,18],[103,19,103,20],[104,13,104,18],[104,19,104,20],[114,1,114,3],[114,4,114,12],[114,21,114,22],[114,23,114,24],[114,25,114,27],[113,28,113,30],[114,28,114,30],[113,1,113,3],[113,4,113,12],[113,21,113,22],[113,23,113,24],[113,25,113,27],[113,13,113,18],[113,19,113,20],[112,1,112,3],[112,4,112,12],[112,21,112,22],[112,23,112,24],[112,25,112,27],[111,28,111,30],[112,28,112,30],[111,1,111,3],[111,4,111,12],[111,21,111,22],[111,23,111,24],[111,25,111,27],[110,1,110,3],[110,4,110,12],[110,21,110,22],[110,23,110,24],[110,25,110,27],[109,28,109,30],[110,28,110,30],[109,1,109,3],[109,4,109,12],[109,21,109,22],[109,23,109,24],[109,25,109,27],[109,13,109,18],[109,19,109,20],[114,13,114,18],[114,19,114,20],[110,13,110,18],[110,19,110,20],[111,13,111,18],[111,19,111,20],[112,13,112,18],[112,19,112,20],[120,1,120,3],[120,4,120,12],[120,21,120,22],[120,23,120,24],[120,25,120,27],[119,28,119,30],[120,28,120,30],[119,1,119,3],[119,4,119,12],[119,21,119,22],[119,23,119,24],[119,25,119,27],[118,1,118,3],[118,4,118,12],[118,21,118,22],[118,23,118,24],[118,25,118,27],[117,28,117,30],[118,28,118,30],[117,1,117,3],[117,4,117,12],[117,21,117,22],[117,23,117,24],[117,25,117,27],[117,13,117,18],[117,19,117,20],[116,1,116,3],[116,4,116,12],[116,21,116,22],[116,23,116,24],[116,25,116,27],[115,28,115,30],[116,28,116,30],[115,1,115,3],[115,4,115,12],[115,21,115,22],[115,23,115,24],[115,25,115,27],[118,13,118,18],[118,19,118,20],[119,13,119,18],[119,19,119,20],[120,13,120,18],[120,19,120,20],[115,13,115,18],[115,19,115,20],[116,13,116,18],[116,19,116,20],[126,1,126,3],[126,4,126,12],[126,21,126,22],[126,23,126,24],[126,25,126,27],[125,28,125,30],[126,28,126,30],[125,1,125,3],[125,4,125,12],[125,21,125,22],[125,23,125,24],[125,25,125,27],[125,13,125,18],[125,19,125,20],[124,1,124,3],[124,4,124,12],[124,21,124,22],[124,23,124,24],[124,25,124,27],[123,28,123,30],[124,28,124,30],[123,1,123,3],[123,4,123,12],[123,21,123,22],[123,23,123,24],[123,25,123,27],[122,1,122,3],[122,4,122,12],[122,21,122,22],[122,23,122,24],[122,25,122,27],[121,28,121,30],[122,28,122,30],[121,1,121,3],[121,4,121,12],[121,21,121,22],[121,23,121,24],[121,25,121,27],[121,13,121,18],[121,19,121,20],[122,13,122,18],[122,19,122,20],[123,13,123,18],[123,19,123,20],[124,13,124,18],[124,19,124,20],[126,13,126,18],[126,19,126,20],[132,1,132,3],[132,4,132,12],[132,21,132,22],[132,23,132,24],[132,25,132,27],[131,28,131,30],[132,28,132,30],[131,1,131,3],[131,4,131,12],[131,21,131,22],[131,23,131,24],[131,25,131,27],[130,1,130,3],[130,4,130,12],[130,21,130,22],[130,23,130,24],[130,25,130,27],[129,28,129,30],[130,28,130,30],[129,1,129,3],[129,4,129,12],[129,21,129,22],[129,23,129,24],[129,25,129,27],[129,13,129,18],[129,19,129,20],[128,1,128,3],[128,4,128,12],[128,21,128,22],[128,23,128,24],[128,25,128,27],[127,28,127,30],[128,28,128,30],[127,1,127,3],[127,4,127,12],[127,21,127,22],[127,23,127,24],[127,25,127,27],[130,13,130,18],[130,19,130,20],[131,13,131,18],[131,19,131,20],[132,13,132,18],[132,19,132,20],[127,13,127,18],[127,19,127,20],[128,13,128,18],[128,19,128,20],[138,1,138,3],[138,4,138,12],[138,21,138,22],[138,23,138,24],[138,25,138,27],[137,28,137,30],[138,28,138,30],[137,1,137,3],[137,4,137,12],[137,21,137,22],[137,23,137,24],[137,25,137,27],[137,13,137,18],[137,19,137,20],[136,1,136,3],[136,4,136,12],[136,21,136,22],[136,23,136,24],[136,25,136,27],[135,28,135,30],[136,28,136,30],[135,1,135,3],[135,4,135,12],[135,21,135,22],[135,23,135,24],[135,25,135,27],[134,1,134,3],[134,4,134,12],[134,21,134,22],[134,23,134,24],[134,25,134,27],[133,28,133,30],[134,28,134,30],[133,1,133,3],[133,4,133,12],[133,21,133,22],[133,23,133,24],[133,25,133,27],[133,13,133,18],[133,19,133,20],[138,13,138,18],[138,19,138,20],[134,13,134,18],[134,19,134,20],[135,13,135,18],[135,19,135,20],[136,13,136,18],[136,19,136,20],[144,1,144,3],[144,4,144,12],[144,21,144,22],[144,23,144,24],[144,25,144,27],[143,28,143,30],[144,28,144,30],[143,1,143,3],[143,4,143,12],[143,21,143,22],[143,23,143,24],[143,25,143,27],[142,1,142,3],[142,4,142,12],[142,21,142,22],[142,23,142,24],[142,25,142,27],[141,28,141,30],[142,28,142,30],[141,1,141,3],[141,4,141,12],[141,21,141,22],[141,23,141,24],[141,25,141,27],[141,13,141,18],[141,19,141,20],[140,1,140,3],[140,4,140,12],[140,21,140,22],[140,23,140,24],[140,25,140,27],[139,28,139,30],[140,28,140,30],[139,1,139,3],[139,4,139,12],[139,21,139,22],[139,23,139,24],[139,25,139,27],[142,13,142,18],[142,19,142,20],[143,13,143,18],[143,19,143,20],[144,13,144,18],[144,19,144,20],[139,13,139,18],[139,19,139,20],[140,13,140,18],[140,19,140,20],[150,1,150,3],[150,4,150,12],[150,21,150,22],[150,23,150,24],[150,25,150,27],[149,28,149,30],[150,28,150,30],[149,1,149,3],[149,4,149,12],[149,21,149,22],[149,23,149,24],[149,25,149,27],[149,13,149,18],[149,19,149,20],[148,1,148,3],[148,4,148,12],[148,21,148,22],[148,23,148,24],[148,25,148,27],[147,28,147,30],[148,28,148,30],[147,1,147,3],[147,4,147,12],[147,21,147,22],[147,23,147,24],[147,25,147,27],[146,1,146,3],[146,4,146,12],[146,21,146,22],[146,23,146,24],[146,25,146,27],[145,28,145,30],[146,28,146,30],[145,1,145,3],[145,4,145,12],[145,21,145,22],[145,23,145,24],[145,25,145,27],[145,13,145,18],[145,19,145,20],[146,13,146,18],[146,19,146,20],[147,13,147,18],[147,19,147,20],[148,13,148,18],[148,19,148,20],[150,13,150,18],[150,19,150,20],[156,1,156,3],[156,4,156,12],[156,21,156,22],[156,23,156,24],[156,25,156,27],[155,28,155,30],[156,28,156,30],[155,1,155,3],[155,4,155,12],[155,21,155,22],[155,23,155,24],[155,25,155,27],[154,1,154,3],[154,4,154,12],[154,21,154,22],[154,23,154,24],[154,25,154,27],[153,28,153,30],[154,28,154,30],[153,1,153,3],[153,4,153,12],[153,21,153,22],[153,23,153,24],[153,25,153,27],[153,13,153,18],[153,19,153,20],[152,1,152,3],[152,4,152,12],[152,21,152,22],[152,23,152,24],[152,25,152,27],[151,28,151,30],[152,28,152,30],[151,1,151,3],[151,4,151,12],[151,21,151,22],[151,23,151,24],[151,25,151,27],[154,13,154,18],[154,19,154,20],[155,13,155,18],[155,19,155,20],[156,13,156,18],[156,19,156,20],[151,13,151,18],[151,19,151,20],[152,13,152,18],[152,19,152,20],[162,1,162,3],[162,4,162,12],[162,21,162,22],[162,23,162,24],[162,25,162,27],[161,28,161,30],[162,28,162,30],[161,1,161,3],[161,4,161,12],[161,21,161,22],[161,23,161,24],[161,25,161,27],[161,13,161,18],[161,19,161,20],[160,1,160,3],[160,4,160,12],[160,21,160,22],[160,23,160,24],[160,25,160,27],[159,28,159,30],[160,28,160,30],[159,1,159,3]],"merged_total":125368,"flags":["merged_cut"]}
[]
[null,"Process capability"]
[null,"4_Process capability of initial sample inspection",null,null,null,null,null,null,null,null,null,null,null,null,null,null,null,null,null,null,null,{"$f":"'1_cover_sheet'!V4","v":"Last author"},null,null,null,null,null,null,null,{"$f":"IF('1_cover_sheet'!AD4=\"\",\"\",'1_cover_sheet'!AD4)","v":"Wolf, Joachim"}]
[null,{"$f":"VLOOKUP(83,Translation[],VLOOKUP(SecondLang,LangTable[],2,FALSE)+2,FALSE)","v":""},null,null,null,null,null,null,null,null,null,null,null,null,null,null,null,null,null,null,null,{"$f":"'1_cover_sheet'!V5","v":""}]
[null,{"$f":"'1_cover_sheet'!B6:T6","v":"Light brown colored cells must be completed by supplier!"},null,null,null,null,null,null,null,null,null,null,null,null,null,null,null,null,null,null,null,{"$f":"'1_cover_sheet'!V6","v":"Last save time"},null,null,null,null,null,null,null,{"$f":"IF('1_cover_sheet'!AD6=\"\",\"\",'1_cover_sheet'!AD6)","v":"2025-01-15T10:41:17"}]
[null,{"$f":"'1_cover_sheet'!B7:T7","v":""},null,null,null,null,null,null,null,null,null,null,null,null,null,null,null,null,null,null,null,{"$f":"'1_cover_sheet'!V7","v":""}]
[null,"Link to Quality Capability Statistics For Suppliers",null,null,null,null,null,null,null,null,null,null,null,null,null,null,null,null,null,null,null,{"$f":"'1_cover_sheet'!V8","v":"Report Number"},null,null,null,null,null,null,null,{"$f":"IF('1_cover_sheet'!AD8=\"\",\"\",'1_cover_sheet'!AD8)","v":""}]
[null,{"$f":"VLOOKUP(84,Translation[],VLOOKUP(SecondLang,LangTable[],2,FALSE)+2,FALSE)","v":""},null,null,null,null,null,null,null,null,null,null,null,null,null,null,null,null,null,null,null,{"$f":"'1_cover_sheet'!V9","v":""}]
[]
[null,{"$f":"'1_cover_sheet'!B11","v":"Supplier"},null,null,{"$f":"'1_cover_sheet'!E11","v":""},null,null,null,null,null,null,null,null,null,null,null,null,null,null,null,null,{"$f":"'1_cover_sheet'!V11","v":"Hilti"}]
[null,{"$f":"IF('1_cover_sheet'!B12=\"\",\"\",'1_cover_sheet'!B12)","v":"[Company Name]"},null,null,null,null,null,{"$f":"IF('1_cover_sheet'!G12=\"\",\"\",'1_cover_sheet'!G12)","v":""},null,null,null,null,null,null,null,null,null,null,null,null,null,{"$f":"IF('1_cover_sheet'!V12=\"\",\"\",'1_cover_sheet'!V12)","v":"Hilti Aktiengesellschaft"}]
[null,{"$f":"IF('1_cover_sheet'!B13=\"\",\"\",'1_cover_sheet'!B13)","v":"[Street, Number]"},null,null,null,null,null,{"$f":"IF('1_cover_sheet'!G13=\"\",\"\",'1_cover_sheet'!G13)","v":""},null,null,null,null,null,null,null,null,null,null,null,null,null,{"$f":"IF('1_cover_sheet'!V13=\"\",\"\",'1_cover_sheet'!V13)","v":"Feldkircherstrasse 100  |  P.O.Box 333"}]
[null,{"$f":"IF('1_cover_sheet'!B14=\"\",\"\",'1_cover_sheet'!B14)","v":"[Postal Code]"},null,null,null,null,{"$f":"IF('1_cover_sheet'!F14=\"\",\"\",'1_cover_sheet'!F14)","v":""},null,null,null,null,null,{"$f":"IF('1_cover_sheet'!K14=\"\",\"\",'1_cover_sheet'!K14)","v":"[City]"},null,{"$f":"IF('1_cover_sheet'!M14=\"\",\"\",'1_cover_sheet'!M14)","v":""},null,null,null,null,null,null,{"$f":"IF('1_cover_sheet'!V14=\"\",\"\",'1_cover_sheet'!V14)","v":"FL-9494"},null,null,null,{"$f":"IF('1_cover_sheet'!Z14=\"\",\"\",'1_cover_sheet'!Z14)","v":"Schaan"}]
[null,{"$f":"IF('1_cover_sheet'!B15=\"\",\"\",'1_cover_sheet'!B15)","v":"[Country]"},null,null,null,{"$f":"IF('1_cover_sheet'!E15=\"\",\"\",'1_cover_sheet'!E15)","v":""},null,null,null,null,null,null,null,null,null,null,null,null,null,null,null,{"$f":"IF('1_cover_sheet'!V15=\"\",\"\",'1_cover_sheet'!V15)","v":"Principality of Liechtenstein"}]
[]
[null,{"$f":"'1_cover_sheet'!B17","v":"Item data supplier"},null,null,null,null,null,{"$f":"'1_cover_sheet'!H17","v":""},null,null,null,null,null,null,null,null,null,null,null,null,null,{"$f":"'1_cover_sheet'!V17","v":"Item data Hilti"},null,null,null,null,{"$f":"'1_cover_sheet'!Z17","v":""}]
[null,{"$f":"'3_Initial Sample Inspection'!B17","v":"Material No. / Rev.:"},null,null,null,null,null,{"$f":"IF('1_cover_sheet'!H18=\"\",\"\",'1_cover_sheet'!H18)","v":""},null,null,null,null,null,"/",{"$f":"IF('1_cover_sheet'!O18=\"\",\"\",'1_cover_sheet'!O18)","v":""},null,null,null,null,null,null,{"$f":"'3_Initial Sample Inspection'!B17","v":"Material No. / Rev.:"},null,null,null,null,null,{"$f":"IF('1_cover_sheet'!AB18=\"\",\"\",'1_cover_sheet'!AB18)","v":""},null,null,null,null,null,"/",{"$f":"IF('1_cover_sheet'!AI18=\"\",\"\",'1_cover_sheet'!AI18)","v":""}]
[null,{"$f":"'3_Initial Sample Inspection'!B18","v":""},null,null,null,null,null,null,null,null,null,null,null,null,null,null,null,null,null,null,null,{"$f":"'3_Initial Sample Inspection'!B18","v":""}]
[null,{"$f":"'3_Initial Sample Inspection'!B19","v":"Doc. No.: / Vers.:"},null,null,null,null,null,{"$f":"IF('1_cover_sheet'!H20=\"\",\"\",'1_cover_sheet'!H20)","v":""},null,null,null,null,null,"/",{"$f":"IF('1_cover_sheet'!O20=\"\",\"\",'1_cover_sheet'!O20)","v":""},null,null,null,null,null,null,{"$f":"'3_Initial Sample Inspection'!B19","v":"Doc. No.: / Vers.:"},null,null,null,null,null,{"$f":"IF('1_cover_sheet'!AB20=\"\",\"\",'1_cover_sheet'!AB20)","v":""},null,null,null,null,null,"/",{"$f":"IF('1_cover_sheet'!AI20=\"\",\"\",'1_cover_sheet'!AI20)","v":""}]
[null,{"$f":"'3_Initial Sample Inspection'!B20","v":""},null,null,null,null,null,null,null,null,null,null,null,null,null,null,null,null,null,null,null,{"$f":"'3_Initial Sample Inspection'!B20","v":""}]
[null,{"$f":"'3_Initial Sample Inspection'!B21","v":"Change request:"},null,null,null,null,null,{"$f":"IF('1_cover_sheet'!H22=\"\",\"\",'1_cover_sheet'!H22)","v":""},null,null,null,null,null,null,null,null,null,null,null,null,null,{"$f":"'3_Initial Sample Inspection'!B21","v":"Change request:"},null,null,null,null,null,{"$f":"IF('1_cover_sheet'!AB22=\"\",\"\",'1_cover_sheet'!AB22)","v":""}]
[null,{"$f":"'3_Initial Sample Inspection'!B22","v":""},null,null,null,null,null,null,null,null,null,null,null,null,null,null,null,null,null,null,null,{"$f":"'3_Initial Sample Inspection'!B22","v":""}]
[null,{"$f":"'3_Initial Sample Inspection'!B23","v":"Designation:"},null,null,null,null,null,{"$f":"IF('1_cover_sheet'!H24=\"\",\"\",'1_cover_sheet'!H24)","v":""},null,null,null,null,null,null,null,null,null,null,null,null,null,{"$f":"'3_Initial Sample Inspection'!B23","v":"Designation:"},null,null,null,null,null,{"$f":"IF('1_cover_sheet'!AB24=\"\",\"\",'1_cover_sheet'!AB24)","v":""}]
[null,{"$f":"'3_Initial Sample Inspection'!B24","v":""},null,null,null,null,null,null,null,null,null,null,null,null,null,null,null,null,null,null,null,{"$f":"'3_Initial Sample Inspection'!B24","v":""}]
[null,{"$f":"'3_Initial Sample Inspection'!B25","v":"Order quantity:"},null,null,null,null,null,{"$f":"IF('1_cover_sheet'!H26=\"\",\"\",'1_cover_sheet'!H26)","v":""},null,null,null,null,null,null,null,null,null,null,null,null,null,{"$f":"'3_Initial Sample Inspection'!B25","v":"Order quantity:"},null,null,null,null,null,{"$f":"IF('1_cover_sheet'!AB26=\"\",\"\",'1_cover_sheet'!AB26)","v":""}]
[null,{"$f":"'3_Initial Sample Inspection'!B26","v":""},null,null,null,null,null,null,null,null,null,null,null,null,null,null,null,null,null,null,null,{"$f":"'3_Initial Sample Inspection'!B26","v":""}]
[null,{"$f":"'3_Initial Sample Inspection'!B27","v":"Delivery quantity:"},null,null,null,null,null,{"$f":"IF('1_cover_sheet'!H28=\"\",\"\",'1_cover_sheet'!H28)","v":""},null,null,null,null,null,null,null,null,null,null,null,null,null,{"$f":"'3_Initial Sample Inspection'!B27","v":"Delivery quantity:"},null,null,null,null,null,{"$f":"IF('1_cover_sheet'!AB28=\"\",\"\",'1_cover_sheet'!AB28)","v":""}]
[null,{"$f":"'3_Initial Sample Inspection'!B28","v":""},null,null,null,null,null,null,null,null,null,null,null,null,null,null,null,null,null,null,null,{"$f":"'3_Initial Sample Inspection'!B28","v":""}]
[null,{"$f":"'3_Initial Sample Inspection'!B29","v":"Data storage:"},null,null,null,null,null,{"$f":"IF('3_Initial Sample Inspection'!D29=\"\",\"\",'3_Initial Sample Inspection'!D29)","v":""},null,null,null,null,null,null,null,null,null,null,null,null,null,{"$f":"'3_Initial Sample Inspection'!B29","v":"Data storage:"},null,null,null,null,null,{"$f":"IF('3_Initial Sample Inspection'!L29=\"\",\"\",'3_Initial Sample Inspection'!L29)","v":""}]
[null,{"$f":"'3_Initial Sample Inspection'!B30","v":""},null,null,null,null,null,null,null,null,null,null,null,null,null,null,null,null,null,null,null,{"$f":"'3_Initial Sample Inspection'!B30","v":""}]
[null,{"$f":"'3_Initial Sample Inspection'!B31","v":"Reference samples:"},null,null,null,null,null,{"$f":"IF('3_Initial Sample Inspection'!D31=\"\",\"\",'3_Initial Sample Inspection'!D31)","v":""},null,null,null,null,null,null,null,null,null,null,null,null,null,{"$f":"'3_Initial Sample Inspection'!B31","v":"Reference samples:"},null,null,null,null,null,{"$f":"IF('3_Initial Sample Inspection'!L31=\"\",\"\",'3_Initial Sample Inspection'!L31)","v":""}]
[null,{"$f":"'3_Initial Sample Inspection'!B32","v":""},null,null,null,null,null,null,null,null,null,null,null,null,null,null,null,null,null,null,null,{"$f":"'3_Initial Sample Inspection'!B32","v":""}]
[]
[null,"Details of supplier`s process capabilities",null,null,null,null,null,null,null,null,null,{"$f":"VLOOKUP(85,Translation[],VLOOKUP(SecondLang,LangTable[],2,FALSE)+2,FALSE)","v":""}]
[null,null,"Pp/Ppk → Indicator for a serial process which has not been verified as controlled yet"]
[null,null,null,null,{"$f":"VLOOKUP(86,Translation[],VLOOKUP(SecondLang,LangTable[],2,FALSE)+2,FALSE)","v":""}]
[null,null,"Cp/Cpk → Indicator for a serial process which has been already verified as controlled"]
[null,null,null,null,{"$f":"VLOOKUP(87,Translation[],VLOOKUP(SecondLang,LangTable[],2,FALSE)+2,FALSE)","v":""}]
[]
[null,"Pos.",null,null,"Feature",null,null,null,null,null,null,null,null,"Supplier Measuring method / equipment",null,null,null,null,null,"Lot No",null,"Capability given",null,null,null,null,null,null,null,null,null,"Remarks"]
[null,null,null,null,null,null,null,null,null,null,null,null,null,null,null,null,null,null,null,null,null,{"$f":"VLOOKUP(88,Translation[],VLOOKUP(SecondLang,LangTable[],2,FALSE)+2,FALSE)","v":""}]
[null,{"$f":"'3_Initial Sample Inspection'!B36","v":""},null,null,{"$f":"'3_Initial Sample Inspection'!C36","v":""},null,null,null,null,null,null,null,null,{"$f":"+VLOOKUP(73,Translation[],VLOOKUP(SecondLang,LangTable[],2,FALSE)+2,FALSE)","v":""},null,null,null,null,null,{"$f":"+VLOOKUP(105,Translation[],VLOOKUP(SecondLang,LangTable[],2,FALSE)+2,FALSE)","v":""},null,"Yes",null,"No",null,"Value"]
[null,null,null,null,null,null,null,null,null,null,null,null,null,null,null,null,null,null,null,null,null,{"$f":"VLOOKUP(89,Translation[],VLOOKUP(SecondLang,LangTable[],2,FALSE)+2,FALSE)","v":""},null,{"$f":"VLOOKUP(90,Translation[],VLOOKUP(SecondLang,LangTable[],2,FALSE)+2,FALSE)","v":""},null,"Cp",null,null,"Cpk"]
[]
[]
[]
[]
[]
[]
[]
[]
[]
[null,{"$f":"IF('3_Initial Sample Inspection'!B48=\"\",\"\",'3_Initial Sample Inspection'!B48)","v":""},null,null,{"$f":"IF('3_Initial Sample Inspection'!C48=\"\",\"\",'3_Initial Sample Inspection'!C48)","v":""}]
[null,{"$f":"IF('3_Initial Sample Inspection'!B49=\"\",\"\",'3_Initial Sample Inspection'!B49)","v":""},null,null,{"$f":"IF('3_Initial Sample Inspection'!C49=\"\",\"\",'3_Initial Sample Inspection'!C49)","v":""}]
[null,{"$f":"IF('3_Initial Sample Inspection'!B50=\"\",\"\",'3_Initial Sample Inspection'!B50)","v":""},null,null,{"$f":"IF('3_Initial Sample Inspection'!C50=\"\",\"\",'3_Initial Sample Inspection'!C50)","v":""}]
[null,{"$f":"IF('3_Initial Sample Inspection'!B51=\"\",\"\",'3_Initial Sample Inspection'!B51)","v":""},null,null,{"$f":"IF('3_Initial Sample Inspection'!C51=\"\",\"\",'3_Initial Sample Inspection'!C51)","v":""}]
[null,{"$f":"IF('3_Initial Sample Inspection'!B52=\"\",\"\",'3_Initial Sample Inspection'!B52)","v":""},null,null,{"$f":"IF('3_Initial Sample Inspection'!C52=\"\",\"\",'3_Initial Sample Inspection'!C52)","v":""}]
[null,{"$f":"IF('3_Initial Sample Inspection'!B53=\"\",\"\",'3_Initial Sample Inspection'!B53)","v":""},null,null,{"$f":"IF('3_Initial Sample Inspection'!C53=\"\",\"\",'3_Initial Sample Inspection'!C53)","v":""}]
[null,{"$f":"IF('3_Initial Sample Inspection'!B54=\"\",\"\",'3_Initial Sample Inspection'!B54)","v":""},null,null,{"$f":"IF('3_Initial Sample Inspection'!C54=\"\",\"\",'3_Initial Sample Inspection'!C54)","v":""}]
[null,{"$f":"IF('3_Initial Sample Inspection'!B55=\"\",\"\",'3_Initial Sample Inspection'!B55)","v":""},null,null,{"$f":"IF('3_Initial Sample Inspection'!C55=\"\",\"\",'3_Initial Sample Inspection'!C55)","v":""}]
[null,{"$f":"IF('3_Initial Sample Inspection'!B56=\"\",\"\",'3_Initial Sample Inspection'!B56)","v":""},null,null,{"$f":"IF('3_Initial Sample Inspection'!C56=\"\",\"\",'3_Initial Sample Inspection'!C56)","v":""}]
[null,{"$f":"IF('3_Initial Sample Inspection'!B57=\"\",\"\",'3_Initial Sample Inspection'!B57)","v":""},null,null,{"$f":"IF('3_Initial Sample Inspection'!C57=\"\",\"\",'3_Initial Sample Inspection'!C57)","v":""}]
[null,{"$f":"IF('3_Initial Sample Inspection'!B58=\"\",\"\",'3_Initial Sample Inspection'!B58)","v":""},null,null,{"$f":"IF('3_Initial Sample Inspection'!C58=\"\",\"\",'3_Initial Sample Inspection'!C58)","v":""}]
[null,{"$f":"IF('3_Initial Sample Inspection'!B59=\"\",\"\",'3_Initial Sample Inspection'!B59)","v":""},null,null,{"$f":"IF('3_Initial Sample Inspection'!C59=\"\",\"\",'3_Initial Sample Inspection'!C59)","v":""}]
[null,{"$f":"IF('3_Initial Sample Inspection'!B60=\"\",\"\",'3_Initial Sample Inspection'!B60)","v":""},null,null,{"$f":"IF('3_Initial Sample Inspection'!C60=\"\",\"\",'3_Initial Sample Inspection'!C60)","v":""}]
[null,{"$f":"IF('3_Initial Sample Inspection'!B61=\"\",\"\",'3_Initial Sample Inspection'!B61)","v":""},null,null,{"$f":"IF('3_Initial Sample Inspection'!C61=\"\",\"\",'3_Initial Sample Inspection'!C61)","v":""}]
[null,{"$f":"IF('3_Initial Sample Inspection'!B62=\"\",\"\",'3_Initial Sample Inspection'!B62)","v":""},null,null,{"$f":"IF('3_Initial Sample Inspection'!C62=\"\",\"\",'3_Initial Sample Inspection'!C62)","v":""}]
[null,{"$f":"IF('3_Initial Sample Inspection'!B63=\"\",\"\",'3_Initial Sample Inspection'!B63)","v":""},null,null,{"$f":"IF('3_Initial Sample Inspection'!C63=\"\",\"\",'3_Initial Sample Inspection'!C63)","v":""}]
[null,{"$f":"IF('3_Initial Sample Inspection'!B64=\"\",\"\",'3_Initial Sample Inspection'!B64)","v":""},null,null,{"$f":"IF('3_Initial Sample Inspection'!C64=\"\",\"\",'3_Initial Sample Inspection'!C64)","v":""}]
[null,{"$f":"IF('3_Initial Sample Inspection'!B65=\"\",\"\",'3_Initial Sample Inspection'!B65)","v":""},null,null,{"$f":"IF('3_Initial Sample Inspection'!C65=\"\",\"\",'3_Initial Sample Inspection'!C65)","v":""}]
[null,{"$f":"IF('3_Initial Sample Inspection'!B66=\"\",\"\",'3_Initial Sample Inspection'!B66)","v":""},null,null,{"$f":"IF('3_Initial Sample Inspection'!C66=\"\",\"\",'3_Initial Sample Inspection'!C66)","v":""}]
[null,{"$f":"IF('3_Initial Sample Inspection'!B67=\"\",\"\",'3_Initial Sample Inspection'!B67)","v":""},null,null,{"$f":"IF('3_Initial Sample Inspection'!C67=\"\",\"\",'3_Initial Sample Inspection'!C67)","v":""}]
[null,{"$f":"IF('3_Initial Sample Inspection'!B68=\"\",\"\",'3_Initial Sample Inspection'!B68)","v":""},null,null,{"$f":"IF('3_Initial Sample Inspection'!C68=\"\",\"\",'3_Initial Sample Inspection'!C68)","v":""}]
[null,{"$f":"IF('3_Initial Sample Inspection'!B69=\"\",\"\",'3_Initial Sample Inspection'!B69)","v":""},null,null,{"$f":"IF('3_Initial Sample Inspection'!C69=\"\",\"\",'3_Initial Sample Inspection'!C69)","v":""}]
[null,{"$f":"IF('3_Initial Sample Inspection'!B70=\"\",\"\",'3_Initial Sample Inspection'!B70)","v":""},null,null,{"$f":"IF('3_Initial Sample Inspection'!C70=\"\",\"\",'3_Initial Sample Inspection'!C70)","v":""}]
[null,{"$f":"IF('3_Initial Sample Inspection'!B71=\"\",\"\",'3_Initial Sample Inspection'!B71)","v":""},null,null,{"$f":"IF('3_Initial Sample Inspection'!C71=\"\",\"\",'3_Initial Sample Inspection'!C71)","v":""}]
[null,{"$f":"IF('3_Initial Sample Inspection'!B72=\"\",\"\",'3_Initial Sample Inspection'!B72)","v":""},null,null,{"$f":"IF('3_Initial Sample Inspection'!C72=\"\",\"\",'3_Initial Sample Inspection'!C72)","v":""}]
[null,{"$f":"IF('3_Initial Sample Inspection'!B73=\"\",\"\",'3_Initial Sample Inspection'!B73)","v":""},null,null,{"$f":"IF('3_Initial Sample Inspection'!C73=\"\",\"\",'3_Initial Sample Inspection'!C73)","v":""}]
[null,{"$f":"IF('3_Initial Sample Inspection'!B74=\"\",\"\",'3_Initial Sample Inspection'!B74)","v":""},null,null,{"$f":"IF('3_Initial Sample Inspection'!C74=\"\",\"\",'3_Initial Sample Inspection'!C74)","v":""}]
[null,{"$f":"IF('3_Initial Sample Inspection'!B75=\"\",\"\",'3_Initial Sample Inspection'!B75)","v":""},null,null,{"$f":"IF('3_Initial Sample Inspection'!C75=\"\",\"\",'3_Initial Sample Inspection'!C75)","v":""}]
[null,{"$f":"IF('3_Initial Sample Inspection'!B76=\"\",\"\",'3_Initial Sample Inspection'!B76)","v":""},null,null,{"$f":"IF('3_Initial Sample Inspection'!C76=\"\",\"\",'3_Initial Sample Inspection'!C76)","v":""}]
[null,{"$f":"IF('3_Initial Sample Inspection'!B77=\"\",\"\",'3_Initial Sample Inspection'!B77)","v":""},null,null,{"$f":"IF('3_Initial Sample Inspection'!C77=\"\",\"\",'3_Initial Sample Inspection'!C77)","v":""}]
[null,{"$f":"IF('3_Initial Sample Inspection'!B78=\"\",\"\",'3_Initial Sample Inspection'!B78)","v":""},null,null,{"$f":"IF('3_Initial Sample Inspection'!C78=\"\",\"\",'3_Initial Sample Inspection'!C78)","v":""}]
[null,{"$f":"IF('3_Initial Sample Inspection'!B79=\"\",\"\",'3_Initial Sample Inspection'!B79)","v":""},null,null,{"$f":"IF('3_Initial Sample Inspection'!C79=\"\",\"\",'3_Initial Sample Inspection'!C79)","v":""}]
[null,{"$f":"IF('3_Initial Sample Inspection'!B80=\"\",\"\",'3_Initial Sample Inspection'!B80)","v":""},null,null,{"$f":"IF('3_Initial Sample Inspection'!C80=\"\",\"\",'3_Initial Sample Inspection'!C80)","v":""}]
[null,{"$f":"IF('3_Initial Sample Inspection'!B81=\"\",\"\",'3_Initial Sample Inspection'!B81)","v":""},null,null,{"$f":"IF('3_Initial Sample Inspection'!C81=\"\",\"\",'3_Initial Sample Inspection'!C81)","v":""}]
[null,{"$f":"IF('3_Initial Sample Inspection'!B82=\"\",\"\",'3_Initial Sample Inspection'!B82)","v":""},null,null,{"$f":"IF('3_Initial Sample Inspection'!C82=\"\",\"\",'3_Initial Sample Inspection'!C82)","v":""}]
[null,{"$f":"IF('3_Initial Sample Inspection'!B83=\"\",\"\",'3_Initial Sample Inspection'!B83)","v":""},null,null,{"$f":"IF('3_Initial Sample Inspection'!C83=\"\",\"\",'3_Initial Sample Inspection'!C83)","v":""}]
[null,{"$f":"IF('3_Initial Sample Inspection'!B84=\"\",\"\",'3_Initial Sample Inspection'!B84)","v":""},null,null,{"$f":"IF('3_Initial Sample Inspection'!C84=\"\",\"\",'3_Initial Sample Inspection'!C84)","v":""}]
[null,{"$f":"IF('3_Initial Sample Inspection'!B85=\"\",\"\",'3_Initial Sample Inspection'!B85)","v":""},null,null,{"$f":"IF('3_Initial Sample Inspection'!C85=\"\",\"\",'3_Initial Sample Inspection'!C85)","v":""}]
[null,{"$f":"IF('3_Initial Sample Inspection'!B86=\"\",\"\",'3_Initial Sample Inspection'!B86)","v":""},null,null,{"$f":"IF('3_Initial Sample Inspection'!C86=\"\",\"\",'3_Initial Sample Inspection'!C86)","v":""}]
[null,{"$f":"IF('3_Initial Sample Inspection'!B87=\"\",\"\",'3_Initial Sample Inspection'!B87)","v":""},null,null,{"$f":"IF('3_Initial Sample Inspection'!C87=\"\",\"\",'3_Initial Sample Inspection'!C87)","v":""}]
[null,{"$f":"IF('3_Initial Sample Inspection'!B88=\"\",\"\",'3_Initial Sample Inspection'!B88)","v":""},null,null,{"$f":"IF('3_Initial Sample Inspection'!C88=\"\",\"\",'3_Initial Sample Inspection'!C88)","v":""}]
[null,{"$f":"IF('3_Initial Sample Inspection'!B89=\"\",\"\",'3_Initial Sample Inspection'!B89)","v":""},null,null,{"$f":"IF('3_Initial Sample Inspection'!C89=\"\",\"\",'3_Initial Sample Inspection'!C89)","v":""}]
[null,{"$f":"IF('3_Initial Sample Inspection'!B90=\"\",\"\",'3_Initial Sample Inspection'!B90)","v":""},null,null,{"$f":"IF('3_Initial Sample Inspection'!C90=\"\",\"\",'3_Initial Sample Inspection'!C90)","v":""}]
[null,{"$f":"IF('3_Initial Sample Inspection'!B91=\"\",\"\",'3_Initial Sample Inspection'!B91)","v":""},null,null,{"$f":"IF('3_Initial Sample Inspection'!C91=\"\",\"\",'3_Initial Sample Inspection'!C91)","v":""}]
[null,{"$f":"IF('3_Initial Sample Inspection'!B92=\"\",\"\",'3_Initial Sample Inspection'!B92)","v":""},null,null,{"$f":"IF('3_Initial Sample Inspection'!C92=\"\",\"\",'3_Initial Sample Inspection'!C92)","v":""}]
[null,{"$f":"IF('3_Initial Sample Inspection'!B93=\"\",\"\",'3_Initial Sample Inspection'!B93)","v":""},null,null,{"$f":"IF('3_Initial Sample Inspection'!C93=\"\",\"\",'3_Initial Sample Inspection'!C93)","v":""}]
[null,{"$f":"IF('3_Initial Sample Inspection'!B94=\"\",\"\",'3_Initial Sample Inspection'!B94)","v":""},null,null,{"$f":"IF('3_Initial Sample Inspection'!C94=\"\",\"\",'3_Initial Sample Inspection'!C94)","v":""}]
[null,{"$f":"IF('3_Initial Sample Inspection'!B95=\"\",\"\",'3_Initial Sample Inspection'!B95)","v":""},null,null,{"$f":"IF('3_Initial Sample Inspection'!C95=\"\",\"\",'3_Initial Sample Inspection'!C95)","v":""}]
[null,{"$f":"IF('3_Initial Sample Inspection'!B96=\"\",\"\",'3_Initial Sample Inspection'!B96)","v":""},null,null,{"$f":"IF('3_Initial Sample Inspection'!C96=\"\",\"\",'3_Initial Sample Inspection'!C96)","v":""}]
[null,{"$f":"IF('3_Initial Sample Inspection'!B97=\"\",\"\",'3_Initial Sample Inspection'!B97)","v":""},null,null,{"$f":"IF('3_Initial Sample Inspection'!C97=\"\",\"\",'3_Initial Sample Inspection'!C97)","v":""}]
[null,{"$f":"IF('3_Initial Sample Inspection'!B98=\"\",\"\",'3_Initial Sample Inspection'!B98)","v":""},null,null,{"$f":"IF('3_Initial Sample Inspection'!C98=\"\",\"\",'3_Initial Sample Inspection'!C98)","v":""}]
[null,{"$f":"IF('3_Initial Sample Inspection'!B99=\"\",\"\",'3_Initial Sample Inspection'!B99)","v":""},null,null,{"$f":"IF('3_Initial Sample Inspection'!C99=\"\",\"\",'3_Initial Sample Inspection'!C99)","v":""}]
[null,{"$f":"IF('3_Initial Sample Inspection'!B100=\"\",\"\",'3_Initial Sample Inspection'!B100)","v":""},null,null,{"$f":"IF('3_Initial Sample Inspection'!C100=\"\",\"\",'3_Initial Sample Inspection'!C100)","v":""}]
[null,{"$f":"IF('3_Initial Sample Inspection'!B101=\"\",\"\",'3_Initial Sample Inspection'!B101)","v":""},null,null,{"$f":"IF('3_Initial Sample Inspection'!C101=\"\",\"\",'3_Initial Sample Inspection'!C101)","v":""}]
[null,{"$f":"IF('3_Initial Sample Inspection'!B102=\"\",\"\",'3_Initial Sample Inspection'!B102)","v":""},null,null,{"$f":"IF('3_Initial Sample Inspection'!C102=\"\",\"\",'3_Initial Sample Inspection'!C102)","v":""}]
[null,{"$f":"IF('3_Initial Sample Inspection'!B103=\"\",\"\",'3_Initial Sample Inspection'!B103)","v":""},null,null,{"$f":"IF('3_Initial Sample Inspection'!C103=\"\",\"\",'3_Initial Sample Inspection'!C103)","v":""}]
[null,{"$f":"IF('3_Initial Sample Inspection'!B104=\"\",\"\",'3_Initial Sample Inspection'!B104)","v":""},null,null,{"$f":"IF('3_Initial Sample Inspection'!C104=\"\",\"\",'3_Initial Sample Inspection'!C104)","v":""}]
[null,{"$f":"IF('3_Initial Sample Inspection'!B105=\"\",\"\",'3_Initial Sample Inspection'!B105)","v":""},null,null,{"$f":"IF('3_Initial Sample Inspection'!C105=\"\",\"\",'3_Initial Sample Inspection'!C105)","v":""}]
[null,{"$f":"IF('3_Initial Sample Inspection'!B106=\"\",\"\",'3_Initial Sample Inspection'!B106)","v":""},null,null,{"$f":"IF('3_Initial Sample Inspection'!C106=\"\",\"\",'3_Initial Sample Inspection'!C106)","v":""}]
[null,{"$f":"IF('3_Initial Sample Inspection'!B107=\"\",\"\",'3_Initial Sample Inspection'!B107)","v":""},null,null,{"$f":"IF('3_Initial Sample Inspection'!C107=\"\",\"\",'3_Initial Sample Inspection'!C107)","v":""}]
[null,{"$f":"IF('3_Initial Sample Inspection'!B108=\"\",\"\",'3_Initial Sample Inspection'!B108)","v":""},null,null,{"$f":"IF('3_Initial Sample Inspection'!C108=\"\",\"\",'3_Initial Sample Inspection'!C108)","v":""}]
[null,{"$f":"IF('3_Initial Sample Inspection'!B109=\"\",\"\",'3_Initial Sample Inspection'!B109)","v":""},null,null,{"$f":"IF('3_Initial Sample Inspection'!C109=\"\",\"\",'3_Initial Sample Inspection'!C109)","v":""}]
[null,{"$f":"IF('3_Initial Sample Inspection'!B110=\"\",\"\",'3_Initial Sample Inspection'!B110)","v":""},null,null,{"$f":"IF('3_Initial Sample Inspection'!C110=\"\",\"\",'3_Initial Sample Inspection'!C110)","v":""}]
[null,{"$f":"IF('3_Initial Sample Inspection'!B111=\"\",\"\",'3_Initial Sample Inspection'!B111)","v":""},null,null,{"$f":"IF('3_Initial Sample Inspection'!C111=\"\",\"\",'3_Initial Sample Inspection'!C111)","v":""}]
[null,{"$f":"IF('3_Initial Sample Inspection'!B112=\"\",\"\",'3_Initial Sample Inspection'!B112)","v":""},null,null,{"$f":"IF('3_Initial Sample Inspection'!C112=\"\",\"\",'3_Initial Sample Inspection'!C112)","v":""}]
[null,{"$f":"IF('3_Initial Sample Inspection'!B113=\"\",\"\",'3_Initial Sample Inspection'!B113)","v":""},null,null,{"$f":"IF('3_Initial Sample Inspection'!C113=\"\",\"\",'3_Initial Sample Inspection'!C113)","v":""}]
[null,{"$f":"IF('3_Initial Sample Inspection'!B114=\"\",\"\",'3_Initial Sample Inspection'!B114)","v":""},null,null,{"$f":"IF('3_Initial Sample Inspection'!C114=\"\",\"\",'3_Initial Sample Inspection'!C114)","v":""}]
[null,{"$f":"IF('3_Initial Sample Inspection'!B115=\"\",\"\",'3_Initial Sample Inspection'!B115)","v":""},null,null,{"$f":"IF('3_Initial Sample Inspection'!C115=\"\",\"\",'3_Initial Sample Inspection'!C115)","v":""}]
[null,{"$f":"IF('3_Initial Sample Inspection'!B116=\"\",\"\",'3_Initial Sample Inspection'!B116)","v":""},null,null,{"$f":"IF('3_Initial Sample Inspection'!C116=\"\",\"\",'3_Initial Sample Inspection'!C116)","v":""}]
[null,{"$f":"IF('3_Initial Sample Inspection'!B117=\"\",\"\",'3_Initial Sample Inspection'!B117)","v":""},null,null,{"$f":"IF('3_Initial Sample Inspection'!C117=\"\",\"\",'3_Initial Sample Inspection'!C117)","v":""}]
[null,{"$f":"IF('3_Initial Sample Inspection'!B118=\"\",\"\",'3_Initial Sample Inspection'!B118)","v":""},null,null,{"$f":"IF('3_Initial Sample Inspection'!C118=\"\",\"\",'3_Initial Sample Inspection'!C118)","v":""}]
[null,{"$f":"IF('3_Initial Sample Inspection'!B119=\"\",\"\",'3_Initial Sample Inspection'!B119)","v":""},null,null,{"$f":"IF('3_Initial Sample Inspection'!C119=\"\",\"\",'3_Initial Sample Inspection'!C119)","v":""}]
[null,{"$f":"IF('3_Initial Sample Inspection'!B120=\"\",\"\",'3_Initial Sample Inspection'!B120)","v":""},null,null,{"$f":"IF('3_Initial Sample Inspection'!C120=\"\",\"\",'3_Initial Sample Inspection'!C120)","v":""}]
[null,{"$f":"IF('3_Initial Sample Inspection'!B121=\"\",\"\",'3_Initial Sample Inspection'!B121)","v":""},null,null,{"$f":"IF('3_Initial Sample Inspection'!C121=\"\",\"\",'3_Initial Sample Inspection'!C121)","v":""}]
[null,{"$f":"IF('3_Initial Sample Inspection'!B122=\"\",\"\",'3_Initial Sample Inspection'!B122)","v":""},null,null,{"$f":"IF('3_Initial Sample Inspection'!C122=\"\",\"\",'3_Initial Sample Inspection'!C122)","v":""}]
[null,{"$f":"IF('3_Initial Sample Inspection'!B123=\"\",\"\",'3_Initial Sample Inspection'!B123)","v":""},null,null,{"$f":"IF('3_Initial Sample Inspection'!C123=\"\",\"\",'3_Initial Sample Inspection'!C123)","v":""}]
[null,{"$f":"IF('3_Initial Sample Inspection'!B124=\"\",\"\",'3_Initial Sample Inspection'!B124)","v":""},null,null,{"$f":"IF('3_Initial Sample Inspection'!C124=\"\",\"\",'3_Initial Sample Inspection'!C124)","v":""}]
[null,{"$f":"IF('3_Initial Sample Inspection'!B125=\"\",\"\",'3_Initial Sample Inspection'!B125)","v":""},null,null,{"$f":"IF('3_Initial Sample Inspection'!C125=\"\",\"\",'3_Initial Sample Inspection'!C125)","v":""}]
[null,{"$f":"IF('3_Initial Sample Inspection'!B126=\"\",\"\",'3_Initial Sample Inspection'!B126)","v":""},null,null,{"$f":"IF('3_Initial Sample Inspection'!C126=\"\",\"\",'3_Initial Sample Inspection'!C126)","v":""}]
[null,{"$f":"IF('3_Initial Sample Inspection'!B127=\"\",\"\",'3_Initial Sample Inspection'!B127)","v":""},null,null,{"$f":"IF('3_Initial Sample Inspection'!C127=\"\",\"\",'3_Initial Sample Inspection'!C127)","v":""}]
[null,{"$f":"IF('3_Initial Sample Inspection'!B128=\"\",\"\",'3_Initial Sample Inspection'!B128)","v":""},null,null,{"$f":"IF('3_Initial Sample Inspection'!C128=\"\",\"\",'3_Initial Sample Inspection'!C128)","v":""}]
[null,{"$f":"IF('3_Initial Sample Inspection'!B129=\"\",\"\",'3_Initial Sample Inspection'!B129)","v":""},null,null,{"$f":"IF('3_Initial Sample Inspection'!C129=\"\",\"\",'3_Initial Sample Inspection'!C129)","v":""}]
[null,{"$f":"IF('3_Initial Sample Inspection'!B130=\"\",\"\",'3_Initial Sample Inspection'!B130)","v":""},null,null,{"$f":"IF('3_Initial Sample Inspection'!C130=\"\",\"\",'3_Initial Sample Inspection'!C130)","v":""}]
[null,{"$f":"IF('3_Initial Sample Inspection'!B131=\"\",\"\",'3_Initial Sample Inspection'!B131)","v":""},null,null,{"$f":"IF('3_Initial Sample Inspection'!C131=\"\",\"\",'3_Initial Sample Inspection'!C131)","v":""}]
[null,{"$f":"IF('3_Initial Sample Inspection'!B132=\"\",\"\",'3_Initial Sample Inspection'!B132)","v":""},null,null,{"$f":"IF('3_Initial Sample Inspection'!C132=\"\",\"\",'3_Initial Sample Inspection'!C132)","v":""}]
[null,{"$f":"IF('3_Initial Sample Inspection'!B133=\"\",\"\",'3_Initial Sample Inspection'!B133)","v":""},null,null,{"$f":"IF('3_Initial Sample Inspection'!C133=\"\",\"\",'3_Initial Sample Inspection'!C133)","v":""}]
[null,{"$f":"IF('3_Initial Sample Inspection'!B134=\"\",\"\",'3_Initial Sample Inspection'!B134)","v":""},null,null,{"$f":"IF('3_Initial Sample Inspection'!C134=\"\",\"\",'3_Initial Sample Inspection'!C134)","v":""}]
[null,{"$f":"IF('3_Initial Sample Inspection'!B135=\"\",\"\",'3_Initial Sample Inspection'!B135)","v":""},null,null,{"$f":"IF('3_Initial Sample Inspection'!C135=\"\",\"\",'3_Initial Sample Inspection'!C135)","v":""}]
[null,{"$f":"IF('3_Initial Sample Inspection'!B136=\"\",\"\",'3_Initial Sample Inspection'!B136)","v":""},null,null,{"$f":"IF('3_Initial Sample Inspection'!C136=\"\",\"\",'3_Initial Sample Inspection'!C136)","v":""}]
[null,{"$f":"IF('3_Initial Sample Inspection'!B137=\"\",\"\",'3_Initial Sample Inspection'!B137)","v":""},null,null,{"$f":"IF('3_Initial Sample Inspection'!C137=\"\",\"\",'3_Initial Sample Inspection'!C137)","v":""}]
[null,{"$f":"IF('3_Initial Sample Inspection'!B138=\"\",\"\",'3_Initial Sample Inspection'!B138)","v":""},null,null,{"$f":"IF('3_Initial Sample Inspection'!C138=\"\",\"\",'3_Initial Sample Inspection'!C138)","v":""}]
[null,{"$f":"IF('3_Initial Sample Inspection'!B139=\"\",\"\",'3_Initial Sample Inspection'!B139)","v":""},null,null,{"$f":"IF('3_Initial Sample Inspection'!C139=\"\",\"\",'3_Initial Sample Inspection'!C139)","v":""}]
[null,{"$f":"IF('3_Initial Sample Inspection'!B140=\"\",\"\",'3_Initial Sample Inspection'!B140)","v":""},null,null,{"$f":"IF('3_Initial Sample Inspection'!C140=\"\",\"\",'3_Initial Sample Inspection'!C140)","v":""}]
[null,{"$f":"IF('3_Initial Sample Inspection'!B141=\"\",\"\",'3_Initial Sample Inspection'!B141)","v":""},null,null,{"$f":"IF('3_Initial Sample Inspection'!C141=\"\",\"\",'3_Initial Sample Inspection'!C141)","v":""}]
[null,{"$f":"IF('3_Initial Sample Inspection'!B142=\"\",\"\",'3_Initial Sample Inspection'!B142)","v":""},null,null,{"$f":"IF('3_Initial Sample Inspection'!C142=\"\",\"\",'3_Initial Sample Inspection'!C142)","v":""}]
[null,{"$f":"IF('3_Initial Sample Inspection'!B143=\"\",\"\",'3_Initial Sample Inspection'!B143)","v":""},null,null,{"$f":"IF('3_Initial Sample Inspection'!C143=\"\",\"\",'3_Initial Sample Inspection'!C143)","v":""}]
[null,{"$f":"IF('3_Initial Sample Inspection'!B144=\"\",\"\",'3_Initial Sample Inspection'!B144)","v":""},null,null,{"$f":"IF('3_Initial Sample Inspection'!C144=\"\",\"\",'3_Initial Sample Inspection'!C144)","v":""}]
[null,{"$f":"IF('3_Initial Sample Inspection'!B145=\"\",\"\",'3_Initial Sample Inspection'!B145)","v":""},null,null,{"$f":"IF('3_Initial Sample Inspection'!C145=\"\",\"\",'3_Initial Sample Inspection'!C145)","v":""}]
[null,{"$f":"IF('3_Initial Sample Inspection'!B146=\"\",\"\",'3_Initial Sample Inspection'!B146)","v":""},null,null,{"$f":"IF('3_Initial Sample Inspection'!C146=\"\",\"\",'3_Initial Sample Inspection'!C146)","v":""}]
[null,{"$f":"IF('3_Initial Sample Inspection'!B147=\"\",\"\",'3_Initial Sample Inspection'!B147)","v":""},null,null,{"$f":"IF('3_Initial Sample Inspection'!C147=\"\",\"\",'3_Initial Sample Inspection'!C147)","v":""}]
[null,{"$f":"IF('3_Initial Sample Inspection'!B148=\"\",\"\",'3_Initial Sample Inspection'!B148)","v":""},null,null,{"$f":"IF('3_Initial Sample Inspection'!C148=\"\",\"\",'3_Initial Sample Inspection'!C148)","v":""}]
[null,{"$f":"IF('3_Initial Sample Inspection'!B149=\"\",\"\",'3_Initial Sample Inspection'!B149)","v":""},null,null,{"$f":"IF('3_Initial Sample Inspection'!C149=\"\",\"\",'3_Initial Sample Inspection'!C149)","v":""}]
[null,{"$f":"IF('3_Initial Sample Inspection'!B150=\"\",\"\",'3_Initial Sample Inspection'!B150)","v":""},null,null,{"$f":"IF('3_Initial Sample Inspection'!C150=\"\",\"\",'3_Initial Sample Inspection'!C150)","v":""}]
[null,{"$f":"IF('3_Initial Sample Inspection'!B151=\"\",\"\",'3_Initial Sample Inspection'!B151)","v":""},null,null,{"$f":"IF('3_Initial Sample Inspection'!C151=\"\",\"\",'3_Initial Sample Inspection'!C151)","v":""}]
[null,{"$f":"IF('3_Initial Sample Inspection'!B152=\"\",\"\",'3_Initial Sample Inspection'!B152)","v":""},null,null,{"$f":"IF('3_Initial Sample Inspection'!C152=\"\",\"\",'3_Initial Sample Inspection'!C152)","v":""}]
[null,{"$f":"IF('3_Initial Sample Inspection'!B153=\"\",\"\",'3_Initial Sample Inspection'!B153)","v":""},null,null,{"$f":"IF('3_Initial Sample Inspection'!C153=\"\",\"\",'3_Initial Sample Inspection'!C153)","v":""}]
[null,{"$f":"IF('3_Initial Sample Inspection'!B154=\"\",\"\",'3_Initial Sample Inspection'!B154)","v":""},null,null,{"$f":"IF('3_Initial Sample Inspection'!C154=\"\",\"\",'3_Initial Sample Inspection'!C154)","v":""}]
[null,{"$f":"IF('3_Initial Sample Inspection'!B155=\"\",\"\",'3_Initial Sample Inspection'!B155)","v":""},null,null,{"$f":"IF('3_Initial Sample Inspection'!C155=\"\",\"\",'3_Initial Sample Inspection'!C155)","v":""}]
[null,{"$f":"IF('3_Initial Sample Inspection'!B156=\"\",\"\",'3_Initial Sample Inspection'!B156)","v":""},null,null,{"$f":"IF('3_Initial Sample Inspection'!C156=\"\",\"\",'3_Initial Sample Inspection'!C156)","v":""}]
[null,{"$f":"IF('3_Initial Sample Inspection'!B157=\"\",\"\",'3_Initial Sample Inspection'!B157)","v":""},null,null,{"$f":"IF('3_Initial Sample Inspection'!C157=\"\",\"\",'3_Initial Sample Inspection'!C157)","v":""}]
[null,{"$f":"IF('3_Initial Sample Inspection'!B158=\"\",\"\",'3_Initial Sample Inspection'!B158)","v":""},null,null,{"$f":"IF('3_Initial Sample Inspection'!C158=\"\",\"\",'3_Initial Sample Inspection'!C158)","v":""}]
[null,{"$f":"IF('3_Initial Sample Inspection'!B159=\"\",\"\",'3_Initial Sample Inspection'!B159)","v":""},null,null,{"$f":"IF('3_Initial Sample Inspection'!C159=\"\",\"\",'3_Initial Sample Inspection'!C159)","v":""}]
[null,{"$f":"IF('3_Initial Sample Inspection'!B160=\"\",\"\",'3_Initial Sample Inspection'!B160)","v":""},null,null,{"$f":"IF('3_Initial Sample Inspection'!C160=\"\",\"\",'3_Initial Sample Inspection'!C160)","v":""}]
[null,{"$f":"IF('3_Initial Sample Inspection'!B161=\"\",\"\",'3_Initial Sample Inspection'!B161)","v":""},null,null,{"$f":"IF('3_Initial Sample Inspection'!C161=\"\",\"\",'3_Initial Sample Inspection'!C161)","v":""}]
[null,{"$f":"IF('3_Initial Sample Inspection'!B162=\"\",\"\",'3_Initial Sample Inspection'!B162)","v":""},null,null,{"$f":"IF('3_Initial Sample Inspection'!C162=\"\",\"\",'3_Initial Sample Inspection'!C162)","v":""}]
[null,{"$f":"IF('3_Initial Sample Inspection'!B163=\"\",\"\",'3_Initial Sample Inspection'!B163)","v":""},null,null,{"$f":"IF('3_Initial Sample Inspection'!C163=\"\",\"\",'3_Initial Sample Inspection'!C163)","v":""}]
[null,{"$f":"IF('3_Initial Sample Inspection'!B164=\"\",\"\",'3_Initial Sample Inspection'!B164)","v":""},null,null,{"$f":"IF('3_Initial Sample Inspection'!C164=\"\",\"\",'3_Initial Sample Inspection'!C164)","v":""}]
[null,{"$f":"IF('3_Initial Sample Inspection'!B165=\"\",\"\",'3_Initial Sample Inspection'!B165)","v":""},null,null,{"$f":"IF('3_Initial Sample Inspection'!C165=\"\",\"\",'3_Initial Sample Inspection'!C165)","v":""}]
[null,{"$f":"IF('3_Initial Sample Inspection'!B166=\"\",\"\",'3_Initial Sample Inspection'!B166)","v":""},null,null,{"$f":"IF('3_Initial Sample Inspection'!C166=\"\",\"\",'3_Initial Sample Inspection'!C166)","v":""}]
[null,{"$f":"IF('3_Initial Sample Inspection'!B167=\"\",\"\",'3_Initial Sample Inspection'!B167)","v":""},null,null,{"$f":"IF('3_Initial Sample Inspection'!C167=\"\",\"\",'3_Initial Sample Inspection'!C167)","v":""}]
[null,{"$f":"IF('3_Initial Sample Inspection'!B168=\"\",\"\",'3_Initial Sample Inspection'!B168)","v":""},null,null,{"$f":"IF('3_Initial Sample Inspection'!C168=\"\",\"\",'3_Initial Sample Inspection'!C168)","v":""}]
[null,{"$f":"IF('3_Initial Sample Inspection'!B169=\"\",\"\",'3_Initial Sample Inspection'!B169)","v":""},null,null,{"$f":"IF('3_Initial Sample Inspection'!C169=\"\",\"\",'3_Initial Sample Inspection'!C169)","v":""}]
[null,{"$f":"IF('3_Initial Sample Inspection'!B170=\"\",\"\",'3_Initial Sample Inspection'!B170)","v":""},null,null,{"$f":"IF('3_Initial Sample Inspection'!C170=\"\",\"\",'3_Initial Sample Inspection'!C170)","v":""}]
[null,{"$f":"IF('3_Initial Sample Inspection'!B171=\"\",\"\",'3_Initial Sample Inspection'!B171)","v":""},null,null,{"$f":"IF('3_Initial Sample Inspection'!C171=\"\",\"\",'3_Initial Sample Inspection'!C171)","v":""}]
[null,{"$f":"IF('3_Initial Sample Inspection'!B172=\"\",\"\",'3_Initial Sample Inspection'!B172)","v":""},null,null,{"$f":"IF('3_Initial Sample Inspection'!C172=\"\",\"\",'3_Initial Sample Inspection'!C172)","v":""}]
[null,{"$f":"IF('3_Initial Sample Inspection'!B173=\"\",\"\",'3_Initial Sample Inspection'!B173)","v":""},null,null,{"$f":"IF('3_Initial Sample Inspection'!C173=\"\",\"\",'3_Initial Sample Inspection'!C173)","v":""}]
[null,{"$f":"IF('3_Initial Sample Inspection'!B174=\"\",\"\",'3_Initial Sample Inspection'!B174)","v":""},null,null,{"$f":"IF('3_Initial Sample Inspection'!C174=\"\",\"\",'3_Initial Sample Inspection'!C174)","v":""}]
[null,{"$f":"IF('3_Initial Sample Inspection'!B175=\"\",\"\",'3_Initial Sample Inspection'!B175)","v":""},null,null,{"$f":"IF('3_Initial Sample Inspection'!C175=\"\",\"\",'3_Initial Sample Inspection'!C175)","v":""}]
[null,{"$f":"IF('3_Initial Sample Inspection'!B176=\"\",\"\",'3_Initial Sample Inspection'!B176)","v":""},null,null,{"$f":"IF('3_Initial Sample Inspection'!C176=\"\",\"\",'3_Initial Sample Inspection'!C176)","v":""}]
[null,{"$f":"IF('3_Initial Sample Inspection'!B177=\"\",\"\",'3_Initial Sample Inspection'!B177)","v":""},null,null,{"$f":"IF('3_Initial Sample Inspection'!C177=\"\",\"\",'3_Initial Sample Inspection'!C177)","v":""}]
[null,{"$f":"IF('3_Initial Sample Inspection'!B178=\"\",\"\",'3_Initial Sample Inspection'!B178)","v":""},null,null,{"$f":"IF('3_Initial Sample Inspection'!C178=\"\",\"\",'3_Initial Sample Inspection'!C178)","v":""}]
[null,{"$f":"IF('3_Initial Sample Inspection'!B179=\"\",\"\",'3_Initial Sample Inspection'!B179)","v":""},null,null,{"$f":"IF('3_Initial Sample Inspection'!C179=\"\",\"\",'3_Initial Sample Inspection'!C179)","v":""}]
[null,{"$f":"IF('3_Initial Sample Inspection'!B180=\"\",\"\",'3_Initial Sample Inspection'!B180)","v":""},null,null,{"$f":"IF('3_Initial Sample Inspection'!C180=\"\",\"\",'3_Initial Sample Inspection'!C180)","v":""}]
[null,{"$f":"IF('3_Initial Sample Inspection'!B181=\"\",\"\",'3_Initial Sample Inspection'!B181)","v":""},null,null,{"$f":"IF('3_Initial Sample Inspection'!C181=\"\",\"\",'3_Initial Sample Inspection'!C181)","v":""}]
[null,{"$f":"IF('3_Initial Sample Inspection'!B182=\"\",\"\",'3_Initial Sample Inspection'!B182)","v":""},null,null,{"$f":"IF('3_Initial Sample Inspection'!C182=\"\",\"\",'3_Initial Sample Inspection'!C182)","v":""}]
[null,{"$f":"IF('3_Initial Sample Inspection'!B183=\"\",\"\",'3_Initial Sample Inspection'!B183)","v":""},null,null,{"$f":"IF('3_Initial Sample Inspection'!C183=\"\",\"\",'3_Initial Sample Inspection'!C183)","v":""}]
[null,{"$f":"IF('3_Initial Sample Inspection'!B184=\"\",\"\",'3_Initial Sample Inspection'!B184)","v":""},null,null,{"$f":"IF('3_Initial Sample Inspection'!C184=\"\",\"\",'3_Initial Sample Inspection'!C184)","v":""}]
[null,{"$f":"IF('3_Initial Sample Inspection'!B185=\"\",\"\",'3_Initial Sample Inspection'!B185)","v":""},null,null,{"$f":"IF('3_Initial Sample Inspection'!C185=\"\",\"\",'3_Initial Sample Inspection'!C185)","v":""}]
[null,{"$f":"IF('3_Initial Sample Inspection'!B186=\"\",\"\",'3_Initial Sample Inspection'!B186)","v":""},null,null,{"$f":"IF('3_Initial Sample Inspection'!C186=\"\",\"\",'3_Initial Sample Inspection'!C186)","v":""}]
[null,{"$f":"IF('3_Initial Sample Inspection'!B187=\"\",\"\",'3_Initial Sample Inspection'!B187)","v":""},null,null,{"$f":"IF('3_Initial Sample Inspection'!C187=\"\",\"\",'3_Initial Sample Inspection'!C187)","v":""}]
[null,{"$f":"IF('3_Initial Sample Inspection'!B188=\"\",\"\",'3_Initial Sample Inspection'!B188)","v":""},null,null,{"$f":"IF('3_Initial Sample Inspection'!C188=\"\",\"\",'3_Initial Sample Inspection'!C188)","v":""}]
[null,{"$f":"IF('3_Initial Sample Inspection'!B189=\"\",\"\",'3_Initial Sample Inspection'!B189)","v":""},null,null,{"$f":"IF('3_Initial Sample Inspection'!C189=\"\",\"\",'3_Initial Sample Inspection'!C189)","v":""}]
[null,{"$f":"IF('3_Initial Sample Inspection'!B190=\"\",\"\",'3_Initial Sample Inspection'!B190)","v":""},null,null,{"$f":"IF('3_Initial Sample Inspection'!C190=\"\",\"\",'3_Initial Sample Inspection'!C190)","v":""}]
[null,{"$f":"IF('3_Initial Sample Inspection'!B191=\"\",\"\",'3_Initial Sample Inspection'!B191)","v":""},null,null,{"$f":"IF('3_Initial Sample Inspection'!C191=\"\",\"\",'3_Initial Sample Inspection'!C191)","v":""}]
[null,{"$f":"IF('3_Initial Sample Inspection'!B192=\"\",\"\",'3_Initial Sample Inspection'!B192)","v":""},null,null,{"$f":"IF('3_Initial Sample Inspection'!C192=\"\",\"\",'3_Initial Sample Inspection'!C192)","v":""}]
[null,{"$f":"IF('3_Initial Sample Inspection'!B193=\"\",\"\",'3_Initial Sample Inspection'!B193)","v":""},null,null,{"$f":"IF('3_Initial Sample Inspection'!C193=\"\",\"\",'3_Initial Sample Inspection'!C193)","v":""}]
[null,{"$f":"IF('3_Initial Sample Inspection'!B194=\"\",\"\",'3_Initial Sample Inspection'!B194)","v":""},null,null,{"$f":"IF('3_Initial Sample Inspection'!C194=\"\",\"\",'3_Initial Sample Inspection'!C194)","v":""}]
[null,{"$f":"IF('3_Initial Sample Inspection'!B195=\"\",\"\",'3_Initial Sample Inspection'!B195)","v":""},null,null,{"$f":"IF('3_Initial Sample Inspection'!C195=\"\",\"\",'3_Initial Sample Inspection'!C195)","v":""}]
[null,{"$f":"IF('3_Initial Sample Inspection'!B196=\"\",\"\",'3_Initial Sample Inspection'!B196)","v":""},null,null,{"$f":"IF('3_Initial Sample Inspection'!C196=\"\",\"\",'3_Initial Sample Inspection'!C196)","v":""}]
[null,{"$f":"IF('3_Initial Sample Inspection'!B197=\"\",\"\",'3_Initial Sample Inspection'!B197)","v":""},null,null,{"$f":"IF('3_Initial Sample Inspection'!C197=\"\",\"\",'3_Initial Sample Inspection'!C197)","v":""}]
[null,{"$f":"IF('3_Initial Sample Inspection'!B198=\"\",\"\",'3_Initial Sample Inspection'!B198)","v":""},null,null,{"$f":"IF('3_Initial Sample Inspection'!C198=\"\",\"\",'3_Initial Sample Inspection'!C198)","v":""}]
[null,{"$f":"IF('3_Initial Sample Inspection'!B199=\"\",\"\",'3_Initial Sample Inspection'!B199)","v":""},null,null,{"$f":"IF('3_Initial Sample Inspection'!C199=\"\",\"\",'3_Initial Sample Inspection'!C199)","v":""}]
[null,{"$f":"IF('3_Initial Sample Inspection'!B200=\"\",\"\",'3_Initial Sample Inspection'!B200)","v":""},null,null,{"$f":"IF('3_Initial Sample Inspection'!C200=\"\",\"\",'3_Initial Sample Inspection'!C200)","v":""}]
[null,{"$f":"IF('3_Initial Sample Inspection'!B201=\"\",\"\",'3_Initial Sample Inspection'!B201)","v":""},null,null,{"$f":"IF('3_Initial Sample Inspection'!C201=\"\",\"\",'3_Initial Sample Inspection'!C201)","v":""}]
[null,{"$f":"IF('3_Initial Sample Inspection'!B202=\"\",\"\",'3_Initial Sample Inspection'!B202)","v":""},null,null,{"$f":"IF('3_Initial Sample Inspection'!C202=\"\",\"\",'3_Initial Sample Inspection'!C202)","v":""}]
[null,{"$f":"IF('3_Initial Sample Inspection'!B203=\"\",\"\",'3_Initial Sample Inspection'!B203)","v":""},null,null,{"$f":"IF('3_Initial Sample Inspection'!C203=\"\",\"\",'3_Initial Sample Inspection'!C203)","v":""}]
[null,{"$f":"IF('3_Initial Sample Inspection'!B204=\"\",\"\",'3_Initial Sample Inspection'!B204)","v":""},null,null,{"$f":"IF('3_Initial Sample Inspection'!C204=\"\",\"\",'3_Initial Sample Inspection'!C204)","v":""}]
[null,{"$f":"IF('3_Initial Sample Inspection'!B205=\"\",\"\",'3_Initial Sample Inspection'!B205)","v":""},null,null,{"$f":"IF('3_Initial Sample Inspection'!C205=\"\",\"\",'3_Initial Sample Inspection'!C205)","v":""}]
[null,{"$f":"IF('3_Initial Sample Inspection'!B206=\"\",\"\",'3_Initial Sample Inspection'!B206)","v":""},null,null,{"$f":"IF('3_Initial Sample Inspection'!C206=\"\",\"\",'3_Initial Sample Inspection'!C206)","v":""}]
[null,{"$f":"IF('3_Initial Sample Inspection'!B207=\"\",\"\",'3_Initial Sample Inspection'!B207)","v":""},null,null,{"$f":"IF('3_Initial Sample Inspection'!C207=\"\",\"\",'3_Initial Sample Inspection'!C207)","v":""}]
[null,{"$f":"IF('3_Initial Sample Inspection'!B208=\"\",\"\",'3_Initial Sample Inspection'!B208)","v":""},null,null,{"$f":"IF('3_Initial Sample Inspection'!C208=\"\",\"\",'3_Initial Sample Inspection'!C208)","v":""}]
[null,{"$f":"IF('3_Initial Sample Inspection'!B209=\"\",\"\",'3_Initial Sample Inspection'!B209)","v":""},null,null,{"$f":"IF('3_Initial Sample Inspection'!C209=\"\",\"\",'3_Initial Sample Inspection'!C209)","v":""}]
[null,{"$f":"IF('3_Initial Sample Inspection'!B210=\"\",\"\",'3_Initial Sample Inspection'!B210)","v":""},null,null,{"$f":"IF('3_Initial Sample Inspection'!C210=\"\",\"\",'3_Initial Sample Inspection'!C210)","v":""}]
[null,{"$f":"IF('3_Initial Sample Inspection'!B211=\"\",\"\",'3_Initial Sample Inspection'!B211)","v":""},null,null,{"$f":"IF('3_Initial Sample Inspection'!C211=\"\",\"\",'3_Initial Sample Inspection'!C211)","v":""}]
[null,{"$f":"IF('3_Initial Sample Inspection'!B212=\"\",\"\",'3_Initial Sample Inspection'!B212)","v":""},null,null,{"$f":"IF('3_Initial Sample Inspection'!C212=\"\",\"\",'3_Initial Sample Inspection'!C212)","v":""}]
[null,{"$f":"IF('3_Initial Sample Inspection'!B213=\"\",\"\",'3_Initial Sample Inspection'!B213)","v":""},null,null,{"$f":"IF('3_Initial Sample Inspection'!C213=\"\",\"\",'3_Initial Sample Inspection'!C213)","v":""}]
[null,{"$f":"IF('3_Initial Sample Inspection'!B214=\"\",\"\",'3_Initial Sample Inspection'!B214)","v":""},null,null,{"$f":"IF('3_Initial Sample Inspection'!C214=\"\",\"\",'3_Initial Sample Inspection'!C214)","v":""}]
[null,{"$f":"IF('3_Initial Sample Inspection'!B215=\"\",\"\",'3_Initial Sample Inspection'!B215)","v":""},null,null,{"$f":"IF('3_Initial Sample Inspection'!C215=\"\",\"\",'3_Initial Sample Inspection'!C215)","v":""}]
[null,{"$f":"IF('3_Initial Sample Inspection'!B216=\"\",\"\",'3_Initial Sample Inspection'!B216)","v":""},null,null,{"$f":"IF('3_Initial Sample Inspection'!C216=\"\",\"\",'3_Initial Sample Inspection'!C216)","v":""}]
[null,{"$f":"IF('3_Initial Sample Inspection'!B217=\"\",\"\",'3_Initial Sample Inspection'!B217)","v":""},null,null,{"$f":"IF('3_Initial Sample Inspection'!C217=\"\",\"\",'3_Initial Sample Inspection'!C217)","v":""}]
[null,{"$f":"IF('3_Initial Sample Inspection'!B218=\"\",\"\",'3_Initial Sample Inspection'!B218)","v":""},null,null,{"$f":"IF('3_Initial Sample Inspection'!C218=\"\",\"\",'3_Initial Sample Inspection'!C218)","v":""}]
[null,{"$f":"IF('3_Initial Sample Inspection'!B219=\"\",\"\",'3_Initial Sample Inspection'!B219)","v":""},null,null,{"$f":"IF('3_Initial Sample Inspection'!C219=\"\",\"\",'3_Initial Sample Inspection'!C219)","v":""}]
[null,{"$f":"IF('3_Initial Sample Inspection'!B220=\"\",\"\",'3_Initial Sample Inspection'!B220)","v":""},null,null,{"$f":"IF('3_Initial Sample Inspection'!C220=\"\",\"\",'3_Initial Sample Inspection'!C220)","v":""}]
[null,{"$f":"IF('3_Initial Sample Inspection'!B221=\"\",\"\",'3_Initial Sample Inspection'!B221)","v":""},null,null,{"$f":"IF('3_Initial Sample Inspection'!C221=\"\",\"\",'3_Initial Sample Inspection'!C221)","v":""}]
[null,{"$f":"IF('3_Initial Sample Inspection'!B222=\"\",\"\",'3_Initial Sample Inspection'!B222)","v":""},null,null,{"$f":"IF('3_Initial Sample Inspection'!C222=\"\",\"\",'3_Initial Sample Inspection'!C222)","v":""}]
[null,{"$f":"IF('3_Initial Sample Inspection'!B223=\"\",\"\",'3_Initial Sample Inspection'!B223)","v":""},null,null,{"$f":"IF('3_Initial Sample Inspection'!C223=\"\",\"\",'3_Initial Sample Inspection'!C223)","v":""}]
[null,{"$f":"IF('3_Initial Sample Inspection'!B224=\"\",\"\",'3_Initial Sample Inspection'!B224)","v":""},null,null,{"$f":"IF('3_Initial Sample Inspection'!C224=\"\",\"\",'3_Initial Sample Inspection'!C224)","v":""}]
[null,{"$f":"IF('3_Initial Sample Inspection'!B225=\"\",\"\",'3_Initial Sample Inspection'!B225)","v":""},null,null,{"$f":"IF('3_Initial Sample Inspection'!C225=\"\",\"\",'3_Initial Sample Inspection'!C225)","v":""}]
[null,{"$f":"IF('3_Initial Sample Inspection'!B226=\"\",\"\",'3_Initial Sample Inspection'!B226)","v":""},null,null,{"$f":"IF('3_Initial Sample Inspection'!C226=\"\",\"\",'3_Initial Sample Inspection'!C226)","v":""}]
[null,{"$f":"IF('3_Initial Sample Inspection'!B227=\"\",\"\",'3_Initial Sample Inspection'!B227)","v":""},null,null,{"$f":"IF('3_Initial Sample Inspection'!C227=\"\",\"\",'3_Initial Sample Inspection'!C227)","v":""}]
[null,{"$f":"IF('3_Initial Sample Inspection'!B228=\"\",\"\",'3_Initial Sample Inspection'!B228)","v":""},null,null,{"$f":"IF('3_Initial Sample Inspection'!C228=\"\",\"\",'3_Initial Sample Inspection'!C228)","v":""}]
[null,{"$f":"IF('3_Initial Sample Inspection'!B229=\"\",\"\",'3_Initial Sample Inspection'!B229)","v":""},null,null,{"$f":"IF('3_Initial Sample Inspection'!C229=\"\",\"\",'3_Initial Sample Inspection'!C229)","v":""}]
[null,{"$f":"IF('3_Initial Sample Inspection'!B230=\"\",\"\",'3_Initial Sample Inspection'!B230)","v":""},null,null,{"$f":"IF('3_Initial Sample Inspection'!C230=\"\",\"\",'3_Initial Sample Inspection'!C230)","v":""}]
[null,{"$f":"IF('3_Initial Sample Inspection'!B231=\"\",\"\",'3_Initial Sample Inspection'!B231)","v":""},null,null,{"$f":"IF('3_Initial Sample Inspection'!C231=\"\",\"\",'3_Initial Sample Inspection'!C231)","v":""}]
[null,{"$f":"IF('3_Initial Sample Inspection'!B232=\"\",\"\",'3_Initial Sample Inspection'!B232)","v":""},null,null,{"$f":"IF('3_Initial Sample Inspection'!C232=\"\",\"\",'3_Initial Sample Inspection'!C232)","v":""}]
[null,{"$f":"IF('3_Initial Sample Inspection'!B233=\"\",\"\",'3_Initial Sample Inspection'!B233)","v":""},null,null,{"$f":"IF('3_Initial Sample Inspection'!C233=\"\",\"\",'3_Initial Sample Inspection'!C233)","v":""}]
[null,{"$f":"IF('3_Initial Sample Inspection'!B234=\"\",\"\",'3_Initial Sample Inspection'!B234)","v":""},null,null,{"$f":"IF('3_Initial Sample Inspection'!C234=\"\",\"\",'3_Initial Sample Inspection'!C234)","v":""}]
[null,{"$f":"IF('3_Initial Sample Inspection'!B235=\"\",\"\",'3_Initial Sample Inspection'!B235)","v":""},null,null,{"$f":"IF('3_Initial Sample Inspection'!C235=\"\",\"\",'3_Initial Sample Inspection'!C235)","v":""}]
[null,{"$f":"IF('3_Initial Sample Inspection'!B236=\"\",\"\",'3_Initial Sample Inspection'!B236)","v":""},null,null,{"$f":"IF('3_Initial Sample Inspection'!C236=\"\",\"\",'3_Initial Sample Inspection'!C236)","v":""}]
[null,{"$f":"IF('3_Initial Sample Inspection'!B237=\"\",\"\",'3_Initial Sample Inspection'!B237)","v":""},null,null,{"$f":"IF('3_Initial Sample Inspection'!C237=\"\",\"\",'3_Initial Sample Inspection'!C237)","v":""}]
[null,{"$f":"IF('3_Initial Sample Inspection'!B238=\"\",\"\",'3_Initial Sample Inspection'!B238)","v":""},null,null,{"$f":"IF('3_Initial Sample Inspection'!C238=\"\",\"\",'3_Initial Sample Inspection'!C238)","v":""}]
[null,{"$f":"IF('3_Initial Sample Inspection'!B239=\"\",\"\",'3_Initial Sample Inspection'!B239)","v":""},null,null,{"$f":"IF('3_Initial Sample Inspection'!C239=\"\",\"\",'3_Initial Sample Inspection'!C239)","v":""}]
[null,{"$f":"IF('3_Initial Sample Inspection'!B240=\"\",\"\",'3_Initial Sample Inspection'!B240)","v":""},null,null,{"$f":"IF('3_Initial Sample Inspection'!C240=\"\",\"\",'3_Initial Sample Inspection'!C240)","v":""}]
[null,{"$f":"IF('3_Initial Sample Inspection'!B241=\"\",\"\",'3_Initial Sample Inspection'!B241)","v":""},null,null,{"$f":"IF('3_Initial Sample Inspection'!C241=\"\",\"\",'3_Initial Sample Inspection'!C241)","v":""}]
[null,{"$f":"IF('3_Initial Sample Inspection'!B242=\"\",\"\",'3_Initial Sample Inspection'!B242)","v":""},null,null,{"$f":"IF('3_Initial Sample Inspection'!C242=\"\",\"\",'3_Initial Sample Inspection'!C242)","v":""}]
[null,{"$f":"IF('3_Initial Sample Inspection'!B243=\"\",\"\",'3_Initial Sample Inspection'!B243)","v":""},null,null,{"$f":"IF('3_Initial Sample Inspection'!C243=\"\",\"\",'3_Initial Sample Inspection'!C243)","v":""}]
[null,{"$f":"IF('3_Initial Sample Inspection'!B244=\"\",\"\",'3_Initial Sample Inspection'!B244)","v":""},null,null,{"$f":"IF('3_Initial Sample Inspection'!C244=\"\",\"\",'3_Initial Sample Inspection'!C244)","v":""}]
[null,{"$f":"IF('3_Initial Sample Inspection'!B245=\"\",\"\",'3_Initial Sample Inspection'!B245)","v":""},null,null,{"$f":"IF('3_Initial Sample Inspection'!C245=\"\",\"\",'3_Initial Sample Inspection'!C245)","v":""}]
[null,{"$f":"IF('3_Initial Sample Inspection'!B246=\"\",\"\",'3_Initial Sample Inspection'!B246)","v":""},null,null,{"$f":"IF('3_Initial Sample Inspection'!C246=\"\",\"\",'3_Initial Sample Inspection'!C246)","v":""}]
[null,{"$f":"IF('3_Initial Sample Inspection'!B247=\"\",\"\",'3_Initial Sample Inspection'!B247)","v":""},null,null,{"$f":"IF('3_Initial Sample Inspection'!C247=\"\",\"\",'3_Initial Sample Inspection'!C247)","v":""}]
[null,{"$f":"IF('3_Initial Sample Inspection'!B248=\"\",\"\",'3_Initial Sample Inspection'!B248)","v":""},null,null,{"$f":"IF('3_Initial Sample Inspection'!C248=\"\",\"\",'3_Initial Sample Inspection'!C248)","v":""}]
[null,{"$f":"IF('3_Initial Sample Inspection'!B249=\"\",\"\",'3_Initial Sample Inspection'!B249)","v":""},null,null,{"$f":"IF('3_Initial Sample Inspection'!C249=\"\",\"\",'3_Initial Sample Inspection'!C249)","v":""}]
[null,{"$f":"IF('3_Initial Sample Inspection'!B250=\"\",\"\",'3_Initial Sample Inspection'!B250)","v":""},null,null,{"$f":"IF('3_Initial Sample Inspection'!C250=\"\",\"\",'3_Initial Sample Inspection'!C250)","v":""}]
[null,{"$f":"IF('3_Initial Sample Inspection'!B251=\"\",\"\",'3_Initial Sample Inspection'!B251)","v":""},null,null,{"$f":"IF('3_Initial Sample Inspection'!C251=\"\",\"\",'3_Initial Sample Inspection'!C251)","v":""}]
[null,{"$f":"IF('3_Initial Sample Inspection'!B252=\"\",\"\",'3_Initial Sample Inspection'!B252)","v":""},null,null,{"$f":"IF('3_Initial Sample Inspection'!C252=\"\",\"\",'3_Initial Sample Inspection'!C252)","v":""}]
[null,{"$f":"IF('3_Initial Sample Inspection'!B253=\"\",\"\",'3_Initial Sample Inspection'!B253)","v":""},null,null,{"$f":"IF('3_Initial Sample Inspection'!C253=\"\",\"\",'3_Initial Sample Inspection'!C253)","v":""}]
[null,{"$f":"IF('3_Initial Sample Inspection'!B254=\"\",\"\",'3_Initial Sample Inspection'!B254)","v":""},null,null,{"$f":"IF('3_Initial Sample Inspection'!C254=\"\",\"\",'3_Initial Sample Inspection'!C254)","v":""}]
[null,{"$f":"IF('3_Initial Sample Inspection'!B255=\"\",\"\",'3_Initial Sample Inspection'!B255)","v":""},null,null,{"$f":"IF('3_Initial Sample Inspection'!C255=\"\",\"\",'3_Initial Sample Inspection'!C255)","v":""}]
[null,{"$f":"IF('3_Initial Sample Inspection'!B256=\"\",\"\",'3_Initial Sample Inspection'!B256)","v":""},null,null,{"$f":"IF('3_Initial Sample Inspection'!C256=\"\",\"\",'3_Initial Sample Inspection'!C256)","v":""}]
[null,{"$f":"IF('3_Initial Sample Inspection'!B257=\"\",\"\",'3_Initial Sample Inspection'!B257)","v":""},null,null,{"$f":"IF('3_Initial Sample Inspection'!C257=\"\",\"\",'3_Initial Sample Inspection'!C257)","v":""}]
[null,{"$f":"IF('3_Initial Sample Inspection'!B258=\"\",\"\",'3_Initial Sample Inspection'!B258)","v":""},null,null,{"$f":"IF('3_Initial Sample Inspection'!C258=\"\",\"\",'3_Initial Sample Inspection'!C258)","v":""}]
[null,{"$f":"IF('3_Initial Sample Inspection'!B259=\"\",\"\",'3_Initial Sample Inspection'!B259)","v":""},null,null,{"$f":"IF('3_Initial Sample Inspection'!C259=\"\",\"\",'3_Initial Sample Inspection'!C259)","v":""}]
[null,{"$f":"IF('3_Initial Sample Inspection'!B260=\"\",\"\",'3_Initial Sample Inspection'!B260)","v":""},null,null,{"$f":"IF('3_Initial Sample Inspection'!C260=\"\",\"\",'3_Initial Sample Inspection'!C260)","v":""}]
[null,{"$f":"IF('3_Initial Sample Inspection'!B261=\"\",\"\",'3_Initial Sample Inspection'!B261)","v":""},null,null,{"$f":"IF('3_Initial Sample Inspection'!C261=\"\",\"\",'3_Initial Sample Inspection'!C261)","v":""}]
[null,{"$f":"IF('3_Initial Sample Inspection'!B262=\"\",\"\",'3_Initial Sample Inspection'!B262)","v":""},null,null,{"$f":"IF('3_Initial Sample Inspection'!C262=\"\",\"\",'3_Initial Sample Inspection'!C262)","v":""}]
[null,{"$f":"IF('3_Initial Sample Inspection'!B263=\"\",\"\",'3_Initial Sample Inspection'!B263)","v":""},null,null,{"$f":"IF('3_Initial Sample Inspection'!C263=\"\",\"\",'3_Initial Sample Inspection'!C263)","v":""}]
[null,{"$f":"IF('3_Initial Sample Inspection'!B264=\"\",\"\",'3_Initial Sample Inspection'!B264)","v":""},null,null,{"$f":"IF('3_Initial Sample Inspection'!C264=\"\",\"\",'3_Initial Sample Inspection'!C264)","v":""}]
[null,{"$f":"IF('3_Initial Sample Inspection'!B265=\"\",\"\",'3_Initial Sample Inspection'!B265)","v":""},null,null,{"$f":"IF('3_Initial Sample Inspection'!C265=\"\",\"\",'3_Initial Sample Inspection'!C265)","v":""}]
[null,{"$f":"IF('3_Initial Sample Inspection'!B266=\"\",\"\",'3_Initial Sample Inspection'!B266)","v":""},null,null,{"$f":"IF('3_Initial Sample Inspection'!C266=\"\",\"\",'3_Initial Sample Inspection'!C266)","v":""}]
[null,{"$f":"IF('3_Initial Sample Inspection'!B267=\"\",\"\",'3_Initial Sample Inspection'!B267)","v":""},null,null,{"$f":"IF('3_Initial Sample Inspection'!C267=\"\",\"\",'3_Initial Sample Inspection'!C267)","v":""}]
[null,{"$f":"IF('3_Initial Sample Inspection'!B268=\"\",\"\",'3_Initial Sample Inspection'!B268)","v":""},null,null,{"$f":"IF('3_Initial Sample Inspection'!C268=\"\",\"\",'3_Initial Sample Inspection'!C268)","v":""}]
[null,{"$f":"IF('3_Initial Sample Inspection'!B269=\"\",\"\",'3_Initial Sample Inspection'!B269)","v":""},null,null,{"$f":"IF('3_Initial Sample Inspection'!C269=\"\",\"\",'3_Initial Sample Inspection'!C269)","v":""}]
[null,{"$f":"IF('3_Initial Sample Inspection'!B270=\"\",\"\",'3_Initial Sample Inspection'!B270)","v":""},null,null,{"$f":"IF('3_Initial Sample Inspection'!C270=\"\",\"\",'3_Initial Sample Inspection'!C270)","v":""}]
[null,{"$f":"IF('3_Initial Sample Inspection'!B271=\"\",\"\",'3_Initial Sample Inspection'!B271)","v":""},null,null,{"$f":"IF('3_Initial Sample Inspection'!C271=\"\",\"\",'3_Initial Sample Inspection'!C271)","v":""}]
[null,{"$f":"IF('3_Initial Sample Inspection'!B272=\"\",\"\",'3_Initial Sample Inspection'!B272)","v":""},null,null,{"$f":"IF('3_Initial Sample Inspection'!C272=\"\",\"\",'3_Initial Sample Inspection'!C272)","v":""}]
[null,{"$f":"IF('3_Initial Sample Inspection'!B273=\"\",\"\",'3_Initial Sample Inspection'!B273)","v":""},null,null,{"$f":"IF('3_Initial Sample Inspection'!C273=\"\",\"\",'3_Initial Sample Inspection'!C273)","v":""}]
[null,{"$f":"IF('3_Initial Sample Inspection'!B274=\"\",\"\",'3_Initial Sample Inspection'!B274)","v":""},null,null,{"$f":"IF('3_Initial Sample Inspection'!C274=\"\",\"\",'3_Initial Sample Inspection'!C274)","v":""}]
[null,{"$f":"IF('3_Initial Sample Inspection'!B275=\"\",\"\",'3_Initial Sample Inspection'!B275)","v":""},null,null,{"$f":"IF('3_Initial Sample Inspection'!C275=\"\",\"\",'3_Initial Sample Inspection'!C275)","v":""}]
[null,{"$f":"IF('3_Initial Sample Inspection'!B276=\"\",\"\",'3_Initial Sample Inspection'!B276)","v":""},null,null,{"$f":"IF('3_Initial Sample Inspection'!C276=\"\",\"\",'3_Initial Sample Inspection'!C276)","v":""}]
[null,{"$f":"IF('3_Initial Sample Inspection'!B277=\"\",\"\",'3_Initial Sample Inspection'!B277)","v":""},null,null,{"$f":"IF('3_Initial Sample Inspection'!C277=\"\",\"\",'3_Initial Sample Inspection'!C277)","v":""}]
[null,{"$f":"IF('3_Initial Sample Inspection'!B278=\"\",\"\",'3_Initial Sample Inspection'!B278)","v":""},null,null,{"$f":"IF('3_Initial Sample Inspection'!C278=\"\",\"\",'3_Initial Sample Inspection'!C278)","v":""}]
[null,{"$f":"IF('3_Initial Sample Inspection'!B279=\"\",\"\",'3_Initial Sample Inspection'!B279)","v":""},null,null,{"$f":"IF('3_Initial Sample Inspection'!C279=\"\",\"\",'3_Initial Sample Inspection'!C279)","v":""}]
[null,{"$f":"IF('3_Initial Sample Inspection'!B280=\"\",\"\",'3_Initial Sample Inspection'!B280)","v":""},null,null,{"$f":"IF('3_Initial Sample Inspection'!C280=\"\",\"\",'3_Initial Sample Inspection'!C280)","v":""}]
[null,{"$f":"IF('3_Initial Sample Inspection'!B281=\"\",\"\",'3_Initial Sample Inspection'!B281)","v":""},null,null,{"$f":"IF('3_Initial Sample Inspection'!C281=\"\",\"\",'3_Initial Sample Inspection'!C281)","v":""}]
[null,{"$f":"IF('3_Initial Sample Inspection'!B282=\"\",\"\",'3_Initial Sample Inspection'!B282)","v":""},null,null,{"$f":"IF('3_Initial Sample Inspection'!C282=\"\",\"\",'3_Initial Sample Inspection'!C282)","v":""}]
[null,{"$f":"IF('3_Initial Sample Inspection'!B283=\"\",\"\",'3_Initial Sample Inspection'!B283)","v":""},null,null,{"$f":"IF('3_Initial Sample Inspection'!C283=\"\",\"\",'3_Initial Sample Inspection'!C283)","v":""}]
[null,{"$f":"IF('3_Initial Sample Inspection'!B284=\"\",\"\",'3_Initial Sample Inspection'!B284)","v":""},null,null,{"$f":"IF('3_Initial Sample Inspection'!C284=\"\",\"\",'3_Initial Sample Inspection'!C284)","v":""}]
[null,{"$f":"IF('3_Initial Sample Inspection'!B285=\"\",\"\",'3_Initial Sample Inspection'!B285)","v":""},null,null,{"$f":"IF('3_Initial Sample Inspection'!C285=\"\",\"\",'3_Initial Sample Inspection'!C285)","v":""}]
[null,{"$f":"IF('3_Initial Sample Inspection'!B286=\"\",\"\",'3_Initial Sample Inspection'!B286)","v":""},null,null,{"$f":"IF('3_Initial Sample Inspection'!C286=\"\",\"\",'3_Initial Sample Inspection'!C286)","v":""}]
[null,{"$f":"IF('3_Initial Sample Inspection'!B287=\"\",\"\",'3_Initial Sample Inspection'!B287)","v":""},null,null,{"$f":"IF('3_Initial Sample Inspection'!C287=\"\",\"\",'3_Initial Sample Inspection'!C287)","v":""}]
[null,{"$f":"IF('3_Initial Sample Inspection'!B288=\"\",\"\",'3_Initial Sample Inspection'!B288)","v":""},null,null,{"$f":"IF('3_Initial Sample Inspection'!C288=\"\",\"\",'3_Initial Sample Inspection'!C288)","v":""}]
[null,{"$f":"IF('3_Initial Sample Inspection'!B289=\"\",\"\",'3_Initial Sample Inspection'!B289)","v":""},null,null,{"$f":"IF('3_Initial Sample Inspection'!C289=\"\",\"\",'3_Initial Sample Inspection'!C289)","v":""}]
[null,{"$f":"IF('3_Initial Sample Inspection'!B290=\"\",\"\",'3_Initial Sample Inspection'!B290)","v":""},null,null,{"$f":"IF('3_Initial Sample Inspection'!C290=\"\",\"\",'3_Initial Sample Inspection'!C290)","v":""}]
[null,{"$f":"IF('3_Initial Sample Inspection'!B291=\"\",\"\",'3_Initial Sample Inspection'!B291)","v":""},null,null,{"$f":"IF('3_Initial Sample Inspection'!C291=\"\",\"\",'3_Initial Sample Inspection'!C291)","v":""}]
[null,{"$f":"IF('3_Initial Sample Inspection'!B292=\"\",\"\",'3_Initial Sample Inspection'!B292)","v":""},null,null,{"$f":"IF('3_Initial Sample Inspection'!C292=\"\",\"\",'3_Initial Sample Inspection'!C292)","v":""}]
[null,{"$f":"IF('3_Initial Sample Inspection'!B293=\"\",\"\",'3_Initial Sample Inspection'!B293)","v":""},null,null,{"$f":"IF('3_Initial Sample Inspection'!C293=\"\",\"\",'3_Initial Sample Inspection'!C293)","v":""}]
[null,{"$f":"IF('3_Initial Sample Inspection'!B294=\"\",\"\",'3_Initial Sample Inspection'!B294)","v":""},null,null,{"$f":"IF('3_Initial Sample Inspection'!C294=\"\",\"\",'3_Initial Sample Inspection'!C294)","v":""}]
[null,{"$f":"IF('3_Initial Sample Inspection'!B295=\"\",\"\",'3_Initial Sample Inspection'!B295)","v":""},null,null,{"$f":"IF('3_Initial Sample Inspection'!C295=\"\",\"\",'3_Initial Sample Inspection'!C295)","v":""}]
[null,{"$f":"IF('3_Initial Sample Inspection'!B296=\"\",\"\",'3_Initial Sample Inspection'!B296)","v":""},null,null,{"$f":"IF('3_Initial Sample Inspection'!C296=\"\",\"\",'3_Initial Sample Inspection'!C296)","v":""}]
[null,{"$f":"IF('3_Initial Sample Inspection'!B297=\"\",\"\",'3_Initial Sample Inspection'!B297)","v":""},null,null,{"$f":"IF('3_Initial Sample Inspection'!C297=\"\",\"\",'3_Initial Sample Inspection'!C297)","v":""}]
[null,{"$f":"IF('3_Initial Sample Inspection'!B298=\"\",\"\",'3_Initial Sample Inspection'!B298)","v":""},null,null,{"$f":"IF('3_Initial Sample Inspection'!C298=\"\",\"\",'3_Initial Sample Inspection'!C298)","v":""}]
[null,{"$f":"IF('3_Initial Sample Inspection'!B299=\"\",\"\",'3_Initial Sample Inspection'!B299)","v":""},null,null,{"$f":"IF('3_Initial Sample Inspection'!C299=\"\",\"\",'3_Initial Sample Inspection'!C299)","v":""}]
[null,{"$f":"IF('3_Initial Sample Inspection'!B300=\"\",\"\",'3_Initial Sample Inspection'!B300)","v":""},null,null,{"$f":"IF('3_Initial Sample Inspection'!C300=\"\",\"\",'3_Initial Sample Inspection'!C300)","v":""}]
[null,{"$f":"IF('3_Initial Sample Inspection'!B301=\"\",\"\",'3_Initial Sample Inspection'!B301)","v":""},null,null,{"$f":"IF('3_Initial Sample Inspection'!C301=\"\",\"\",'3_Initial Sample Inspection'!C301)","v":""}]
[null,{"$f":"IF('3_Initial Sample Inspection'!B302=\"\",\"\",'3_Initial Sample Inspection'!B302)","v":""},null,null,{"$f":"IF('3_Initial Sample Inspection'!C302=\"\",\"\",'3_Initial Sample Inspection'!C302)","v":""}]
[null,{"$f":"IF('3_Initial Sample Inspection'!B303=\"\",\"\",'3_Initial Sample Inspection'!B303)","v":""},null,null,{"$f":"IF('3_Initial Sample Inspection'!C303=\"\",\"\",'3_Initial Sample Inspection'!C303)","v":""}]
[null,{"$f":"IF('3_Initial Sample Inspection'!B304=\"\",\"\",'3_Initial Sample Inspection'!B304)","v":""},null,null,{"$f":"IF('3_Initial Sample Inspection'!C304=\"\",\"\",'3_Initial Sample Inspection'!C304)","v":""}]
[null,{"$f":"IF('3_Initial Sample Inspection'!B305=\"\",\"\",'3_Initial Sample Inspection'!B305)","v":""},null,null,{"$f":"IF('3_Initial Sample Inspection'!C305=\"\",\"\",'3_Initial Sample Inspection'!C305)","v":""}]
[null,{"$f":"IF('3_Initial Sample Inspection'!B306=\"\",\"\",'3_Initial Sample Inspection'!B306)","v":""},null,null,{"$f":"IF('3_Initial Sample Inspection'!C306=\"\",\"\",'3_Initial Sample Inspection'!C306)","v":""}]
[null,{"$f":"IF('3_Initial Sample Inspection'!B307=\"\",\"\",'3_Initial Sample Inspection'!B307)","v":""},null,null,{"$f":"IF('3_Initial Sample Inspection'!C307=\"\",\"\",'3_Initial Sample Inspection'!C307)","v":""}]
[null,{"$f":"IF('3_Initial Sample Inspection'!B308=\"\",\"\",'3_Initial Sample Inspection'!B308)","v":""},null,null,{"$f":"IF('3_Initial Sample Inspection'!C308=\"\",\"\",'3_Initial Sample Inspection'!C308)","v":""}]
[null,{"$f":"IF('3_Initial Sample Inspection'!B309=\"\",\"\",'3_Initial Sample Inspection'!B309)","v":""},null,null,{"$f":"IF('3_Initial Sample Inspection'!C309=\"\",\"\",'3_Initial Sample Inspection'!C309)","v":""}]
[null,{"$f":"IF('3_Initial Sample Inspection'!B310=\"\",\"\",'3_Initial Sample Inspection'!B310)","v":""},null,null,{"$f":"IF('3_Initial Sample Inspection'!C310=\"\",\"\",'3_Initial Sample Inspection'!C310)","v":""}]
[null,{"$f":"IF('3_Initial Sample Inspection'!B311=\"\",\"\",'3_Initial Sample Inspection'!B311)","v":""},null,null,{"$f":"IF('3_Initial Sample Inspection'!C311=\"\",\"\",'3_Initial Sample Inspection'!C311)","v":""}]
[null,{"$f":"IF('3_Initial Sample Inspection'!B312=\"\",\"\",'3_Initial Sample Inspection'!B312)","v":""},null,null,{"$f":"IF('3_Initial Sample Inspection'!C312=\"\",\"\",'3_Initial Sample Inspection'!C312)","v":""}]
[null,{"$f":"IF('3_Initial Sample Inspection'!B313=\"\",\"\",'3_Initial Sample Inspection'!B313)","v":""},null,null,{"$f":"IF('3_Initial Sample Inspection'!C313=\"\",\"\",'3_Initial Sample Inspection'!C313)","v":""}]
[null,{"$f":"IF('3_Initial Sample Inspection'!B314=\"\",\"\",'3_Initial Sample Inspection'!B314)","v":""},null,null,{"$f":"IF('3_Initial Sample Inspection'!C314=\"\",\"\",'3_Initial Sample Inspection'!C314)","v":""}]
[null,{"$f":"IF('3_Initial Sample Inspection'!B315=\"\",\"\",'3_Initial Sample Inspection'!B315)","v":""},null,null,{"$f":"IF('3_Initial Sample Inspection'!C315=\"\",\"\",'3_Initial Sample Inspection'!C315)","v":""}]
[null,{"$f":"IF('3_Initial Sample Inspection'!B316=\"\",\"\",'3_Initial Sample Inspection'!B316)","v":""},null,null,{"$f":"IF('3_Initial Sample Inspection'!C316=\"\",\"\",'3_Initial Sample Inspection'!C316)","v":""}]
[null,{"$f":"IF('3_Initial Sample Inspection'!B317=\"\",\"\",'3_Initial Sample Inspection'!B317)","v":""},null,null,{"$f":"IF('3_Initial Sample Inspection'!C317=\"\",\"\",'3_Initial Sample Inspection'!C317)","v":""}]
[null,{"$f":"IF('3_Initial Sample Inspection'!B318=\"\",\"\",'3_Initial Sample Inspection'!B318)","v":""},null,null,{"$f":"IF('3_Initial Sample Inspection'!C318=\"\",\"\",'3_Initial Sample Inspection'!C318)","v":""}]
[null,{"$f":"IF('3_Initial Sample Inspection'!B319=\"\",\"\",'3_Initial Sample Inspection'!B319)","v":""},null,null,{"$f":"IF('3_Initial Sample Inspection'!C319=\"\",\"\",'3_Initial Sample Inspection'!C319)","v":""}]
[null,{"$f":"IF('3_Initial Sample Inspection'!B320=\"\",\"\",'3_Initial Sample Inspection'!B320)","v":""},null,null,{"$f":"IF('3_Initial Sample Inspection'!C320=\"\",\"\",'3_Initial Sample Inspection'!C320)","v":""}]
[null,{"$f":"IF('3_Initial Sample Inspection'!B321=\"\",\"\",'3_Initial Sample Inspection'!B321)","v":""},null,null,{"$f":"IF('3_Initial Sample Inspection'!C321=\"\",\"\",'3_Initial Sample Inspection'!C321)","v":""}]
[null,{"$f":"IF('3_Initial Sample Inspection'!B322=\"\",\"\",'3_Initial Sample Inspection'!B322)","v":""},null,null,{"$f":"IF('3_Initial Sample Inspection'!C322=\"\",\"\",'3_Initial Sample Inspection'!C322)","v":""}]
[null,{"$f":"IF('3_Initial Sample Inspection'!B323=\"\",\"\",'3_Initial Sample Inspection'!B323)","v":""},null,null,{"$f":"IF('3_Initial Sample Inspection'!C323=\"\",\"\",'3_Initial Sample Inspection'!C323)","v":""}]
[null,{"$f":"IF('3_Initial Sample Inspection'!B324=\"\",\"\",'3_Initial Sample Inspection'!B324)","v":""},null,null,{"$f":"IF('3_Initial Sample Inspection'!C324=\"\",\"\",'3_Initial Sample Inspection'!C324)","v":""}]
[null,{"$f":"IF('3_Initial Sample Inspection'!B325=\"\",\"\",'3_Initial Sample Inspection'!B325)","v":""},null,null,{"$f":"IF('3_Initial Sample Inspection'!C325=\"\",\"\",'3_Initial Sample Inspection'!C325)","v":""}]
[null,{"$f":"IF('3_Initial Sample Inspection'!B326=\"\",\"\",'3_Initial Sample Inspection'!B326)","v":""},null,null,{"$f":"IF('3_Initial Sample Inspection'!C326=\"\",\"\",'3_Initial Sample Inspection'!C326)","v":""}]
[null,{"$f":"IF('3_Initial Sample Inspection'!B327=\"\",\"\",'3_Initial Sample Inspection'!B327)","v":""},null,null,{"$f":"IF('3_Initial Sample Inspection'!C327=\"\",\"\",'3_Initial Sample Inspection'!C327)","v":""}]
[null,{"$f":"IF('3_Initial Sample Inspection'!B328=\"\",\"\",'3_Initial Sample Inspection'!B328)","v":""},null,null,{"$f":"IF('3_Initial Sample Inspection'!C328=\"\",\"\",'3_Initial Sample Inspection'!C328)","v":""}]
[null,{"$f":"IF('3_Initial Sample Inspection'!B329=\"\",\"\",'3_Initial Sample Inspection'!B329)","v":""},null,null,{"$f":"IF('3_Initial Sample Inspection'!C329=\"\",\"\",'3_Initial Sample Inspection'!C329)","v":""}]
[null,{"$f":"IF('3_Initial Sample Inspection'!B330=\"\",\"\",'3_Initial Sample Inspection'!B330)","v":""},null,null,{"$f":"IF('3_Initial Sample Inspection'!C330=\"\",\"\",'3_Initial Sample Inspection'!C330)","v":""}]
[null,{"$f":"IF('3_Initial Sample Inspection'!B331=\"\",\"\",'3_Initial Sample Inspection'!B331)","v":""},null,null,{"$f":"IF('3_Initial Sample Inspection'!C331=\"\",\"\",'3_Initial Sample Inspection'!C331)","v":""}]
[null,{"$f":"IF('3_Initial Sample Inspection'!B332=\"\",\"\",'3_Initial Sample Inspection'!B332)","v":""},null,null,{"$f":"IF('3_Initial Sample Inspection'!C332=\"\",\"\",'3_Initial Sample Inspection'!C332)","v":""}]
[null,{"$f":"IF('3_Initial Sample Inspection'!B333=\"\",\"\",'3_Initial Sample Inspection'!B333)","v":""},null,null,{"$f":"IF('3_Initial Sample Inspection'!C333=\"\",\"\",'3_Initial Sample Inspection'!C333)","v":""}]
[null,{"$f":"IF('3_Initial Sample Inspection'!B334=\"\",\"\",'3_Initial Sample Inspection'!B334)","v":""},null,null,{"$f":"IF('3_Initial Sample Inspection'!C334=\"\",\"\",'3_Initial Sample Inspection'!C334)","v":""}]
[null,{"$f":"IF('3_Initial Sample Inspection'!B335=\"\",\"\",'3_Initial Sample Inspection'!B335)","v":""},null,null,{"$f":"IF('3_Initial Sample Inspection'!C335=\"\",\"\",'3_Initial Sample Inspection'!C335)","v":""}]
[null,{"$f":"IF('3_Initial Sample Inspection'!B336=\"\",\"\",'3_Initial Sample Inspection'!B336)","v":""},null,null,{"$f":"IF('3_Initial Sample Inspection'!C336=\"\",\"\",'3_Initial Sample Inspection'!C336)","v":""}]
[null,{"$f":"IF('3_Initial Sample Inspection'!B337=\"\",\"\",'3_Initial Sample Inspection'!B337)","v":""},null,null,{"$f":"IF('3_Initial Sample Inspection'!C337=\"\",\"\",'3_Initial Sample Inspection'!C337)","v":""}]
[null,300]

{"sheet":"5_Measurement Report","index":6,"n_rows":80,"n_cols":23,"rows_kept":80,"cut":false,"hidden":false,"merged":[[75,0,75,1],[76,0,76,1],[77,0,77,1],[79,0,79,1],[78,0,78,1],[74,0,74,1],[63,0,63,1],[64,0,64,1],[65,0,65,1],[66,0,66,1],[67,0,67,1],[68,0,68,1],[69,0,69,1],[70,0,70,1],[71,0,71,1],[72,0,72,1],[73,0,73,1],[62,0,62,1],[51,0,51,1],[52,0,52,1],[53,0,53,1],[54,0,54,1],[55,0,55,1],[56,0,56,1],[57,0,57,1],[58,0,58,1],[59,0,59,1],[60,0,60,1],[61,0,61,1],[50,0,50,1],[39,0,39,1],[40,0,40,1],[41,0,41,1],[42,0,42,1],[43,0,43,1],[44,0,44,1],[45,0,45,1],[46,0,46,1],[47,0,47,1],[48,0,48,1],[49,0,49,1],[38,0,38,1],[27,0,27,1],[28,0,28,1],[29,0,29,1],[30,0,30,1],[31,0,31,1],[32,0,32,1],[33,0,33,1],[34,0,34,1],[35,0,35,1],[36,0,36,1],[37,0,37,1],[24,0,24,1],[25,0,25,1],[26,0,26,1],[4,3,4,4],[4,5,4,6],[8,0,8,2],[8,3,8,4],[8,5,8,6],[7,7,7,8],[7,9,7,11],[7,0,7,2],[5,0,5,2],[5,3,5,4],[5,5,5,6],[5,7,5,11],[6,0,6,2],[6,3,6,4],[6,5,6,6],[6,7,6,8],[6,9,6,11],[22,13,22,22],[76,2,77,2],[76,3,77,3],[76,4,77,11],[0,0,1,3],[0,4,1,8],[0,10,0,11],[1,10,1,11],[3,0,3,2],[3,3,3,4],[3,5,3,6],[3,7,3,11],[4,7,4,11],[4,0,4,2],[7,3,7,4],[7,5,7,6],[78,2,79,3],[78,5,79,7],[78,9,79,11],[8,7,8,8],[8,9,8,11]]}
[null,null,null,null,"Measurement Report",null,null,null,null,"Issued by","DQD / 20170222"]
[null,null,null,null,null,null,null,null,null,"Inspected by","Name"]
[]
["Item No.",null,null,"Drawing No.",null,"Index No.",null,"Item Description"]
[{"$f":"+'3_Initial Sample Inspection'!B18","v":""},null,null,{"$f":"+'3_Initial Sample Inspection'!B20","v":""},null,null,null,{"$f":"+VLOOKUP(106,Translation[],VLOOKUP(SecondLang,LangTable[],2,FALSE)+2,FALSE)","v":""}]
[]
["PO No./Receipt No.",null,null,"Status / Process",null,"Receipt Date",null,"Lot Quantity",null,"Manufacturer"]
[{"$f":"+VLOOKUP(107,Translation[],VLOOKUP(SecondLang,LangTable[],2,FALSE)+2,FALSE)","v":""},null,null,{"$f":"+VLOOKUP(108,Translation[],VLOOKUP(SecondLang,LangTable[],2,FALSE)+2,FALSE)","v":""},null,{"$f":"+VLOOKUP(111,Translation[],VLOOKUP(SecondLang,LangTable[],2,FALSE)+2,FALSE)","v":""},null,{"$f":"+VLOOKUP(18,Translation[],VLOOKUP(SecondLang,LangTable[],2,FALSE)+2,FALSE)","v":""},null,{"$f":"+VLOOKUP(110,Translation[],VLOOKUP(SecondLang,LangTable[],2,FALSE)+2,FALSE)","v":""}]
[]
[]
["Pos./drawing",{"$f":"+VLOOKUP(70,Translation[],VLOOKUP(SecondLang,LangTable[],2,FALSE)+2,FALSE)","v":""},1,2,3,4,5,6,7,8,9,10]
["Q-feature",null,"diam.","diam.","length_C","heigth","diam.","[HV0.3]","[HV1]","thickness [mm]","width (SW)","torx T30"]
["Nominal value",{"$f":"+VLOOKUP(74,Translation[],VLOOKUP(SecondLang,LangTable[],2,FALSE)+2,FALSE)","v":""}]
["Upper limit",{"$f":"+VLOOKUP(81,Translation[],VLOOKUP(SecondLang,LangTable[],2,FALSE)+2,FALSE)","v":""}]
["Lower limit",{"$f":"+VLOOKUP(80,Translation[],VLOOKUP(SecondLang,LangTable[],2,FALSE)+2,FALSE)","v":""}]
["Gauge",{"$f":"+VLOOKUP(112,Translation[],VLOOKUP(SecondLang,LangTable[],2,FALSE)+2,FALSE)","v":""}]
["Class. (N, H, K)",{"$f":"+VLOOKUP(113,Translation[],VLOOKUP(SecondLang,LangTable[],2,FALSE)+2,FALSE)","v":""},"H","N","H","N","H","N","H","N","H","N"]
[null,null,{"$f":"ABS(IF(C13=C15,0,IF(C13=C14,0,(C21-C13)/(C14-C15)*2)))","v":0},0,0,0,0,0,0,0,0,0]
["Max. Value",{"$f":"+VLOOKUP(114,Translation[],VLOOKUP(SecondLang,LangTable[],2,FALSE)+2,FALSE)","v":""},{"$f":"IF(T(C25)=\"\",IF(C25=\"\",\"\",MAX(C25:C74)),\"\")","v":""},"","","","","","","","",""]
["Min. Value",{"$f":"+VLOOKUP(115,Translation[],VLOOKUP(SecondLang,LangTable[],2,FALSE)+2,FALSE)","v":""},{"$f":"IF(T(C25)=\"\",IF(C25=\"\",\"\",MIN(C25:C74)),\"\")","v":""},"","","","","","","","",""]
["Average Value",{"$f":"+VLOOKUP(116,Translation[],VLOOKUP(SecondLang,LangTable[],2,FALSE)+2,FALSE)","v":""},{"$f":"IF(T(C25)=\"\",IF(C25=\"\",\"\",AVERAGE(C25:C74)),\"\")","v":""},"","","","","","","","",""]
["Stand. Dev. d",{"$f":"+VLOOKUP(117,Translation[],VLOOKUP(SecondLang,LangTable[],2,FALSE)+2,FALSE)","v":""},{"$f":"IF(C21=\"\",\"\",STDEV(C25:C74))","v":""},"","","","","","","","",""]
["Cm-Value \n(norm. distr.)",{"$f":"+VLOOKUP(118,Translation[],VLOOKUP(SecondLang,LangTable[],2,FALSE)+2,FALSE)","v":""},{"$f":"IF(COUNTA(C14:C15)=2,IF(COUNTA(C22)=1,IF(C22=0,\"\",(C14-C15)/6/C22),\"\"),\"\")","v":""},"","","","","","","","",""]
["Cmk-Value \n(norm. distr.)",{"$f":"+VLOOKUP(119,Translation[],VLOOKUP(SecondLang,LangTable[],2,FALSE)+2,FALSE)","v":""},{"$f":"IF(COUNTA(C14:C15)=2,IF(COUNTA(C22)=1,IF(C22=0,\"\",MIN((C14-C21)/3/C22,(C21-C15)/3/C22)),\"\"),\"\")","v":""},"","","","","","","","",""]
[1,null,null,null,null,null,null,null,null,null,null,null,null,{"$f":"IF(C25=\"\",0,IF(C25=\"ok\",0,IF(C25>C14,1,IF(C25<C15,1,IF(C25=\"not ok\",1,0)))))","v":0},{"$f":"IF(D25=\"\",0,IF(D25=\"ok\",0,IF(D25>$D$14,1,IF(D25<$D$15,1,IF(D25=\"not ok\",1,0)))))","v":0},{"$f":"IF(E25=\"\",0,IF(E25=\"ok\",0,IF(E25>$E$14,1,IF(E25<$E$15,1,IF(E25=\"not ok\",1,0)))))","v":0},{"$f":"IF(F25=\"\",0,IF(F25=\"ok\",0,IF(F25>$F$14,1,IF(F25<$F$15,1,IF(F25=\"not ok\",1,0)))))","v":0},{"$f":"IF(G25=\"\",0,IF(G25=\"ok\",0,IF(G25>$G$14,1,IF(G25<$G$15,1,IF(G25=\"not ok\",1,0)))))","v":0},{"$f":"IF(H25=\"\",0,IF(H25=\"ok\",0,IF(H25>$H$14,1,IF(H25<$H$15,1,IF(H25=\"not ok\",1,0)))))","v":0},{"$f":"IF(I25=\"\",0,IF(I25=\"ok\",0,IF(I25>$I$14,1,IF(I25<$I$15,1,IF(I25=\"not ok\",1,0)))))","v":0},{"$f":"IF(J25=\"\",0,IF(J25=\"ok\",0,IF(J25>$J$14,1,IF(J25<$J$15,1,IF(J25=\"not ok\",1,0)))))","v":0},{"$f":"IF(K25=\"\",0,IF(K25=\"ok\",0,IF(K25>$K$14,1,IF(K25<$K$15,1,IF(K25=\"not ok\",1,0)))))","v":0},{"$f":"IF(L25=\"\",0,IF(L25=\"ok\",0,IF(L25>$L$14,1,IF(L25<$L$15,1,IF(L25=\"not ok\",1,0)))))","v":0}]
[2,null,null,null,null,null,null,null,null,null,null,null,null,{"$f":"IF(C26=\"\",0,IF(C26=\"ok\",0,IF(C26>$C$14,1,IF(C26<$C$15,1,IF(C26=\"not ok\",1,0)))))","v":0},0,0,0,0,0,0,0,0,0]
[3,null,null,null,null,null,null,null,null,null,null,null,null,0,0,0,0,0,0,0,0,0,0]
[4,null,null,null,null,null,null,null,null,null,null,null,null,0,0,0,0,0,0,0,0,0,0]
[5,null,null,null,null,null,null,null,null,null,null,null,null,0,0,0,0,0,0,0,0,0,0]
[6,null,null,null,null,null,null,null,null,null,null,null,null,0,0,0,0,0,0,0,0,0,0]
[7,null,null,null,null,null,null,null,null,null,null,null,null,0,0,0,0,0,0,0,0,0,0]
[8,null,null,null,null,null,null,null,null,null,null,null,null,0,0,0,0,0,0,0,0,0,0]
[9,null,null,null,null,null,null,null,null,null,null,null,null,0,0,0,0,0,0,0,0,0,0]
[10,null,null,null,null,null,null,null,null,null,null,null,null,0,0,0,0,0,0,0,0,0,0]
[11,null,null,null,null,null,null,null,null,null,null,null,null,0,0,0,0,0,0,0,0,0,0]
[12,null,null,null,null,null,null,null,null,null,null,null,null,0,0,0,0,0,0,0,0,0,0]
[13,null,null,null,null,null,null,null,null,null,null,null,null,0,0,0,0,0,0,0,0,0,0]
[14,null,null,null,null,null,null,null,null,null,null,null,null,0,0,0,0,0,0,0,0,0,0]
[15,null,null,null,null,null,null,null,null,null,null,null,null,0,0,0,0,0,0,0,0,0,0]
[16,null,null,null,null,null,null,null,null,null,null,null,null,0,0,0,0,0,0,0,0,0,0]
[17,null,null,null,null,null,null,null,null,null,null,null,null,0,0,0,0,0,0,0,0,0,0]
[18,null,null,null,null,null,null,null,null,null,null,null,null,0,0,0,0,0,0,0,0,0,0]
[19,null,null,null,null,null,null,null,null,null,null,null,null,0,0,0,0,0,0,0,0,0,0]
[20,null,null,null,null,null,null,null,null,null,null,null,null,0,0,0,0,0,0,0,0,0,0]
[21,null,null,null,null,null,null,null,null,null,null,null,null,0,0,0,0,0,0,0,0,0,0]
[22,null,null,null,null,null,null,null,null,null,null,null,null,0,0,0,0,0,0,0,0,0,0]
[23,null,null,null,null,null,null,null,null,null,null,null,null,0,0,0,0,0,0,0,0,0,0]
[24,null,null,null,null,null,null,null,null,null,null,null,null,0,0,0,0,0,0,0,0,0,0]
[25,null,null,null,null,null,null,null,null,null,null,null,null,0,0,0,0,0,0,0,0,0,0]
[26,null,null,null,null,null,null,null,null,null,null,null,null,0,0,0,0,0,0,0,0,0,0]
[27,null,null,null,null,null,null,null,null,null,null,null,null,0,0,0,0,0,0,0,0,0,0]
[28,null,null,null,null,null,null,null,null,null,null,null,null,0,0,0,0,0,0,0,0,0,0]
[29,null,null,null,null,null,null,null,null,null,null,null,null,0,0,0,0,0,0,0,0,0,0]
[30,null,null,null,null,null,null,null,null,null,null,null,null,0,0,0,0,0,0,0,0,0,0]
[31,null,null,null,null,null,null,null,null,null,null,null,null,0,0,0,0,0,0,0,0,0,0]
[32,null,null,null,null,null,null,null,null,null,null,null,null,0,0,0,0,0,0,0,0,0,0]
[33,null,null,null,null,null,null,null,null,null,null,null,null,0,{"$f":"IF(D57=\"\",0,IF(D57=\"ok\",0,IF(D57>$D$14,1,IF(D57<$D$15,1,IF(D57=\"not ok\",1,0)))))","v":0},{"$f":"IF(E57=\"\",0,IF(E57=\"ok\",0,IF(E57>$E$14,1,IF(E57<$E$15,1,IF(E57=\"not ok\",1,0)))))","v":0},{"$f":"IF(F57=\"\",0,IF(F57=\"ok\",0,IF(F57>$F$14,1,IF(F57<$F$15,1,IF(F57=\"not ok\",1,0)))))","v":0},{"$f":"IF(G57=\"\",0,IF(G57=\"ok\",0,IF(G57>$G$14,1,IF(G57<$G$15,1,IF(G57=\"not ok\",1,0)))))","v":0},{"$f":"IF(H57=\"\",0,IF(H57=\"ok\",0,IF(H57>$H$14,1,IF(H57<$H$15,1,IF(H57=\"not ok\",1,0)))))","v":0},{"$f":"IF(I57=\"\",0,IF(I57=\"ok\",0,IF(I57>$I$14,1,IF(I57<$I$15,1,IF(I57=\"not ok\",1,0)))))","v":0},{"$f":"IF(J57=\"\",0,IF(J57=\"ok\",0,IF(J57>$J$14,1,IF(J57<$J$15,1,IF(J57=\"not ok\",1,0)))))","v":0},{"$f":"IF(K57=\"\",0,IF(K57=\"ok\",0,IF(K57>$K$14,1,IF(K57<$K$15,1,IF(K57=\"not ok\",1,0)))))","v":0},{"$f":"IF(L57=\"\",0,IF(L57=\"ok\",0,IF(L57>$L$14,1,IF(L57<$L$15,1,IF(L57=\"not ok\",1,0)))))","v":0}]
[34,null,null,null,null,null,null,null,null,null,null,null,null,{"$f":"IF(C58=\"\",0,IF(C58=\"ok\",0,IF(C58>$C$14,1,IF(C58<$C$15,1,IF(C58=\"not ok\",1,0)))))","v":0},0,0,0,0,0,0,0,0,0]
[35,null,null,null,null,null,null,null,null,null,null,null,null,0,0,0,0,0,0,0,0,0,0]
[36,null,null,null,null,null,null,null,null,null,null,null,null,0,0,0,0,0,0,0,0,0,0]
[37,null,null,null,null,null,null,null,null,null,null,null,null,0,0,0,0,0,0,0,0,0,0]
[38,null,null,null,null,null,null,null,null,null,null,null,null,0,0,0,0,0,0,0,0,0,0]
[39,null,null,null,null,null,null,null,null,null,null,null,null,0,0,0,0,0,0,0,0,0,0]
[40,null,null,null,null,null,null,null,null,null,null,null,null,0,0,0,0,0,0,0,0,0,0]
[41,null,null,null,null,null,null,null,null,null,null,null,null,0,0,0,0,0,0,0,0,0,0]
[42,null,null,null,null,null,null,null,null,null,null,null,null,0,0,0,0,0,0,0,0,0,0]
[43,null,null,null,null,null,null,null,null,null,null,null,null,0,0,0,0,0,0,0,0,0,0]
[44,null,null,null,null,null,null,null,null,null,null,null,null,0,0,0,0,0,0,0,0,0,0]
[45,null,null,null,null,null,null,null,null,null,null,null,null,0,0,0,0,0,0,0,0,0,0]
[46,null,null,null,null,null,null,null,null,null,null,null,null,0,0,0,0,0,0,0,0,0,0]
[47,null,null,null,null,null,null,null,null,null,null,null,null,0,0,0,0,0,0,0,0,0,0]
[48,null,null,null,null,null,null,null,null,null,null,null,null,0,0,0,0,0,0,0,0,0,0]
[49,null,null,null,null,null,null,null,null,null,null,null,null,0,0,0,0,0,0,0,0,0,0]
[50,null,null,null,null,null,null,null,null,null,null,null,null,0,0,0,0,0,0,0,0,0,0]
["n-c",null,{"$f":"IF(COUNTA(C25:C74)>0,TEXT(COUNTA(C25:C74),0)&\"-\"&\"0\",\"\")","v":""},"","","","","","","","",""]
["i",null,{"$f":"IF(C75=\"\",\"\",N75)","v":""},"","","","","","","","",""]
["Remarks:",null,"red = \nout of \ntolerance","Comments:"]
["Blue = example"]
["Date:",null,"DD.MM.YYYY",null,"Inspector\nSignature: ","Name",null,null,"Supervisor\nSignature: ","Name"]
[{"$f":"+VLOOKUP(55,Translation[],VLOOKUP(SecondLang,LangTable[],2,FALSE)+2,FALSE)","v":""},null,null,null,{"$f":"+VLOOKUP(120,Translation[],VLOOKUP(SecondLang,LangTable[],2,FALSE)+2,FALSE)","v":""},null,null,null,{"$f":"+VLOOKUP(121,Translation[],VLOOKUP(SecondLang,LangTable[],2,FALSE)+2,FALSE)","v":""}]